{"text_format":"3","workbook":"xlsx","n_sheets":12,"sheets":["ЯНР","ФЕВ","МАР","АПР","МАЙ","ЮНИ","ЮЛИ","АВГ","СЕП","ОКТ","НОЕ","ДЕК"],"not_rendered":{"defined_names":40},"read":"whole","date_system":"1900"}

{"sheet":"ЯНР","index":0,"n_rows":20,"n_cols":9,"rows_kept":20,"merged":[[16,2,17,2],[16,3,17,3],[17,4,19,8]]}
[null,"ЯНР","НЕД",{"$f":"UPPER(TEXT(D3,\"aaa\"))","v":"MON"},"TUE","WED","THU","FRI","SAT"]
[null,{"$f":"YEAR(TODAY())","v":2018}]
[null,null,{"$f":"ДниИСемици+DATE(ГодинаКалендар,1,1)-WEEKDAY(DATE(ГодинаКалендар,1,1),(НачалоСедмица=\"ПОН\")+1)+1","v":"2017-12-31"},"2018-01-01","2018-01-02","2018-01-03","2018-01-04","2018-01-05","2018-01-06"]
[null,null,{"$f":"IF(DAY(ДенКалендар)=1,CONCATENATE(\"Седмица \",WEEKNUM(ДенКалендар),\"/Ден \",ДенКалендар-DATE(YEAR(ДенКалендар),1,0)),CONCATENATE(\"Ден \",ДенКалендар-DATE(YEAR(ДенКалендар),1,0)))","v":"Ден 365"},{"$f":"IF(DAY(ДенКалендар)=1,CONCATENATE(\"Седмица \",WEEKNUM(ДенКалендар),\"/Ден \",ДенКалендар-DATE(YEAR(ДенКалендар),1,0)),CONCATENATE(\"Ден \",ДенКалендар-DATE(YEAR(ДенКалендар),1,0)))","v":"Седмица 1/Ден 1"},{"$f":"IF(DAY(ДенКалендар)=1,CONCATENATE(\"Седмица \",WEEKNUM(ДенКалендар),\"/Ден \",ДенКалендар-DATE(YEAR(ДенКалендар),1,0)),CONCATENATE(\"Ден \",ДенКалендар-DATE(YEAR(ДенКалендар),1,0)))","v":"Ден 2"},{"$f":"IF(DAY(ДенКалендар)=1,CONCATENATE(\"Седмица \",WEEKNUM(ДенКалендар),\"/Ден \",ДенКалендар-DATE(YEAR(ДенКалендар),1,0)),CONCATENATE(\"Ден \",ДенКалендар-DATE(YEAR(ДенКалендар),1,0)))","v":"Ден 3"},{"$f":"IF(DAY(ДенКалендар)=1,CONCATENATE(\"Седмица \",WEEKNUM(ДенКалендар),\"/Ден \",ДенКалендар-DATE(YEAR(ДенКалендар),1,0)),CONCATENATE(\"Ден \",ДенКалендар-DATE(YEAR(ДенКалендар),1,0)))","v":"Ден 4"},{"$f":"IF(DAY(ДенКалендар)=1,CONCATENATE(\"Седмица \",WEEKNUM(ДенКалендар),\"/Ден \",ДенКалендар-DATE(YEAR(ДенКалендар),1,0)),CONCATENATE(\"Ден \",ДенКалендар-DATE(YEAR(ДенКалендар),1,0)))","v":"Ден 5"},{"$f":"IF(DAY(ДенКалендар)=1,CONCATENATE(\"Седмица \",WEEKNUM(ДенКалендар),\"/Ден \",ДенКалендар-DATE(YEAR(ДенКалендар),1,0)),CONCATENATE(\"Ден \",ДенКалендар-DATE(YEAR(ДенКалендар),1,0)))","v":"Ден 6"}]
[]
[null,null,{"$f":"ДниИСемици+DATE(ГодинаКалендар,1,1)-WEEKDAY(DATE(ГодинаКалендар,1,1),(НачалоСедмица=\"ПОН\")+1)+8","v":"2018-01-07"},"2018-01-08","2018-01-09","2018-01-10","2018-01-11","2018-01-12","2018-01-13"]
[null,null,{"$f":"IF(WEEKDAY(ДенКалендар)=СтойностНачалоСедмица,CONCATENATE(\"Седмица \",WEEKNUM(ДенКалендар),\"/Ден \",ДенКалендар-DATE(YEAR(ДенКалендар),1,0)),CONCATENATE(\"Ден \",ДенКалендар-DATE(YEAR(ДенКалендар),1,0)))","v":"Седмица 2/Ден 7"},{"$f":"IF(WEEKDAY(ДенКалендар)=СтойностНачалоСедмица,CONCATENATE(\"Седмица \",WEEKNUM(ДенКалендар),\"/Ден \",ДенКалендар-DATE(YEAR(ДенКалендар),1,0)),CONCATENATE(\"Ден \",ДенКалендар-DATE(YEAR(ДенКалендар),1,0)))","v":"Ден 8"},{"$f":"IF(WEEKDAY(ДенКалендар)=СтойностНачалоСедмица,CONCATENATE(\"Седмица \",WEEKNUM(ДенКалендар),\"/Ден \",ДенКалендар-DATE(YEAR(ДенКалендар),1,0)),CONCATENATE(\"Ден \",ДенКалендар-DATE(YEAR(ДенКалендар),1,0)))","v":"Ден 9"},{"$f":"IF(WEEKDAY(ДенКалендар)=СтойностНачалоСедмица,CONCATENATE(\"Седмица \",WEEKNUM(ДенКалендар),\"/Ден \",ДенКалендар-DATE(YEAR(ДенКалендар),1,0)),CONCATENATE(\"Ден \",ДенКалендар-DATE(YEAR(ДенКалендар),1,0)))","v":"Ден 10"},{"$f":"IF(WEEKDAY(ДенКалендар)=СтойностНачалоСедмица,CONCATENATE(\"Седмица \",WEEKNUM(ДенКалендар),\"/Ден \",ДенКалендар-DATE(YEAR(ДенКалендар),1,0)),CONCATENATE(\"Ден \",ДенКалендар-DATE(YEAR(ДенКалендар),1,0)))","v":"Ден 11"},{"$f":"IF(WEEKDAY(ДенКалендар)=СтойностНачалоСедмица,CONCATENATE(\"Седмица \",WEEKNUM(ДенКалендар),\"/Ден \",ДенКалендар-DATE(YEAR(ДенКалендар),1,0)),CONCATENATE(\"Ден \",ДенКалендар-DATE(YEAR(ДенКалендар),1,0)))","v":"Ден 12"},{"$f":"IF(WEEKDAY(ДенКалендар)=СтойностНачалоСедмица,CONCATENATE(\"Седмица \",WEEKNUM(ДенКалендар),\"/Ден \",ДенКалендар-DATE(YEAR(ДенКалендар),1,0)),CONCATENATE(\"Ден \",ДенКалендар-DATE(YEAR(ДенКалендар),1,0)))","v":"Ден 13"}]
[]
[null,null,{"$f":"ДниИСемици+DATE(ГодинаКалендар,1,1)-WEEKDAY(DATE(ГодинаКалендар,1,1),(НачалоСедмица=\"ПОН\")+1)+15","v":"2018-01-14"},"2018-01-15","2018-01-16","2018-01-17","2018-01-18","2018-01-19","2018-01-20"]
[null,null,{"$f":"IF(WEEKDAY(ДенКалендар)=СтойностНачалоСедмица,CONCATENATE(\"Седмица \",WEEKNUM(ДенКалендар),\"/Ден \",ДенКалендар-DATE(YEAR(ДенКалендар),1,0)),CONCATENATE(\"Ден \",ДенКалендар-DATE(YEAR(ДенКалендар),1,0)))","v":"Седмица 3/Ден 14"},{"$f":"IF(WEEKDAY(ДенКалендар)=СтойностНачалоСедмица,CONCATENATE(\"Седмица \",WEEKNUM(ДенКалендар),\"/Ден \",ДенКалендар-DATE(YEAR(ДенКалендар),1,0)),CONCATENATE(\"Ден \",ДенКалендар-DATE(YEAR(ДенКалендар),1,0)))","v":"Ден 15"},{"$f":"IF(WEEKDAY(ДенКалендар)=СтойностНачалоСедмица,CONCATENATE(\"Седмица \",WEEKNUM(ДенКалендар),\"/Ден \",ДенКалендар-DATE(YEAR(ДенКалендар),1,0)),CONCATENATE(\"Ден \",ДенКалендар-DATE(YEAR(ДенКалендар),1,0)))","v":"Ден 16"},{"$f":"IF(WEEKDAY(ДенКалендар)=СтойностНачалоСедмица,CONCATENATE(\"Седмица \",WEEKNUM(ДенКалендар),\"/Ден \",ДенКалендар-DATE(YEAR(ДенКалендар),1,0)),CONCATENATE(\"Ден \",ДенКалендар-DATE(YEAR(ДенКалендар),1,0)))","v":"Ден 17"},{"$f":"IF(WEEKDAY(ДенКалендар)=СтойностНачалоСедмица,CONCATENATE(\"Седмица \",WEEKNUM(ДенКалендар),\"/Ден \",ДенКалендар-DATE(YEAR(ДенКалендар),1,0)),CONCATENATE(\"Ден \",ДенКалендар-DATE(YEAR(ДенКалендар),1,0)))","v":"Ден 18"},{"$f":"IF(WEEKDAY(ДенКалендар)=СтойностНачалоСедмица,CONCATENATE(\"Седмица \",WEEKNUM(ДенКалендар),\"/Ден \",ДенКалендар-DATE(YEAR(ДенКалендар),1,0)),CONCATENATE(\"Ден \",ДенКалендар-DATE(YEAR(ДенКалендар),1,0)))","v":"Ден 19"},{"$f":"IF(WEEKDAY(ДенКалендар)=СтойностНачалоСедмица,CONCATENATE(\"Седмица \",WEEKNUM(ДенКалендар),\"/Ден \",ДенКалендар-DATE(YEAR(ДенКалендар),1,0)),CONCATENATE(\"Ден \",ДенКалендар-DATE(YEAR(ДенКалендар),1,0)))","v":"Ден 20"}]
[]
[null,null,{"$f":"ДниИСемици+DATE(ГодинаКалендар,1,1)-WEEKDAY(DATE(ГодинаКалендар,1,1),(НачалоСедмица=\"ПОН\")+1)+22","v":"2018-01-21"},"2018-01-22","2018-01-23","2018-01-24","2018-01-25","2018-01-26","2018-01-27"]
[null,null,{"$f":"IF(WEEKDAY(ДенКалендар)=СтойностНачалоСедмица,CONCATENATE(\"Седмица \",WEEKNUM(ДенКалендар),\"/Ден \",ДенКалендар-DATE(YEAR(ДенКалендар),1,0)),CONCATENATE(\"Ден \",ДенКалендар-DATE(YEAR(ДенКалендар),1,0)))","v":"Седмица 4/Ден 21"},{"$f":"IF(WEEKDAY(ДенКалендар)=СтойностНачалоСедмица,CONCATENATE(\"Седмица \",WEEKNUM(ДенКалендар),\"/Ден \",ДенКалендар-DATE(YEAR(ДенКалендар),1,0)),CONCATENATE(\"Ден \",ДенКалендар-DATE(YEAR(ДенКалендар),1,0)))","v":"Ден 22"},{"$f":"IF(WEEKDAY(ДенКалендар)=СтойностНачалоСедмица,CONCATENATE(\"Седмица \",WEEKNUM(ДенКалендар),\"/Ден \",ДенКалендар-DATE(YEAR(ДенКалендар),1,0)),CONCATENATE(\"Ден \",ДенКалендар-DATE(YEAR(ДенКалендар),1,0)))","v":"Ден 23"},{"$f":"IF(WEEKDAY(ДенКалендар)=СтойностНачалоСедмица,CONCATENATE(\"Седмица \",WEEKNUM(ДенКалендар),\"/Ден \",ДенКалендар-DATE(YEAR(ДенКалендар),1,0)),CONCATENATE(\"Ден \",ДенКалендар-DATE(YEAR(ДенКалендар),1,0)))","v":"Ден 24"},{"$f":"IF(WEEKDAY(ДенКалендар)=СтойностНачалоСедмица,CONCATENATE(\"Седмица \",WEEKNUM(ДенКалендар),\"/Ден \",ДенКалендар-DATE(YEAR(ДенКалендар),1,0)),CONCATENATE(\"Ден \",ДенКалендар-DATE(YEAR(ДенКалендар),1,0)))","v":"Ден 25"},{"$f":"IF(WEEKDAY(ДенКалендар)=СтойностНачалоСедмица,CONCATENATE(\"Седмица \",WEEKNUM(ДенКалендар),\"/Ден \",ДенКалендар-DATE(YEAR(ДенКалендар),1,0)),CONCATENATE(\"Ден \",ДенКалендар-DATE(YEAR(ДенКалендар),1,0)))","v":"Ден 26"},{"$f":"IF(WEEKDAY(ДенКалендар)=СтойностНачалоСедмица,CONCATENATE(\"Седмица \",WEEKNUM(ДенКалендар),\"/Ден \",ДенКалендар-DATE(YEAR(ДенКалендар),1,0)),CONCATENATE(\"Ден \",ДенКалендар-DATE(YEAR(ДенКалендар),1,0)))","v":"Ден 27"}]
[]
[null,null,{"$f":"ДниИСемици+DATE(ГодинаКалендар,1,1)-WEEKDAY(DATE(ГодинаКалендар,1,1),(НачалоСедмица=\"ПОН\")+1)+29","v":"2018-01-28"},"2018-01-29","2018-01-30","2018-01-31","2018-02-01","2018-02-02","2018-02-03"]
[null,null,{"$f":"IF(WEEKDAY(ДенКалендар)=СтойностНачалоСедмица,CONCATENATE(\"Седмица \",WEEKNUM(ДенКалендар),\"/Ден \",ДенКалендар-DATE(YEAR(ДенКалендар),1,0)),CONCATENATE(\"Ден \",ДенКалендар-DATE(YEAR(ДенКалендар),1,0)))","v":"Седмица 5/Ден 28"},{"$f":"IF(WEEKDAY(ДенКалендар)=СтойностНачалоСедмица,CONCATENATE(\"Седмица \",WEEKNUM(ДенКалендар),\"/Ден \",ДенКалендар-DATE(YEAR(ДенКалендар),1,0)),CONCATENATE(\"Ден \",ДенКалендар-DATE(YEAR(ДенКалендар),1,0)))","v":"Ден 29"},{"$f":"IF(WEEKDAY(ДенКалендар)=СтойностНачалоСедмица,CONCATENATE(\"Седмица \",WEEKNUM(ДенКалендар),\"/Ден \",ДенКалендар-DATE(YEAR(ДенКалендар),1,0)),CONCATENATE(\"Ден \",ДенКалендар-DATE(YEAR(ДенКалендар),1,0)))","v":"Ден 30"},{"$f":"IF(WEEKDAY(ДенКалендар)=СтойностНачалоСедмица,CONCATENATE(\"Седмица \",WEEKNUM(ДенКалендар),\"/Ден \",ДенКалендар-DATE(YEAR(ДенКалендар),1,0)),CONCATENATE(\"Ден \",ДенКалендар-DATE(YEAR(ДенКалендар),1,0)))","v":"Ден 31"},{"$f":"IF(WEEKDAY(ДенКалендар)=СтойностНачалоСедмица,CONCATENATE(\"Седмица \",WEEKNUM(ДенКалендар),\"/Ден \",ДенКалендар-DATE(YEAR(ДенКалендар),1,0)),CONCATENATE(\"Ден \",ДенКалендар-DATE(YEAR(ДенКалендар),1,0)))","v":"Ден 32"},{"$f":"IF(WEEKDAY(ДенКалендар)=СтойностНачалоСедмица,CONCATENATE(\"Седмица \",WEEKNUM(ДенКалендар),\"/Ден \",ДенКалендар-DATE(YEAR(ДенКалендар),1,0)),CONCATENATE(\"Ден \",ДенКалендар-DATE(YEAR(ДенКалендар),1,0)))","v":"Ден 33"},{"$f":"IF(WEEKDAY(ДенКалендар)=СтойностНачалоСедмица,CONCATENATE(\"Седмица \",WEEKNUM(ДенКалендар),\"/Ден \",ДенКалендар-DATE(YEAR(ДенКалендар),1,0)),CONCATENATE(\"Ден \",ДенКалендар-DATE(YEAR(ДенКалендар),1,0)))","v":"Ден 34"}]
[{"$nulls":4},"БЕЛЕЖКИ"]
[]
[null,null,{"$f":"ДниИСемици+DATE(ГодинаКалендар,1,1)-WEEKDAY(DATE(ГодинаКалендар,1,1),(НачалоСедмица=\"ПОН\")+1)+36","v":"2018-02-04"},"2018-02-05"]
[null,null,{"$f":"IF(WEEKDAY(ДенКалендар)=СтойностНачалоСедмица,CONCATENATE(\"Седмица \",WEEKNUM(ДенКалендар),\"/Ден \",ДенКалендар-DATE(YEAR(ДенКалендар),1,0)),CONCATENATE(\"Ден \",ДенКалендар-DATE(YEAR(ДенКалендар),1,0)))","v":"Седмица 6/Ден 35"},{"$f":"IF(WEEKDAY(ДенКалендар)=СтойностНачалоСедмица,CONCATENATE(\"Седмица \",WEEKNUM(ДенКалендар),\"/Ден \",ДенКалендар-DATE(YEAR(ДенКалендар),1,0)),CONCATENATE(\"Ден \",ДенКалендар-DATE(YEAR(ДенКалендар),1,0)))","v":"Ден 36"}]

{"sheet":"ФЕВ","index":1,"n_rows":20,"n_cols":9,"rows_kept":20,"merged":[[16,2,17,2],[17,4,19,8]]}
[null,"ФЕВ",{"$f":"UPPER(TEXT(НачалоСедмица,\"ddd\"))","v":"НЕД"},{"$f":"UPPER(TEXT(D3,\"aaa\"))","v":"MON"},"TUE","WED","THU","FRI","SAT"]
[null,{"$f":"ГодинаКалендар","v":2018}]
[null,null,{"$f":"ДниИСемици+DATE(ГодинаКалендар,2,1)-WEEKDAY(DATE(ГодинаКалендар,2,1),(НачалоСедмица=\"ПОН\")+1)+1","v":"2018-01-28"},"2018-01-29","2018-01-30","2018-01-31","2018-02-01","2018-02-02","2018-02-03"]
[null,null,{"$f":"IF(DAY(ДенКалендар)=1,CONCATENATE(\"Седмица \",WEEKNUM(ДенКалендар),\"/Ден \",ДенКалендар-DATE(YEAR(ДенКалендар),1,0)),CONCATENATE(\"Ден \",ДенКалендар-DATE(YEAR(ДенКалендар),1,0)))","v":"Ден 28"},{"$f":"IF(DAY(ДенКалендар)=1,CONCATENATE(\"Седмица \",WEEKNUM(ДенКалендар),\"/Ден \",ДенКалендар-DATE(YEAR(ДенКалендар),1,0)),CONCATENATE(\"Ден \",ДенКалендар-DATE(YEAR(ДенКалендар),1,0)))","v":"Ден 29"},{"$f":"IF(DAY(ДенКалендар)=1,CONCATENATE(\"Седмица \",WEEKNUM(ДенКалендар),\"/Ден \",ДенКалендар-DATE(YEAR(ДенКалендар),1,0)),CONCATENATE(\"Ден \",ДенКалендар-DATE(YEAR(ДенКалендар),1,0)))","v":"Ден 30"},{"$f":"IF(DAY(ДенКалендар)=1,CONCATENATE(\"Седмица \",WEEKNUM(ДенКалендар),\"/Ден \",ДенКалендар-DATE(YEAR(ДенКалендар),1,0)),CONCATENATE(\"Ден \",ДенКалендар-DATE(YEAR(ДенКалендар),1,0)))","v":"Ден 31"},{"$f":"IF(DAY(ДенКалендар)=1,CONCATENATE(\"Седмица \",WEEKNUM(ДенКалендар),\"/Ден \",ДенКалендар-DATE(YEAR(ДенКалендар),1,0)),CONCATENATE(\"Ден \",ДенКалендар-DATE(YEAR(ДенКалендар),1,0)))","v":"Седмица 5/Ден 32"},{"$f":"IF(DAY(ДенКалендар)=1,CONCATENATE(\"Седмица \",WEEKNUM(ДенКалендар),\"/Ден \",ДенКалендар-DATE(YEAR(ДенКалендар),1,0)),CONCATENATE(\"Ден \",ДенКалендар-DATE(YEAR(ДенКалендар),1,0)))","v":"Ден 33"},{"$f":"IF(DAY(ДенКалендар)=1,CONCATENATE(\"Седмица \",WEEKNUM(ДенКалендар),\"/Ден \",ДенКалендар-DATE(YEAR(ДенКалендар),1,0)),CONCATENATE(\"Ден \",ДенКалендар-DATE(YEAR(ДенКалендар),1,0)))","v":"Ден 34"}]
[]
[null,null,{"$f":"ДниИСемици+DATE(ГодинаКалендар,2,1)-WEEKDAY(DATE(ГодинаКалендар,2,1),(НачалоСедмица=\"ПОН\")+1)+8","v":"2018-02-04"},"2018-02-05","2018-02-06","2018-02-07","2018-02-08","2018-02-09","2018-02-10"]
[null,null,{"$f":"IF(WEEKDAY(ДенКалендар)=СтойностНачалоСедмица,CONCATENATE(\"Седмица \",WEEKNUM(ДенКалендар),\"/Ден \",ДенКалендар-DATE(YEAR(ДенКалендар),1,0)),CONCATENATE(\"Ден \",ДенКалендар-DATE(YEAR(ДенКалендар),1,0)))","v":"Седмица 6/Ден 35"},{"$f":"IF(WEEKDAY(ДенКалендар)=СтойностНачалоСедмица,CONCATENATE(\"Седмица \",WEEKNUM(ДенКалендар),\"/Ден \",ДенКалендар-DATE(YEAR(ДенКалендар),1,0)),CONCATENATE(\"Ден \",ДенКалендар-DATE(YEAR(ДенКалендар),1,0)))","v":"Ден 36"},{"$f":"IF(WEEKDAY(ДенКалендар)=СтойностНачалоСедмица,CONCATENATE(\"Седмица \",WEEKNUM(ДенКалендар),\"/Ден \",ДенКалендар-DATE(YEAR(ДенКалендар),1,0)),CONCATENATE(\"Ден \",ДенКалендар-DATE(YEAR(ДенКалендар),1,0)))","v":"Ден 37"},{"$f":"IF(WEEKDAY(ДенКалендар)=СтойностНачалоСедмица,CONCATENATE(\"Седмица \",WEEKNUM(ДенКалендар),\"/Ден \",ДенКалендар-DATE(YEAR(ДенКалендар),1,0)),CONCATENATE(\"Ден \",ДенКалендар-DATE(YEAR(ДенКалендар),1,0)))","v":"Ден 38"},{"$f":"IF(WEEKDAY(ДенКалендар)=СтойностНачалоСедмица,CONCATENATE(\"Седмица \",WEEKNUM(ДенКалендар),\"/Ден \",ДенКалендар-DATE(YEAR(ДенКалендар),1,0)),CONCATENATE(\"Ден \",ДенКалендар-DATE(YEAR(ДенКалендар),1,0)))","v":"Ден 39"},{"$f":"IF(WEEKDAY(ДенКалендар)=СтойностНачалоСедмица,CONCATENATE(\"Седмица \",WEEKNUM(ДенКалендар),\"/Ден \",ДенКалендар-DATE(YEAR(ДенКалендар),1,0)),CONCATENATE(\"Ден \",ДенКалендар-DATE(YEAR(ДенКалендар),1,0)))","v":"Ден 40"},{"$f":"IF(WEEKDAY(ДенКалендар)=СтойностНачалоСедмица,CONCATENATE(\"Седмица \",WEEKNUM(ДенКалендар),\"/Ден \",ДенКалендар-DATE(YEAR(ДенКалендар),1,0)),CONCATENATE(\"Ден \",ДенКалендар-DATE(YEAR(ДенКалендар),1,0)))","v":"Ден 41"}]
[]
[null,null,{"$f":"ДниИСемици+DATE(ГодинаКалендар,2,1)-WEEKDAY(DATE(ГодинаКалендар,2,1),(НачалоСедмица=\"ПОН\")+1)+15","v":"2018-02-11"},"2018-02-12","2018-02-13","2018-02-14","2018-02-15","2018-02-16","2018-02-17"]
[null,null,{"$f":"IF(WEEKDAY(ДенКалендар)=СтойностНачалоСедмица,CONCATENATE(\"Седмица \",WEEKNUM(ДенКалендар),\"/Ден \",ДенКалендар-DATE(YEAR(ДенКалендар),1,0)),CONCATENATE(\"Ден \",ДенКалендар-DATE(YEAR(ДенКалендар),1,0)))","v":"Седмица 7/Ден 42"},{"$f":"IF(WEEKDAY(ДенКалендар)=СтойностНачалоСедмица,CONCATENATE(\"Седмица \",WEEKNUM(ДенКалендар),\"/Ден \",ДенКалендар-DATE(YEAR(ДенКалендар),1,0)),CONCATENATE(\"Ден \",ДенКалендар-DATE(YEAR(ДенКалендар),1,0)))","v":"Ден 43"},{"$f":"IF(WEEKDAY(ДенКалендар)=СтойностНачалоСедмица,CONCATENATE(\"Седмица \",WEEKNUM(ДенКалендар),\"/Ден \",ДенКалендар-DATE(YEAR(ДенКалендар),1,0)),CONCATENATE(\"Ден \",ДенКалендар-DATE(YEAR(ДенКалендар),1,0)))","v":"Ден 44"},{"$f":"IF(WEEKDAY(ДенКалендар)=СтойностНачалоСедмица,CONCATENATE(\"Седмица \",WEEKNUM(ДенКалендар),\"/Ден \",ДенКалендар-DATE(YEAR(ДенКалендар),1,0)),CONCATENATE(\"Ден \",ДенКалендар-DATE(YEAR(ДенКалендар),1,0)))","v":"Ден 45"},{"$f":"IF(WEEKDAY(ДенКалендар)=СтойностНачалоСедмица,CONCATENATE(\"Седмица \",WEEKNUM(ДенКалендар),\"/Ден \",ДенКалендар-DATE(YEAR(ДенКалендар),1,0)),CONCATENATE(\"Ден \",ДенКалендар-DATE(YEAR(ДенКалендар),1,0)))","v":"Ден 46"},{"$f":"IF(WEEKDAY(ДенКалендар)=СтойностНачалоСедмица,CONCATENATE(\"Седмица \",WEEKNUM(ДенКалендар),\"/Ден \",ДенКалендар-DATE(YEAR(ДенКалендар),1,0)),CONCATENATE(\"Ден \",ДенКалендар-DATE(YEAR(ДенКалендар),1,0)))","v":"Ден 47"},{"$f":"IF(WEEKDAY(ДенКалендар)=СтойностНачалоСедмица,CONCATENATE(\"Седмица \",WEEKNUM(ДенКалендар),\"/Ден \",ДенКалендар-DATE(YEAR(ДенКалендар),1,0)),CONCATENATE(\"Ден \",ДенКалендар-DATE(YEAR(ДенКалендар),1,0)))","v":"Ден 48"}]
[]
[null,null,{"$f":"ДниИСемици+DATE(ГодинаКалендар,2,1)-WEEKDAY(DATE(ГодинаКалендар,2,1),(НачалоСедмица=\"ПОН\")+1)+22","v":"2018-02-18"},"2018-02-19","2018-02-20","2018-02-21","2018-02-22","2018-02-23","2018-02-24"]
[null,null,{"$f":"IF(WEEKDAY(ДенКалендар)=СтойностНачалоСедмица,CONCATENATE(\"Седмица \",WEEKNUM(ДенКалендар),\"/Ден \",ДенКалендар-DATE(YEAR(ДенКалендар),1,0)),CONCATENATE(\"Ден \",ДенКалендар-DATE(YEAR(ДенКалендар),1,0)))","v":"Седмица 8/Ден 49"},{"$f":"IF(WEEKDAY(ДенКалендар)=СтойностНачалоСедмица,CONCATENATE(\"Седмица \",WEEKNUM(ДенКалендар),\"/Ден \",ДенКалендар-DATE(YEAR(ДенКалендар),1,0)),CONCATENATE(\"Ден \",ДенКалендар-DATE(YEAR(ДенКалендар),1,0)))","v":"Ден 50"},{"$f":"IF(WEEKDAY(ДенКалендар)=СтойностНачалоСедмица,CONCATENATE(\"Седмица \",WEEKNUM(ДенКалендар),\"/Ден \",ДенКалендар-DATE(YEAR(ДенКалендар),1,0)),CONCATENATE(\"Ден \",ДенКалендар-DATE(YEAR(ДенКалендар),1,0)))","v":"Ден 51"},{"$f":"IF(WEEKDAY(ДенКалендар)=СтойностНачалоСедмица,CONCATENATE(\"Седмица \",WEEKNUM(ДенКалендар),\"/Ден \",ДенКалендар-DATE(YEAR(ДенКалендар),1,0)),CONCATENATE(\"Ден \",ДенКалендар-DATE(YEAR(ДенКалендар),1,0)))","v":"Ден 52"},{"$f":"IF(WEEKDAY(ДенКалендар)=СтойностНачалоСедмица,CONCATENATE(\"Седмица \",WEEKNUM(ДенКалендар),\"/Ден \",ДенКалендар-DATE(YEAR(ДенКалендар),1,0)),CONCATENATE(\"Ден \",ДенКалендар-DATE(YEAR(ДенКалендар),1,0)))","v":"Ден 53"},{"$f":"IF(WEEKDAY(ДенКалендар)=СтойностНачалоСедмица,CONCATENATE(\"Седмица \",WEEKNUM(ДенКалендар),\"/Ден \",ДенКалендар-DATE(YEAR(ДенКалендар),1,0)),CONCATENATE(\"Ден \",ДенКалендар-DATE(YEAR(ДенКалендар),1,0)))","v":"Ден 54"},{"$f":"IF(WEEKDAY(ДенКалендар)=СтойностНачалоСедмица,CONCATENATE(\"Седмица \",WEEKNUM(ДенКалендар),\"/Ден \",ДенКалендар-DATE(YEAR(ДенКалендар),1,0)),CONCATENATE(\"Ден \",ДенКалендар-DATE(YEAR(ДенКалендар),1,0)))","v":"Ден 55"}]
[]
[null,null,{"$f":"ДниИСемици+DATE(ГодинаКалендар,2,1)-WEEKDAY(DATE(ГодинаКалендар,2,1),(НачалоСедмица=\"ПОН\")+1)+29","v":"2018-02-25"},"2018-02-26","2018-02-27","2018-02-28","2018-03-01","2018-03-02","2018-03-03"]
[null,null,{"$f":"IF(WEEKDAY(ДенКалендар)=СтойностНачалоСедмица,CONCATENATE(\"Седмица \",WEEKNUM(ДенКалендар),\"/Ден \",ДенКалендар-DATE(YEAR(ДенКалендар),1,0)),CONCATENATE(\"Ден \",ДенКалендар-DATE(YEAR(ДенКалендар),1,0)))","v":"Седмица 9/Ден 56"},{"$f":"IF(WEEKDAY(ДенКалендар)=СтойностНачалоСедмица,CONCATENATE(\"Седмица \",WEEKNUM(ДенКалендар),\"/Ден \",ДенКалендар-DATE(YEAR(ДенКалендар),1,0)),CONCATENATE(\"Ден \",ДенКалендар-DATE(YEAR(ДенКалендар),1,0)))","v":"Ден 57"},{"$f":"IF(WEEKDAY(ДенКалендар)=СтойностНачалоСедмица,CONCATENATE(\"Седмица \",WEEKNUM(ДенКалендар),\"/Ден \",ДенКалендар-DATE(YEAR(ДенКалендар),1,0)),CONCATENATE(\"Ден \",ДенКалендар-DATE(YEAR(ДенКалендар),1,0)))","v":"Ден 58"},{"$f":"IF(WEEKDAY(ДенКалендар)=СтойностНачалоСедмица,CONCATENATE(\"Седмица \",WEEKNUM(ДенКалендар),\"/Ден \",ДенКалендар-DATE(YEAR(ДенКалендар),1,0)),CONCATENATE(\"Ден \",ДенКалендар-DATE(YEAR(ДенКалендар),1,0)))","v":"Ден 59"},{"$f":"IF(WEEKDAY(ДенКалендар)=СтойностНачалоСедмица,CONCATENATE(\"Седмица \",WEEKNUM(ДенКалендар),\"/Ден \",ДенКалендар-DATE(YEAR(ДенКалендар),1,0)),CONCATENATE(\"Ден \",ДенКалендар-DATE(YEAR(ДенКалендар),1,0)))","v":"Ден 60"},{"$f":"IF(WEEKDAY(ДенКалендар)=СтойностНачалоСедмица,CONCATENATE(\"Седмица \",WEEKNUM(ДенКалендар),\"/Ден \",ДенКалендар-DATE(YEAR(ДенКалендар),1,0)),CONCATENATE(\"Ден \",ДенКалендар-DATE(YEAR(ДенКалендар),1,0)))","v":"Ден 61"},{"$f":"IF(WEEKDAY(ДенКалендар)=СтойностНачалоСедмица,CONCATENATE(\"Седмица \",WEEKNUM(ДенКалендар),\"/Ден \",ДенКалендар-DATE(YEAR(ДенКалендар),1,0)),CONCATENATE(\"Ден \",ДенКалендар-DATE(YEAR(ДенКалендар),1,0)))","v":"Ден 62"}]
[{"$nulls":4},"БЕЛЕЖКИ"]
[]
[null,null,{"$f":"ДниИСемици+DATE(ГодинаКалендар,2,1)-WEEKDAY(DATE(ГодинаКалендар,2,1),(НачалоСедмица=\"ПОН\")+1)+36","v":"2018-03-04"},"2018-03-05"]
[null,null,{"$f":"IF(WEEKDAY(ДенКалендар)=СтойностНачалоСедмица,CONCATENATE(\"Седмица \",WEEKNUM(ДенКалендар),\"/Ден \",ДенКалендар-DATE(YEAR(ДенКалендар),1,0)),CONCATENATE(\"Ден \",ДенКалендар-DATE(YEAR(ДенКалендар),1,0)))","v":"Седмица 10/Ден 63"},{"$f":"IF(WEEKDAY(ДенКалендар)=СтойностНачалоСедмица,CONCATENATE(\"Седмица \",WEEKNUM(ДенКалендар),\"/Ден \",ДенКалендар-DATE(YEAR(ДенКалендар),1,0)),CONCATENATE(\"Ден \",ДенКалендар-DATE(YEAR(ДенКалендар),1,0)))","v":"Ден 64"}]

{"sheet":"МАР","index":2,"n_rows":20,"n_cols":9,"rows_kept":20,"merged":[[16,2,17,2],[17,4,19,8]]}
[null,"МАР",{"$f":"UPPER(TEXT(НачалоСедмица,\"ddd\"))","v":"НЕД"},{"$f":"UPPER(TEXT(D3,\"aaa\"))","v":"MON"},"TUE","WED","THU","FRI","SAT"]
[null,{"$f":"ГодинаКалендар","v":2018}]
[null,null,{"$f":"ДниИСемици+DATE(ГодинаКалендар,3,1)-WEEKDAY(DATE(ГодинаКалендар,3,1),(НачалоСедмица=\"ПОН\")+1)+1","v":"2018-02-25"},"2018-02-26","2018-02-27","2018-02-28","2018-03-01","2018-03-02","2018-03-03"]
[null,null,{"$f":"IF(DAY(ДенКалендар)=1,CONCATENATE(\"Седмица \",WEEKNUM(ДенКалендар),\"/Ден \",ДенКалендар-DATE(YEAR(ДенКалендар),1,0)),CONCATENATE(\"Ден \",ДенКалендар-DATE(YEAR(ДенКалендар),1,0)))","v":"Ден 56"},{"$f":"IF(DAY(ДенКалендар)=1,CONCATENATE(\"Седмица \",WEEKNUM(ДенКалендар),\"/Ден \",ДенКалендар-DATE(YEAR(ДенКалендар),1,0)),CONCATENATE(\"Ден \",ДенКалендар-DATE(YEAR(ДенКалендар),1,0)))","v":"Ден 57"},{"$f":"IF(DAY(ДенКалендар)=1,CONCATENATE(\"Седмица \",WEEKNUM(ДенКалендар),\"/Ден \",ДенКалендар-DATE(YEAR(ДенКалендар),1,0)),CONCATENATE(\"Ден \",ДенКалендар-DATE(YEAR(ДенКалендар),1,0)))","v":"Ден 58"},{"$f":"IF(DAY(ДенКалендар)=1,CONCATENATE(\"Седмица \",WEEKNUM(ДенКалендар),\"/Ден \",ДенКалендар-DATE(YEAR(ДенКалендар),1,0)),CONCATENATE(\"Ден \",ДенКалендар-DATE(YEAR(ДенКалендар),1,0)))","v":"Ден 59"},{"$f":"IF(DAY(ДенКалендар)=1,CONCATENATE(\"Седмица \",WEEKNUM(ДенКалендар),\"/Ден \",ДенКалендар-DATE(YEAR(ДенКалендар),1,0)),CONCATENATE(\"Ден \",ДенКалендар-DATE(YEAR(ДенКалендар),1,0)))","v":"Седмица 9/Ден 60"},{"$f":"IF(DAY(ДенКалендар)=1,CONCATENATE(\"Седмица \",WEEKNUM(ДенКалендар),\"/Ден \",ДенКалендар-DATE(YEAR(ДенКалендар),1,0)),CONCATENATE(\"Ден \",ДенКалендар-DATE(YEAR(ДенКалендар),1,0)))","v":"Ден 61"},{"$f":"IF(DAY(ДенКалендар)=1,CONCATENATE(\"Седмица \",WEEKNUM(ДенКалендар),\"/Ден \",ДенКалендар-DATE(YEAR(ДенКалендар),1,0)),CONCATENATE(\"Ден \",ДенКалендар-DATE(YEAR(ДенКалендар),1,0)))","v":"Ден 62"}]
[]
[null,null,{"$f":"ДниИСемици+DATE(ГодинаКалендар,3,1)-WEEKDAY(DATE(ГодинаКалендар,3,1),(НачалоСедмица=\"ПОН\")+1)+8","v":"2018-03-04"},"2018-03-05","2018-03-06","2018-03-07","2018-03-08","2018-03-09","2018-03-10"]
[null,null,{"$f":"IF(WEEKDAY(ДенКалендар)=СтойностНачалоСедмица,CONCATENATE(\"Седмица \",WEEKNUM(ДенКалендар),\"/Ден \",ДенКалендар-DATE(YEAR(ДенКалендар),1,0)),CONCATENATE(\"Ден \",ДенКалендар-DATE(YEAR(ДенКалендар),1,0)))","v":"Седмица 10/Ден 63"},{"$f":"IF(WEEKDAY(ДенКалендар)=СтойностНачалоСедмица,CONCATENATE(\"Седмица \",WEEKNUM(ДенКалендар),\"/Ден \",ДенКалендар-DATE(YEAR(ДенКалендар),1,0)),CONCATENATE(\"Ден \",ДенКалендар-DATE(YEAR(ДенКалендар),1,0)))","v":"Ден 64"},{"$f":"IF(WEEKDAY(ДенКалендар)=СтойностНачалоСедмица,CONCATENATE(\"Седмица \",WEEKNUM(ДенКалендар),\"/Ден \",ДенКалендар-DATE(YEAR(ДенКалендар),1,0)),CONCATENATE(\"Ден \",ДенКалендар-DATE(YEAR(ДенКалендар),1,0)))","v":"Ден 65"},{"$f":"IF(WEEKDAY(ДенКалендар)=СтойностНачалоСедмица,CONCATENATE(\"Седмица \",WEEKNUM(ДенКалендар),\"/Ден \",ДенКалендар-DATE(YEAR(ДенКалендар),1,0)),CONCATENATE(\"Ден \",ДенКалендар-DATE(YEAR(ДенКалендар),1,0)))","v":"Ден 66"},{"$f":"IF(WEEKDAY(ДенКалендар)=СтойностНачалоСедмица,CONCATENATE(\"Седмица \",WEEKNUM(ДенКалендар),\"/Ден \",ДенКалендар-DATE(YEAR(ДенКалендар),1,0)),CONCATENATE(\"Ден \",ДенКалендар-DATE(YEAR(ДенКалендар),1,0)))","v":"Ден 67"},{"$f":"IF(WEEKDAY(ДенКалендар)=СтойностНачалоСедмица,CONCATENATE(\"Седмица \",WEEKNUM(ДенКалендар),\"/Ден \",ДенКалендар-DATE(YEAR(ДенКалендар),1,0)),CONCATENATE(\"Ден \",ДенКалендар-DATE(YEAR(ДенКалендар),1,0)))","v":"Ден 68"},{"$f":"IF(WEEKDAY(ДенКалендар)=СтойностНачалоСедмица,CONCATENATE(\"Седмица \",WEEKNUM(ДенКалендар),\"/Ден \",ДенКалендар-DATE(YEAR(ДенКалендар),1,0)),CONCATENATE(\"Ден \",ДенКалендар-DATE(YEAR(ДенКалендар),1,0)))","v":"Ден 69"}]
[]
[null,null,{"$f":"ДниИСемици+DATE(ГодинаКалендар,3,1)-WEEKDAY(DATE(ГодинаКалендар,3,1),(НачалоСедмица=\"ПОН\")+1)+15","v":"2018-03-11"},"2018-03-12","2018-03-13","2018-03-14","2018-03-15","2018-03-16","2018-03-17"]
[null,null,{"$f":"IF(WEEKDAY(ДенКалендар)=СтойностНачалоСедмица,CONCATENATE(\"Седмица \",WEEKNUM(ДенКалендар),\"/Ден \",ДенКалендар-DATE(YEAR(ДенКалендар),1,0)),CONCATENATE(\"Ден \",ДенКалендар-DATE(YEAR(ДенКалендар),1,0)))","v":"Седмица 11/Ден 70"},{"$f":"IF(WEEKDAY(ДенКалендар)=СтойностНачалоСедмица,CONCATENATE(\"Седмица \",WEEKNUM(ДенКалендар),\"/Ден \",ДенКалендар-DATE(YEAR(ДенКалендар),1,0)),CONCATENATE(\"Ден \",ДенКалендар-DATE(YEAR(ДенКалендар),1,0)))","v":"Ден 71"},{"$f":"IF(WEEKDAY(ДенКалендар)=СтойностНачалоСедмица,CONCATENATE(\"Седмица \",WEEKNUM(ДенКалендар),\"/Ден \",ДенКалендар-DATE(YEAR(ДенКалендар),1,0)),CONCATENATE(\"Ден \",ДенКалендар-DATE(YEAR(ДенКалендар),1,0)))","v":"Ден 72"},{"$f":"IF(WEEKDAY(ДенКалендар)=СтойностНачалоСедмица,CONCATENATE(\"Седмица \",WEEKNUM(ДенКалендар),\"/Ден \",ДенКалендар-DATE(YEAR(ДенКалендар),1,0)),CONCATENATE(\"Ден \",ДенКалендар-DATE(YEAR(ДенКалендар),1,0)))","v":"Ден 73"},{"$f":"IF(WEEKDAY(ДенКалендар)=СтойностНачалоСедмица,CONCATENATE(\"Седмица \",WEEKNUM(ДенКалендар),\"/Ден \",ДенКалендар-DATE(YEAR(ДенКалендар),1,0)),CONCATENATE(\"Ден \",ДенКалендар-DATE(YEAR(ДенКалендар),1,0)))","v":"Ден 74"},{"$f":"IF(WEEKDAY(ДенКалендар)=СтойностНачалоСедмица,CONCATENATE(\"Седмица \",WEEKNUM(ДенКалендар),\"/Ден \",ДенКалендар-DATE(YEAR(ДенКалендар),1,0)),CONCATENATE(\"Ден \",ДенКалендар-DATE(YEAR(ДенКалендар),1,0)))","v":"Ден 75"},{"$f":"IF(WEEKDAY(ДенКалендар)=СтойностНачалоСедмица,CONCATENATE(\"Седмица \",WEEKNUM(ДенКалендар),\"/Ден \",ДенКалендар-DATE(YEAR(ДенКалендар),1,0)),CONCATENATE(\"Ден \",ДенКалендар-DATE(YEAR(ДенКалендар),1,0)))","v":"Ден 76"}]
[]
[null,null,{"$f":"ДниИСемици+DATE(ГодинаКалендар,3,1)-WEEKDAY(DATE(ГодинаКалендар,3,1),(НачалоСедмица=\"ПОН\")+1)+22","v":"2018-03-18"},"2018-03-19","2018-03-20","2018-03-21","2018-03-22","2018-03-23","2018-03-24"]
[null,null,{"$f":"IF(WEEKDAY(ДенКалендар)=СтойностНачалоСедмица,CONCATENATE(\"Седмица \",WEEKNUM(ДенКалендар),\"/Ден \",ДенКалендар-DATE(YEAR(ДенКалендар),1,0)),CONCATENATE(\"Ден \",ДенКалендар-DATE(YEAR(ДенКалендар),1,0)))","v":"Седмица 12/Ден 77"},{"$f":"IF(WEEKDAY(ДенКалендар)=СтойностНачалоСедмица,CONCATENATE(\"Седмица \",WEEKNUM(ДенКалендар),\"/Ден \",ДенКалендар-DATE(YEAR(ДенКалендар),1,0)),CONCATENATE(\"Ден \",ДенКалендар-DATE(YEAR(ДенКалендар),1,0)))","v":"Ден 78"},{"$f":"IF(WEEKDAY(ДенКалендар)=СтойностНачалоСедмица,CONCATENATE(\"Седмица \",WEEKNUM(ДенКалендар),\"/Ден \",ДенКалендар-DATE(YEAR(ДенКалендар),1,0)),CONCATENATE(\"Ден \",ДенКалендар-DATE(YEAR(ДенКалендар),1,0)))","v":"Ден 79"},{"$f":"IF(WEEKDAY(ДенКалендар)=СтойностНачалоСедмица,CONCATENATE(\"Седмица \",WEEKNUM(ДенКалендар),\"/Ден \",ДенКалендар-DATE(YEAR(ДенКалендар),1,0)),CONCATENATE(\"Ден \",ДенКалендар-DATE(YEAR(ДенКалендар),1,0)))","v":"Ден 80"},{"$f":"IF(WEEKDAY(ДенКалендар)=СтойностНачалоСедмица,CONCATENATE(\"Седмица \",WEEKNUM(ДенКалендар),\"/Ден \",ДенКалендар-DATE(YEAR(ДенКалендар),1,0)),CONCATENATE(\"Ден \",ДенКалендар-DATE(YEAR(ДенКалендар),1,0)))","v":"Ден 81"},{"$f":"IF(WEEKDAY(ДенКалендар)=СтойностНачалоСедмица,CONCATENATE(\"Седмица \",WEEKNUM(ДенКалендар),\"/Ден \",ДенКалендар-DATE(YEAR(ДенКалендар),1,0)),CONCATENATE(\"Ден \",ДенКалендар-DATE(YEAR(ДенКалендар),1,0)))","v":"Ден 82"},{"$f":"IF(WEEKDAY(ДенКалендар)=СтойностНачалоСедмица,CONCATENATE(\"Седмица \",WEEKNUM(ДенКалендар),\"/Ден \",ДенКалендар-DATE(YEAR(ДенКалендар),1,0)),CONCATENATE(\"Ден \",ДенКалендар-DATE(YEAR(ДенКалендар),1,0)))","v":"Ден 83"}]
[]
[null,null,{"$f":"ДниИСемици+DATE(ГодинаКалендар,3,1)-WEEKDAY(DATE(ГодинаКалендар,3,1),(НачалоСедмица=\"ПОН\")+1)+29","v":"2018-03-25"},"2018-03-26","2018-03-27","2018-03-28","2018-03-29","2018-03-30","2018-03-31"]
[null,null,{"$f":"IF(WEEKDAY(ДенКалендар)=СтойностНачалоСедмица,CONCATENATE(\"Седмица \",WEEKNUM(ДенКалендар),\"/Ден \",ДенКалендар-DATE(YEAR(ДенКалендар),1,0)),CONCATENATE(\"Ден \",ДенКалендар-DATE(YEAR(ДенКалендар),1,0)))","v":"Седмица 13/Ден 84"},{"$f":"IF(WEEKDAY(ДенКалендар)=СтойностНачалоСедмица,CONCATENATE(\"Седмица \",WEEKNUM(ДенКалендар),\"/Ден \",ДенКалендар-DATE(YEAR(ДенКалендар),1,0)),CONCATENATE(\"Ден \",ДенКалендар-DATE(YEAR(ДенКалендар),1,0)))","v":"Ден 85"},{"$f":"IF(WEEKDAY(ДенКалендар)=СтойностНачалоСедмица,CONCATENATE(\"Седмица \",WEEKNUM(ДенКалендар),\"/Ден \",ДенКалендар-DATE(YEAR(ДенКалендар),1,0)),CONCATENATE(\"Ден \",ДенКалендар-DATE(YEAR(ДенКалендар),1,0)))","v":"Ден 86"},{"$f":"IF(WEEKDAY(ДенКалендар)=СтойностНачалоСедмица,CONCATENATE(\"Седмица \",WEEKNUM(ДенКалендар),\"/Ден \",ДенКалендар-DATE(YEAR(ДенКалендар),1,0)),CONCATENATE(\"Ден \",ДенКалендар-DATE(YEAR(ДенКалендар),1,0)))","v":"Ден 87"},{"$f":"IF(WEEKDAY(ДенКалендар)=СтойностНачалоСедмица,CONCATENATE(\"Седмица \",WEEKNUM(ДенКалендар),\"/Ден \",ДенКалендар-DATE(YEAR(ДенКалендар),1,0)),CONCATENATE(\"Ден \",ДенКалендар-DATE(YEAR(ДенКалендар),1,0)))","v":"Ден 88"},{"$f":"IF(WEEKDAY(ДенКалендар)=СтойностНачалоСедмица,CONCATENATE(\"Седмица \",WEEKNUM(ДенКалендар),\"/Ден \",ДенКалендар-DATE(YEAR(ДенКалендар),1,0)),CONCATENATE(\"Ден \",ДенКалендар-DATE(YEAR(ДенКалендар),1,0)))","v":"Ден 89"},{"$f":"IF(WEEKDAY(ДенКалендар)=СтойностНачалоСедмица,CONCATENATE(\"Седмица \",WEEKNUM(ДенКалендар),\"/Ден \",ДенКалендар-DATE(YEAR(ДенКалендар),1,0)),CONCATENATE(\"Ден \",ДенКалендар-DATE(YEAR(ДенКалендар),1,0)))","v":"Ден 90"}]
[{"$nulls":4},"БЕЛЕЖКИ"]
[]
[null,null,{"$f":"ДниИСемици+DATE(ГодинаКалендар,3,1)-WEEKDAY(DATE(ГодинаКалендар,3,1),(НачалоСедмица=\"ПОН\")+1)+36","v":"2018-04-01"},"2018-04-02"]
[null,null,{"$f":"IF(WEEKDAY(ДенКалендар)=СтойностНачалоСедмица,CONCATENATE(\"Седмица \",WEEKNUM(ДенКалендар),\"/Ден \",ДенКалендар-DATE(YEAR(ДенКалендар),1,0)),CONCATENATE(\"Ден \",ДенКалендар-DATE(YEAR(ДенКалендар),1,0)))","v":"Седмица 14/Ден 91"},{"$f":"IF(WEEKDAY(ДенКалендар)=СтойностНачалоСедмица,CONCATENATE(\"Седмица \",WEEKNUM(ДенКалендар),\"/Ден \",ДенКалендар-DATE(YEAR(ДенКалендар),1,0)),CONCATENATE(\"Ден \",ДенКалендар-DATE(YEAR(ДенКалендар),1,0)))","v":"Ден 92"}]

{"sheet":"АПР","index":3,"n_rows":20,"n_cols":9,"rows_kept":20,"merged":[[16,2,17,2],[17,4,19,8]]}
[null,"АПР",{"$f":"UPPER(TEXT(НачалоСедмица,\"ddd\"))","v":"НЕД"},{"$f":"UPPER(TEXT(D3,\"aaa\"))","v":"MON"},"TUE","WED","THU","FRI","SAT"]
[null,{"$f":"ГодинаКалендар","v":2018}]
[null,null,{"$f":"ДниИСемици+DATE(ГодинаКалендар,4,1)-WEEKDAY(DATE(ГодинаКалендар,4,1),(НачалоСедмица=\"ПОН\")+1)+1","v":"2018-04-01"},"2018-04-02","2018-04-03","2018-04-04","2018-04-05","2018-04-06","2018-04-07"]
[null,null,{"$f":"IF(DAY(ДенКалендар)=1,CONCATENATE(\"Седмица \",WEEKNUM(ДенКалендар),\"/Ден \",ДенКалендар-DATE(YEAR(ДенКалендар),1,0)),CONCATENATE(\"Ден \",ДенКалендар-DATE(YEAR(ДенКалендар),1,0)))","v":"Седмица 14/Ден 91"},{"$f":"IF(DAY(ДенКалендар)=1,CONCATENATE(\"Седмица \",WEEKNUM(ДенКалендар),\"/Ден \",ДенКалендар-DATE(YEAR(ДенКалендар),1,0)),CONCATENATE(\"Ден \",ДенКалендар-DATE(YEAR(ДенКалендар),1,0)))","v":"Ден 92"},{"$f":"IF(DAY(ДенКалендар)=1,CONCATENATE(\"Седмица \",WEEKNUM(ДенКалендар),\"/Ден \",ДенКалендар-DATE(YEAR(ДенКалендар),1,0)),CONCATENATE(\"Ден \",ДенКалендар-DATE(YEAR(ДенКалендар),1,0)))","v":"Ден 93"},{"$f":"IF(DAY(ДенКалендар)=1,CONCATENATE(\"Седмица \",WEEKNUM(ДенКалендар),\"/Ден \",ДенКалендар-DATE(YEAR(ДенКалендар),1,0)),CONCATENATE(\"Ден \",ДенКалендар-DATE(YEAR(ДенКалендар),1,0)))","v":"Ден 94"},{"$f":"IF(DAY(ДенКалендар)=1,CONCATENATE(\"Седмица \",WEEKNUM(ДенКалендар),\"/Ден \",ДенКалендар-DATE(YEAR(ДенКалендар),1,0)),CONCATENATE(\"Ден \",ДенКалендар-DATE(YEAR(ДенКалендар),1,0)))","v":"Ден 95"},{"$f":"IF(DAY(ДенКалендар)=1,CONCATENATE(\"Седмица \",WEEKNUM(ДенКалендар),\"/Ден \",ДенКалендар-DATE(YEAR(ДенКалендар),1,0)),CONCATENATE(\"Ден \",ДенКалендар-DATE(YEAR(ДенКалендар),1,0)))","v":"Ден 96"},{"$f":"IF(DAY(ДенКалендар)=1,CONCATENATE(\"Седмица \",WEEKNUM(ДенКалендар),\"/Ден \",ДенКалендар-DATE(YEAR(ДенКалендар),1,0)),CONCATENATE(\"Ден \",ДенКалендар-DATE(YEAR(ДенКалендар),1,0)))","v":"Ден 97"}]
[]
[null,null,{"$f":"ДниИСемици+DATE(ГодинаКалендар,4,1)-WEEKDAY(DATE(ГодинаКалендар,4,1),(НачалоСедмица=\"ПОН\")+1)+8","v":"2018-04-08"},"2018-04-09","2018-04-10","2018-04-11","2018-04-12","2018-04-13","2018-04-14"]
[null,null,{"$f":"IF(WEEKDAY(ДенКалендар)=СтойностНачалоСедмица,CONCATENATE(\"Седмица \",WEEKNUM(ДенКалендар),\"/Ден \",ДенКалендар-DATE(YEAR(ДенКалендар),1,0)),CONCATENATE(\"Ден \",ДенКалендар-DATE(YEAR(ДенКалендар),1,0)))","v":"Седмица 15/Ден 98"},{"$f":"IF(WEEKDAY(ДенКалендар)=СтойностНачалоСедмица,CONCATENATE(\"Седмица \",WEEKNUM(ДенКалендар),\"/Ден \",ДенКалендар-DATE(YEAR(ДенКалендар),1,0)),CONCATENATE(\"Ден \",ДенКалендар-DATE(YEAR(ДенКалендар),1,0)))","v":"Ден 99"},{"$f":"IF(WEEKDAY(ДенКалендар)=СтойностНачалоСедмица,CONCATENATE(\"Седмица \",WEEKNUM(ДенКалендар),\"/Ден \",ДенКалендар-DATE(YEAR(ДенКалендар),1,0)),CONCATENATE(\"Ден \",ДенКалендар-DATE(YEAR(ДенКалендар),1,0)))","v":"Ден 100"},{"$f":"IF(WEEKDAY(ДенКалендар)=СтойностНачалоСедмица,CONCATENATE(\"Седмица \",WEEKNUM(ДенКалендар),\"/Ден \",ДенКалендар-DATE(YEAR(ДенКалендар),1,0)),CONCATENATE(\"Ден \",ДенКалендар-DATE(YEAR(ДенКалендар),1,0)))","v":"Ден 101"},{"$f":"IF(WEEKDAY(ДенКалендар)=СтойностНачалоСедмица,CONCATENATE(\"Седмица \",WEEKNUM(ДенКалендар),\"/Ден \",ДенКалендар-DATE(YEAR(ДенКалендар),1,0)),CONCATENATE(\"Ден \",ДенКалендар-DATE(YEAR(ДенКалендар),1,0)))","v":"Ден 102"},{"$f":"IF(WEEKDAY(ДенКалендар)=СтойностНачалоСедмица,CONCATENATE(\"Седмица \",WEEKNUM(ДенКалендар),\"/Ден \",ДенКалендар-DATE(YEAR(ДенКалендар),1,0)),CONCATENATE(\"Ден \",ДенКалендар-DATE(YEAR(ДенКалендар),1,0)))","v":"Ден 103"},{"$f":"IF(WEEKDAY(ДенКалендар)=СтойностНачалоСедмица,CONCATENATE(\"Седмица \",WEEKNUM(ДенКалендар),\"/Ден \",ДенКалендар-DATE(YEAR(ДенКалендар),1,0)),CONCATENATE(\"Ден \",ДенКалендар-DATE(YEAR(ДенКалендар),1,0)))","v":"Ден 104"}]
[]
[null,null,{"$f":"ДниИСемици+DATE(ГодинаКалендар,4,1)-WEEKDAY(DATE(ГодинаКалендар,4,1),(НачалоСедмица=\"ПОН\")+1)+15","v":"2018-04-15"},"2018-04-16","2018-04-17","2018-04-18","2018-04-19","2018-04-20","2018-04-21"]
[null,null,{"$f":"IF(WEEKDAY(ДенКалендар)=СтойностНачалоСедмица,CONCATENATE(\"Седмица \",WEEKNUM(ДенКалендар),\"/Ден \",ДенКалендар-DATE(YEAR(ДенКалендар),1,0)),CONCATENATE(\"Ден \",ДенКалендар-DATE(YEAR(ДенКалендар),1,0)))","v":"Седмица 16/Ден 105"},{"$f":"IF(WEEKDAY(ДенКалендар)=СтойностНачалоСедмица,CONCATENATE(\"Седмица \",WEEKNUM(ДенКалендар),\"/Ден \",ДенКалендар-DATE(YEAR(ДенКалендар),1,0)),CONCATENATE(\"Ден \",ДенКалендар-DATE(YEAR(ДенКалендар),1,0)))","v":"Ден 106"},{"$f":"IF(WEEKDAY(ДенКалендар)=СтойностНачалоСедмица,CONCATENATE(\"Седмица \",WEEKNUM(ДенКалендар),\"/Ден \",ДенКалендар-DATE(YEAR(ДенКалендар),1,0)),CONCATENATE(\"Ден \",ДенКалендар-DATE(YEAR(ДенКалендар),1,0)))","v":"Ден 107"},{"$f":"IF(WEEKDAY(ДенКалендар)=СтойностНачалоСедмица,CONCATENATE(\"Седмица \",WEEKNUM(ДенКалендар),\"/Ден \",ДенКалендар-DATE(YEAR(ДенКалендар),1,0)),CONCATENATE(\"Ден \",ДенКалендар-DATE(YEAR(ДенКалендар),1,0)))","v":"Ден 108"},{"$f":"IF(WEEKDAY(ДенКалендар)=СтойностНачалоСедмица,CONCATENATE(\"Седмица \",WEEKNUM(ДенКалендар),\"/Ден \",ДенКалендар-DATE(YEAR(ДенКалендар),1,0)),CONCATENATE(\"Ден \",ДенКалендар-DATE(YEAR(ДенКалендар),1,0)))","v":"Ден 109"},{"$f":"IF(WEEKDAY(ДенКалендар)=СтойностНачалоСедмица,CONCATENATE(\"Седмица \",WEEKNUM(ДенКалендар),\"/Ден \",ДенКалендар-DATE(YEAR(ДенКалендар),1,0)),CONCATENATE(\"Ден \",ДенКалендар-DATE(YEAR(ДенКалендар),1,0)))","v":"Ден 110"},{"$f":"IF(WEEKDAY(ДенКалендар)=СтойностНачалоСедмица,CONCATENATE(\"Седмица \",WEEKNUM(ДенКалендар),\"/Ден \",ДенКалендар-DATE(YEAR(ДенКалендар),1,0)),CONCATENATE(\"Ден \",ДенКалендар-DATE(YEAR(ДенКалендар),1,0)))","v":"Ден 111"}]
[]
[null,null,{"$f":"ДниИСемици+DATE(ГодинаКалендар,4,1)-WEEKDAY(DATE(ГодинаКалендар,4,1),(НачалоСедмица=\"ПОН\")+1)+22","v":"2018-04-22"},"2018-04-23","2018-04-24","2018-04-25","2018-04-26","2018-04-27","2018-04-28"]
[null,null,{"$f":"IF(WEEKDAY(ДенКалендар)=СтойностНачалоСедмица,CONCATENATE(\"Седмица \",WEEKNUM(ДенКалендар),\"/Ден \",ДенКалендар-DATE(YEAR(ДенКалендар),1,0)),CONCATENATE(\"Ден \",ДенКалендар-DATE(YEAR(ДенКалендар),1,0)))","v":"Седмица 17/Ден 112"},{"$f":"IF(WEEKDAY(ДенКалендар)=СтойностНачалоСедмица,CONCATENATE(\"Седмица \",WEEKNUM(ДенКалендар),\"/Ден \",ДенКалендар-DATE(YEAR(ДенКалендар),1,0)),CONCATENATE(\"Ден \",ДенКалендар-DATE(YEAR(ДенКалендар),1,0)))","v":"Ден 113"},{"$f":"IF(WEEKDAY(ДенКалендар)=СтойностНачалоСедмица,CONCATENATE(\"Седмица \",WEEKNUM(ДенКалендар),\"/Ден \",ДенКалендар-DATE(YEAR(ДенКалендар),1,0)),CONCATENATE(\"Ден \",ДенКалендар-DATE(YEAR(ДенКалендар),1,0)))","v":"Ден 114"},{"$f":"IF(WEEKDAY(ДенКалендар)=СтойностНачалоСедмица,CONCATENATE(\"Седмица \",WEEKNUM(ДенКалендар),\"/Ден \",ДенКалендар-DATE(YEAR(ДенКалендар),1,0)),CONCATENATE(\"Ден \",ДенКалендар-DATE(YEAR(ДенКалендар),1,0)))","v":"Ден 115"},{"$f":"IF(WEEKDAY(ДенКалендар)=СтойностНачалоСедмица,CONCATENATE(\"Седмица \",WEEKNUM(ДенКалендар),\"/Ден \",ДенКалендар-DATE(YEAR(ДенКалендар),1,0)),CONCATENATE(\"Ден \",ДенКалендар-DATE(YEAR(ДенКалендар),1,0)))","v":"Ден 116"},{"$f":"IF(WEEKDAY(ДенКалендар)=СтойностНачалоСедмица,CONCATENATE(\"Седмица \",WEEKNUM(ДенКалендар),\"/Ден \",ДенКалендар-DATE(YEAR(ДенКалендар),1,0)),CONCATENATE(\"Ден \",ДенКалендар-DATE(YEAR(ДенКалендар),1,0)))","v":"Ден 117"},{"$f":"IF(WEEKDAY(ДенКалендар)=СтойностНачалоСедмица,CONCATENATE(\"Седмица \",WEEKNUM(ДенКалендар),\"/Ден \",ДенКалендар-DATE(YEAR(ДенКалендар),1,0)),CONCATENATE(\"Ден \",ДенКалендар-DATE(YEAR(ДенКалендар),1,0)))","v":"Ден 118"}]
[]
[null,null,{"$f":"ДниИСемици+DATE(ГодинаКалендар,4,1)-WEEKDAY(DATE(ГодинаКалендар,4,1),(НачалоСедмица=\"ПОН\")+1)+29","v":"2018-04-29"},"2018-04-30","2018-05-01","2018-05-02","2018-05-03","2018-05-04","2018-05-05"]
[null,null,{"$f":"IF(WEEKDAY(ДенКалендар)=СтойностНачалоСедмица,CONCATENATE(\"Седмица \",WEEKNUM(ДенКалендар),\"/Ден \",ДенКалендар-DATE(YEAR(ДенКалендар),1,0)),CONCATENATE(\"Ден \",ДенКалендар-DATE(YEAR(ДенКалендар),1,0)))","v":"Седмица 18/Ден 119"},{"$f":"IF(WEEKDAY(ДенКалендар)=СтойностНачалоСедмица,CONCATENATE(\"Седмица \",WEEKNUM(ДенКалендар),\"/Ден \",ДенКалендар-DATE(YEAR(ДенКалендар),1,0)),CONCATENATE(\"Ден \",ДенКалендар-DATE(YEAR(ДенКалендар),1,0)))","v":"Ден 120"},{"$f":"IF(WEEKDAY(ДенКалендар)=СтойностНачалоСедмица,CONCATENATE(\"Седмица \",WEEKNUM(ДенКалендар),\"/Ден \",ДенКалендар-DATE(YEAR(ДенКалендар),1,0)),CONCATENATE(\"Ден \",ДенКалендар-DATE(YEAR(ДенКалендар),1,0)))","v":"Ден 121"},{"$f":"IF(WEEKDAY(ДенКалендар)=СтойностНачалоСедмица,CONCATENATE(\"Седмица \",WEEKNUM(ДенКалендар),\"/Ден \",ДенКалендар-DATE(YEAR(ДенКалендар),1,0)),CONCATENATE(\"Ден \",ДенКалендар-DATE(YEAR(ДенКалендар),1,0)))","v":"Ден 122"},{"$f":"IF(WEEKDAY(ДенКалендар)=СтойностНачалоСедмица,CONCATENATE(\"Седмица \",WEEKNUM(ДенКалендар),\"/Ден \",ДенКалендар-DATE(YEAR(ДенКалендар),1,0)),CONCATENATE(\"Ден \",ДенКалендар-DATE(YEAR(ДенКалендар),1,0)))","v":"Ден 123"},{"$f":"IF(WEEKDAY(ДенКалендар)=СтойностНачалоСедмица,CONCATENATE(\"Седмица \",WEEKNUM(ДенКалендар),\"/Ден \",ДенКалендар-DATE(YEAR(ДенКалендар),1,0)),CONCATENATE(\"Ден \",ДенКалендар-DATE(YEAR(ДенКалендар),1,0)))","v":"Ден 124"},{"$f":"IF(WEEKDAY(ДенКалендар)=СтойностНачалоСедмица,CONCATENATE(\"Седмица \",WEEKNUM(ДенКалендар),\"/Ден \",ДенКалендар-DATE(YEAR(ДенКалендар),1,0)),CONCATENATE(\"Ден \",ДенКалендар-DATE(YEAR(ДенКалендар),1,0)))","v":"Ден 125"}]
[{"$nulls":4},"БЕЛЕЖКИ"]
[]
[null,null,{"$f":"ДниИСемици+DATE(ГодинаКалендар,4,1)-WEEKDAY(DATE(ГодинаКалендар,4,1),(НачалоСедмица=\"ПОН\")+1)+36","v":"2018-05-06"},"2018-05-07"]
[null,null,{"$f":"IF(WEEKDAY(ДенКалендар)=СтойностНачалоСедмица,CONCATENATE(\"Седмица \",WEEKNUM(ДенКалендар),\"/Ден \",ДенКалендар-DATE(YEAR(ДенКалендар),1,0)),CONCATENATE(\"Ден \",ДенКалендар-DATE(YEAR(ДенКалендар),1,0)))","v":"Седмица 19/Ден 126"},{"$f":"IF(WEEKDAY(ДенКалендар)=СтойностНачалоСедмица,CONCATENATE(\"Седмица \",WEEKNUM(ДенКалендар),\"/Ден \",ДенКалендар-DATE(YEAR(ДенКалендар),1,0)),CONCATENATE(\"Ден \",ДенКалендар-DATE(YEAR(ДенКалендар),1,0)))","v":"Ден 127"}]

{"sheet":"МАЙ","index":4,"n_rows":20,"n_cols":9,"rows_kept":20,"merged":[[16,2,17,2],[17,4,19,8]]}
[null,"МАЙ",{"$f":"UPPER(TEXT(НачалоСедмица,\"ddd\"))","v":"НЕД"},{"$f":"UPPER(TEXT(D3,\"aaa\"))","v":"MON"},"TUE","WED","THU","FRI","SAT"]
[null,{"$f":"ГодинаКалендар","v":2018}]
[null,null,{"$f":"ДниИСемици+DATE(ГодинаКалендар,5,1)-WEEKDAY(DATE(ГодинаКалендар,5,1),(НачалоСедмица=\"ПОН\")+1)+1","v":"2018-04-29"},"2018-04-30","2018-05-01","2018-05-02","2018-05-03","2018-05-04","2018-05-05"]
[null,null,{"$f":"IF(DAY(ДенКалендар)=1,CONCATENATE(\"Седмица \",WEEKNUM(ДенКалендар),\"/Ден \",ДенКалендар-DATE(YEAR(ДенКалендар),1,0)),CONCATENATE(\"Ден \",ДенКалендар-DATE(YEAR(ДенКалендар),1,0)))","v":"Ден 119"},{"$f":"IF(DAY(ДенКалендар)=1,CONCATENATE(\"Седмица \",WEEKNUM(ДенКалендар),\"/Ден \",ДенКалендар-DATE(YEAR(ДенКалендар),1,0)),CONCATENATE(\"Ден \",ДенКалендар-DATE(YEAR(ДенКалендар),1,0)))","v":"Ден 120"},{"$f":"IF(DAY(ДенКалендар)=1,CONCATENATE(\"Седмица \",WEEKNUM(ДенКалендар),\"/Ден \",ДенКалендар-DATE(YEAR(ДенКалендар),1,0)),CONCATENATE(\"Ден \",ДенКалендар-DATE(YEAR(ДенКалендар),1,0)))","v":"Седмица 18/Ден 121"},{"$f":"IF(DAY(ДенКалендар)=1,CONCATENATE(\"Седмица \",WEEKNUM(ДенКалендар),\"/Ден \",ДенКалендар-DATE(YEAR(ДенКалендар),1,0)),CONCATENATE(\"Ден \",ДенКалендар-DATE(YEAR(ДенКалендар),1,0)))","v":"Ден 122"},{"$f":"IF(DAY(ДенКалендар)=1,CONCATENATE(\"Седмица \",WEEKNUM(ДенКалендар),\"/Ден \",ДенКалендар-DATE(YEAR(ДенКалендар),1,0)),CONCATENATE(\"Ден \",ДенКалендар-DATE(YEAR(ДенКалендар),1,0)))","v":"Ден 123"},{"$f":"IF(DAY(ДенКалендар)=1,CONCATENATE(\"Седмица \",WEEKNUM(ДенКалендар),\"/Ден \",ДенКалендар-DATE(YEAR(ДенКалендар),1,0)),CONCATENATE(\"Ден \",ДенКалендар-DATE(YEAR(ДенКалендар),1,0)))","v":"Ден 124"},{"$f":"IF(DAY(ДенКалендар)=1,CONCATENATE(\"Седмица \",WEEKNUM(ДенКалендар),\"/Ден \",ДенКалендар-DATE(YEAR(ДенКалендар),1,0)),CONCATENATE(\"Ден \",ДенКалендар-DATE(YEAR(ДенКалендар),1,0)))","v":"Ден 125"}]
[]
[null,null,{"$f":"ДниИСемици+DATE(ГодинаКалендар,5,1)-WEEKDAY(DATE(ГодинаКалендар,5,1),(НачалоСедмица=\"ПОН\")+1)+8","v":"2018-05-06"},"2018-05-07","2018-05-08","2018-05-09","2018-05-10","2018-05-11","2018-05-12"]
[null,null,{"$f":"IF(WEEKDAY(ДенКалендар)=СтойностНачалоСедмица,CONCATENATE(\"Седмица \",WEEKNUM(ДенКалендар),\"/Ден \",ДенКалендар-DATE(YEAR(ДенКалендар),1,0)),CONCATENATE(\"Ден \",ДенКалендар-DATE(YEAR(ДенКалендар),1,0)))","v":"Седмица 19/Ден 126"},{"$f":"IF(WEEKDAY(ДенКалендар)=СтойностНачалоСедмица,CONCATENATE(\"Седмица \",WEEKNUM(ДенКалендар),\"/Ден \",ДенКалендар-DATE(YEAR(ДенКалендар),1,0)),CONCATENATE(\"Ден \",ДенКалендар-DATE(YEAR(ДенКалендар),1,0)))","v":"Ден 127"},{"$f":"IF(WEEKDAY(ДенКалендар)=СтойностНачалоСедмица,CONCATENATE(\"Седмица \",WEEKNUM(ДенКалендар),\"/Ден \",ДенКалендар-DATE(YEAR(ДенКалендар),1,0)),CONCATENATE(\"Ден \",ДенКалендар-DATE(YEAR(ДенКалендар),1,0)))","v":"Ден 128"},{"$f":"IF(WEEKDAY(ДенКалендар)=СтойностНачалоСедмица,CONCATENATE(\"Седмица \",WEEKNUM(ДенКалендар),\"/Ден \",ДенКалендар-DATE(YEAR(ДенКалендар),1,0)),CONCATENATE(\"Ден \",ДенКалендар-DATE(YEAR(ДенКалендар),1,0)))","v":"Ден 129"},{"$f":"IF(WEEKDAY(ДенКалендар)=СтойностНачалоСедмица,CONCATENATE(\"Седмица \",WEEKNUM(ДенКалендар),\"/Ден \",ДенКалендар-DATE(YEAR(ДенКалендар),1,0)),CONCATENATE(\"Ден \",ДенКалендар-DATE(YEAR(ДенКалендар),1,0)))","v":"Ден 130"},{"$f":"IF(WEEKDAY(ДенКалендар)=СтойностНачалоСедмица,CONCATENATE(\"Седмица \",WEEKNUM(ДенКалендар),\"/Ден \",ДенКалендар-DATE(YEAR(ДенКалендар),1,0)),CONCATENATE(\"Ден \",ДенКалендар-DATE(YEAR(ДенКалендар),1,0)))","v":"Ден 131"},{"$f":"IF(WEEKDAY(ДенКалендар)=СтойностНачалоСедмица,CONCATENATE(\"Седмица \",WEEKNUM(ДенКалендар),\"/Ден \",ДенКалендар-DATE(YEAR(ДенКалендар),1,0)),CONCATENATE(\"Ден \",ДенКалендар-DATE(YEAR(ДенКалендар),1,0)))","v":"Ден 132"}]
[]
[null,null,{"$f":"ДниИСемици+DATE(ГодинаКалендар,5,1)-WEEKDAY(DATE(ГодинаКалендар,5,1),(НачалоСедмица=\"ПОН\")+1)+15","v":"2018-05-13"},"2018-05-14","2018-05-15","2018-05-16","2018-05-17","2018-05-18","2018-05-19"]
[null,null,{"$f":"IF(WEEKDAY(ДенКалендар)=СтойностНачалоСедмица,CONCATENATE(\"Седмица \",WEEKNUM(ДенКалендар),\"/Ден \",ДенКалендар-DATE(YEAR(ДенКалендар),1,0)),CONCATENATE(\"Ден \",ДенКалендар-DATE(YEAR(ДенКалендар),1,0)))","v":"Седмица 20/Ден 133"},{"$f":"IF(WEEKDAY(ДенКалендар)=СтойностНачалоСедмица,CONCATENATE(\"Седмица \",WEEKNUM(ДенКалендар),\"/Ден \",ДенКалендар-DATE(YEAR(ДенКалендар),1,0)),CONCATENATE(\"Ден \",ДенКалендар-DATE(YEAR(ДенКалендар),1,0)))","v":"Ден 134"},{"$f":"IF(WEEKDAY(ДенКалендар)=СтойностНачалоСедмица,CONCATENATE(\"Седмица \",WEEKNUM(ДенКалендар),\"/Ден \",ДенКалендар-DATE(YEAR(ДенКалендар),1,0)),CONCATENATE(\"Ден \",ДенКалендар-DATE(YEAR(ДенКалендар),1,0)))","v":"Ден 135"},{"$f":"IF(WEEKDAY(ДенКалендар)=СтойностНачалоСедмица,CONCATENATE(\"Седмица \",WEEKNUM(ДенКалендар),\"/Ден \",ДенКалендар-DATE(YEAR(ДенКалендар),1,0)),CONCATENATE(\"Ден \",ДенКалендар-DATE(YEAR(ДенКалендар),1,0)))","v":"Ден 136"},{"$f":"IF(WEEKDAY(ДенКалендар)=СтойностНачалоСедмица,CONCATENATE(\"Седмица \",WEEKNUM(ДенКалендар),\"/Ден \",ДенКалендар-DATE(YEAR(ДенКалендар),1,0)),CONCATENATE(\"Ден \",ДенКалендар-DATE(YEAR(ДенКалендар),1,0)))","v":"Ден 137"},{"$f":"IF(WEEKDAY(ДенКалендар)=СтойностНачалоСедмица,CONCATENATE(\"Седмица \",WEEKNUM(ДенКалендар),\"/Ден \",ДенКалендар-DATE(YEAR(ДенКалендар),1,0)),CONCATENATE(\"Ден \",ДенКалендар-DATE(YEAR(ДенКалендар),1,0)))","v":"Ден 138"},{"$f":"IF(WEEKDAY(ДенКалендар)=СтойностНачалоСедмица,CONCATENATE(\"Седмица \",WEEKNUM(ДенКалендар),\"/Ден \",ДенКалендар-DATE(YEAR(ДенКалендар),1,0)),CONCATENATE(\"Ден \",ДенКалендар-DATE(YEAR(ДенКалендар),1,0)))","v":"Ден 139"}]
[]
[null,null,{"$f":"ДниИСемици+DATE(ГодинаКалендар,5,1)-WEEKDAY(DATE(ГодинаКалендар,5,1),(НачалоСедмица=\"ПОН\")+1)+22","v":"2018-05-20"},"2018-05-21","2018-05-22","2018-05-23","2018-05-24","2018-05-25","2018-05-26"]
[null,null,{"$f":"IF(WEEKDAY(ДенКалендар)=СтойностНачалоСедмица,CONCATENATE(\"Седмица \",WEEKNUM(ДенКалендар),\"/Ден \",ДенКалендар-DATE(YEAR(ДенКалендар),1,0)),CONCATENATE(\"Ден \",ДенКалендар-DATE(YEAR(ДенКалендар),1,0)))","v":"Седмица 21/Ден 140"},{"$f":"IF(WEEKDAY(ДенКалендар)=СтойностНачалоСедмица,CONCATENATE(\"Седмица \",WEEKNUM(ДенКалендар),\"/Ден \",ДенКалендар-DATE(YEAR(ДенКалендар),1,0)),CONCATENATE(\"Ден \",ДенКалендар-DATE(YEAR(ДенКалендар),1,0)))","v":"Ден 141"},{"$f":"IF(WEEKDAY(ДенКалендар)=СтойностНачалоСедмица,CONCATENATE(\"Седмица \",WEEKNUM(ДенКалендар),\"/Ден \",ДенКалендар-DATE(YEAR(ДенКалендар),1,0)),CONCATENATE(\"Ден \",ДенКалендар-DATE(YEAR(ДенКалендар),1,0)))","v":"Ден 142"},{"$f":"IF(WEEKDAY(ДенКалендар)=СтойностНачалоСедмица,CONCATENATE(\"Седмица \",WEEKNUM(ДенКалендар),\"/Ден \",ДенКалендар-DATE(YEAR(ДенКалендар),1,0)),CONCATENATE(\"Ден \",ДенКалендар-DATE(YEAR(ДенКалендар),1,0)))","v":"Ден 143"},{"$f":"IF(WEEKDAY(ДенКалендар)=СтойностНачалоСедмица,CONCATENATE(\"Седмица \",WEEKNUM(ДенКалендар),\"/Ден \",ДенКалендар-DATE(YEAR(ДенКалендар),1,0)),CONCATENATE(\"Ден \",ДенКалендар-DATE(YEAR(ДенКалендар),1,0)))","v":"Ден 144"},{"$f":"IF(WEEKDAY(ДенКалендар)=СтойностНачалоСедмица,CONCATENATE(\"Седмица \",WEEKNUM(ДенКалендар),\"/Ден \",ДенКалендар-DATE(YEAR(ДенКалендар),1,0)),CONCATENATE(\"Ден \",ДенКалендар-DATE(YEAR(ДенКалендар),1,0)))","v":"Ден 145"},{"$f":"IF(WEEKDAY(ДенКалендар)=СтойностНачалоСедмица,CONCATENATE(\"Седмица \",WEEKNUM(ДенКалендар),\"/Ден \",ДенКалендар-DATE(YEAR(ДенКалендар),1,0)),CONCATENATE(\"Ден \",ДенКалендар-DATE(YEAR(ДенКалендар),1,0)))","v":"Ден 146"}]
[]
[null,null,{"$f":"ДниИСемици+DATE(ГодинаКалендар,5,1)-WEEKDAY(DATE(ГодинаКалендар,5,1),(НачалоСедмица=\"ПОН\")+1)+29","v":"2018-05-27"},"2018-05-28","2018-05-29","2018-05-30","2018-05-31","2018-06-01","2018-06-02"]
[null,null,{"$f":"IF(WEEKDAY(ДенКалендар)=СтойностНачалоСедмица,CONCATENATE(\"Седмица \",WEEKNUM(ДенКалендар),\"/Ден \",ДенКалендар-DATE(YEAR(ДенКалендар),1,0)),CONCATENATE(\"Ден \",ДенКалендар-DATE(YEAR(ДенКалендар),1,0)))","v":"Седмица 22/Ден 147"},{"$f":"IF(WEEKDAY(ДенКалендар)=СтойностНачалоСедмица,CONCATENATE(\"Седмица \",WEEKNUM(ДенКалендар),\"/Ден \",ДенКалендар-DATE(YEAR(ДенКалендар),1,0)),CONCATENATE(\"Ден \",ДенКалендар-DATE(YEAR(ДенКалендар),1,0)))","v":"Ден 148"},{"$f":"IF(WEEKDAY(ДенКалендар)=СтойностНачалоСедмица,CONCATENATE(\"Седмица \",WEEKNUM(ДенКалендар),\"/Ден \",ДенКалендар-DATE(YEAR(ДенКалендар),1,0)),CONCATENATE(\"Ден \",ДенКалендар-DATE(YEAR(ДенКалендар),1,0)))","v":"Ден 149"},{"$f":"IF(WEEKDAY(ДенКалендар)=СтойностНачалоСедмица,CONCATENATE(\"Седмица \",WEEKNUM(ДенКалендар),\"/Ден \",ДенКалендар-DATE(YEAR(ДенКалендар),1,0)),CONCATENATE(\"Ден \",ДенКалендар-DATE(YEAR(ДенКалендар),1,0)))","v":"Ден 150"},{"$f":"IF(WEEKDAY(ДенКалендар)=СтойностНачалоСедмица,CONCATENATE(\"Седмица \",WEEKNUM(ДенКалендар),\"/Ден \",ДенКалендар-DATE(YEAR(ДенКалендар),1,0)),CONCATENATE(\"Ден \",ДенКалендар-DATE(YEAR(ДенКалендар),1,0)))","v":"Ден 151"},{"$f":"IF(WEEKDAY(ДенКалендар)=СтойностНачалоСедмица,CONCATENATE(\"Седмица \",WEEKNUM(ДенКалендар),\"/Ден \",ДенКалендар-DATE(YEAR(ДенКалендар),1,0)),CONCATENATE(\"Ден \",ДенКалендар-DATE(YEAR(ДенКалендар),1,0)))","v":"Ден 152"},{"$f":"IF(WEEKDAY(ДенКалендар)=СтойностНачалоСедмица,CONCATENATE(\"Седмица \",WEEKNUM(ДенКалендар),\"/Ден \",ДенКалендар-DATE(YEAR(ДенКалендар),1,0)),CONCATENATE(\"Ден \",ДенКалендар-DATE(YEAR(ДенКалендар),1,0)))","v":"Ден 153"}]
[{"$nulls":4},"БЕЛЕЖКИ"]
[]
[null,null,{"$f":"ДниИСемици+DATE(ГодинаКалендар,5,1)-WEEKDAY(DATE(ГодинаКалендар,5,1),(НачалоСедмица=\"ПОН\")+1)+36","v":"2018-06-03"},"2018-06-04"]
[null,null,{"$f":"IF(WEEKDAY(ДенКалендар)=СтойностНачалоСедмица,CONCATENATE(\"Седмица \",WEEKNUM(ДенКалендар),\"/Ден \",ДенКалендар-DATE(YEAR(ДенКалендар),1,0)),CONCATENATE(\"Ден \",ДенКалендар-DATE(YEAR(ДенКалендар),1,0)))","v":"Седмица 23/Ден 154"},{"$f":"IF(WEEKDAY(ДенКалендар)=СтойностНачалоСедмица,CONCATENATE(\"Седмица \",WEEKNUM(ДенКалендар),\"/Ден \",ДенКалендар-DATE(YEAR(ДенКалендар),1,0)),CONCATENATE(\"Ден \",ДенКалендар-DATE(YEAR(ДенКалендар),1,0)))","v":"Ден 155"}]

{"sheet":"ЮНИ","index":5,"n_rows":20,"n_cols":9,"rows_kept":20,"merged":[[16,2,17,2],[17,4,19,8]]}
[null,"ЮНИ",{"$f":"UPPER(TEXT(НачалоСедмица,\"ddd\"))","v":"НЕД"},{"$f":"UPPER(TEXT(D3,\"aaa\"))","v":"MON"},"TUE","WED","THU","FRI","SAT"]
[null,{"$f":"ГодинаКалендар","v":2018}]
[null,null,{"$f":"ДниИСемици+DATE(ГодинаКалендар,6,1)-WEEKDAY(DATE(ГодинаКалендар,6,1),(НачалоСедмица=\"ПОН\")+1)+1","v":"2018-05-27"},"2018-05-28","2018-05-29","2018-05-30","2018-05-31","2018-06-01","2018-06-02"]
[null,null,{"$f":"IF(DAY(ДенКалендар)=1,CONCATENATE(\"Седмица \",WEEKNUM(ДенКалендар),\"/Ден \",ДенКалендар-DATE(YEAR(ДенКалендар),1,0)),CONCATENATE(\"Ден \",ДенКалендар-DATE(YEAR(ДенКалендар),1,0)))","v":"Ден 147"},{"$f":"IF(DAY(ДенКалендар)=1,CONCATENATE(\"Седмица \",WEEKNUM(ДенКалендар),\"/Ден \",ДенКалендар-DATE(YEAR(ДенКалендар),1,0)),CONCATENATE(\"Ден \",ДенКалендар-DATE(YEAR(ДенКалендар),1,0)))","v":"Ден 148"},{"$f":"IF(DAY(ДенКалендар)=1,CONCATENATE(\"Седмица \",WEEKNUM(ДенКалендар),\"/Ден \",ДенКалендар-DATE(YEAR(ДенКалендар),1,0)),CONCATENATE(\"Ден \",ДенКалендар-DATE(YEAR(ДенКалендар),1,0)))","v":"Ден 149"},{"$f":"IF(DAY(ДенКалендар)=1,CONCATENATE(\"Седмица \",WEEKNUM(ДенКалендар),\"/Ден \",ДенКалендар-DATE(YEAR(ДенКалендар),1,0)),CONCATENATE(\"Ден \",ДенКалендар-DATE(YEAR(ДенКалендар),1,0)))","v":"Ден 150"},{"$f":"IF(DAY(ДенКалендар)=1,CONCATENATE(\"Седмица \",WEEKNUM(ДенКалендар),\"/Ден \",ДенКалендар-DATE(YEAR(ДенКалендар),1,0)),CONCATENATE(\"Ден \",ДенКалендар-DATE(YEAR(ДенКалендар),1,0)))","v":"Ден 151"},{"$f":"IF(DAY(ДенКалендар)=1,CONCATENATE(\"Седмица \",WEEKNUM(ДенКалендар),\"/Ден \",ДенКалендар-DATE(YEAR(ДенКалендар),1,0)),CONCATENATE(\"Ден \",ДенКалендар-DATE(YEAR(ДенКалендар),1,0)))","v":"Седмица 22/Ден 152"},{"$f":"IF(DAY(ДенКалендар)=1,CONCATENATE(\"Седмица \",WEEKNUM(ДенКалендар),\"/Ден \",ДенКалендар-DATE(YEAR(ДенКалендар),1,0)),CONCATENATE(\"Ден \",ДенКалендар-DATE(YEAR(ДенКалендар),1,0)))","v":"Ден 153"}]
[]
[null,null,{"$f":"ДниИСемици+DATE(ГодинаКалендар,6,1)-WEEKDAY(DATE(ГодинаКалендар,6,1),(НачалоСедмица=\"ПОН\")+1)+8","v":"2018-06-03"},"2018-06-04","2018-06-05","2018-06-06","2018-06-07","2018-06-08","2018-06-09"]
[null,null,{"$f":"IF(WEEKDAY(ДенКалендар)=СтойностНачалоСедмица,CONCATENATE(\"Седмица \",WEEKNUM(ДенКалендар),\"/Ден \",ДенКалендар-DATE(YEAR(ДенКалендар),1,0)),CONCATENATE(\"Ден \",ДенКалендар-DATE(YEAR(ДенКалендар),1,0)))","v":"Седмица 23/Ден 154"},{"$f":"IF(WEEKDAY(ДенКалендар)=СтойностНачалоСедмица,CONCATENATE(\"Седмица \",WEEKNUM(ДенКалендар),\"/Ден \",ДенКалендар-DATE(YEAR(ДенКалендар),1,0)),CONCATENATE(\"Ден \",ДенКалендар-DATE(YEAR(ДенКалендар),1,0)))","v":"Ден 155"},{"$f":"IF(WEEKDAY(ДенКалендар)=СтойностНачалоСедмица,CONCATENATE(\"Седмица \",WEEKNUM(ДенКалендар),\"/Ден \",ДенКалендар-DATE(YEAR(ДенКалендар),1,0)),CONCATENATE(\"Ден \",ДенКалендар-DATE(YEAR(ДенКалендар),1,0)))","v":"Ден 156"},{"$f":"IF(WEEKDAY(ДенКалендар)=СтойностНачалоСедмица,CONCATENATE(\"Седмица \",WEEKNUM(ДенКалендар),\"/Ден \",ДенКалендар-DATE(YEAR(ДенКалендар),1,0)),CONCATENATE(\"Ден \",ДенКалендар-DATE(YEAR(ДенКалендар),1,0)))","v":"Ден 157"},{"$f":"IF(WEEKDAY(ДенКалендар)=СтойностНачалоСедмица,CONCATENATE(\"Седмица \",WEEKNUM(ДенКалендар),\"/Ден \",ДенКалендар-DATE(YEAR(ДенКалендар),1,0)),CONCATENATE(\"Ден \",ДенКалендар-DATE(YEAR(ДенКалендар),1,0)))","v":"Ден 158"},{"$f":"IF(WEEKDAY(ДенКалендар)=СтойностНачалоСедмица,CONCATENATE(\"Седмица \",WEEKNUM(ДенКалендар),\"/Ден \",ДенКалендар-DATE(YEAR(ДенКалендар),1,0)),CONCATENATE(\"Ден \",ДенКалендар-DATE(YEAR(ДенКалендар),1,0)))","v":"Ден 159"},{"$f":"IF(WEEKDAY(ДенКалендар)=СтойностНачалоСедмица,CONCATENATE(\"Седмица \",WEEKNUM(ДенКалендар),\"/Ден \",ДенКалендар-DATE(YEAR(ДенКалендар),1,0)),CONCATENATE(\"Ден \",ДенКалендар-DATE(YEAR(ДенКалендар),1,0)))","v":"Ден 160"}]
[]
[null,null,{"$f":"ДниИСемици+DATE(ГодинаКалендар,6,1)-WEEKDAY(DATE(ГодинаКалендар,6,1),(НачалоСедмица=\"ПОН\")+1)+15","v":"2018-06-10"},"2018-06-11","2018-06-12","2018-06-13","2018-06-14","2018-06-15","2018-06-16"]
[null,null,{"$f":"IF(WEEKDAY(ДенКалендар)=СтойностНачалоСедмица,CONCATENATE(\"Седмица \",WEEKNUM(ДенКалендар),\"/Ден \",ДенКалендар-DATE(YEAR(ДенКалендар),1,0)),CONCATENATE(\"Ден \",ДенКалендар-DATE(YEAR(ДенКалендар),1,0)))","v":"Седмица 24/Ден 161"},{"$f":"IF(WEEKDAY(ДенКалендар)=СтойностНачалоСедмица,CONCATENATE(\"Седмица \",WEEKNUM(ДенКалендар),\"/Ден \",ДенКалендар-DATE(YEAR(ДенКалендар),1,0)),CONCATENATE(\"Ден \",ДенКалендар-DATE(YEAR(ДенКалендар),1,0)))","v":"Ден 162"},{"$f":"IF(WEEKDAY(ДенКалендар)=СтойностНачалоСедмица,CONCATENATE(\"Седмица \",WEEKNUM(ДенКалендар),\"/Ден \",ДенКалендар-DATE(YEAR(ДенКалендар),1,0)),CONCATENATE(\"Ден \",ДенКалендар-DATE(YEAR(ДенКалендар),1,0)))","v":"Ден 163"},{"$f":"IF(WEEKDAY(ДенКалендар)=СтойностНачалоСедмица,CONCATENATE(\"Седмица \",WEEKNUM(ДенКалендар),\"/Ден \",ДенКалендар-DATE(YEAR(ДенКалендар),1,0)),CONCATENATE(\"Ден \",ДенКалендар-DATE(YEAR(ДенКалендар),1,0)))","v":"Ден 164"},{"$f":"IF(WEEKDAY(ДенКалендар)=СтойностНачалоСедмица,CONCATENATE(\"Седмица \",WEEKNUM(ДенКалендар),\"/Ден \",ДенКалендар-DATE(YEAR(ДенКалендар),1,0)),CONCATENATE(\"Ден \",ДенКалендар-DATE(YEAR(ДенКалендар),1,0)))","v":"Ден 165"},{"$f":"IF(WEEKDAY(ДенКалендар)=СтойностНачалоСедмица,CONCATENATE(\"Седмица \",WEEKNUM(ДенКалендар),\"/Ден \",ДенКалендар-DATE(YEAR(ДенКалендар),1,0)),CONCATENATE(\"Ден \",ДенКалендар-DATE(YEAR(ДенКалендар),1,0)))","v":"Ден 166"},{"$f":"IF(WEEKDAY(ДенКалендар)=СтойностНачалоСедмица,CONCATENATE(\"Седмица \",WEEKNUM(ДенКалендар),\"/Ден \",ДенКалендар-DATE(YEAR(ДенКалендар),1,0)),CONCATENATE(\"Ден \",ДенКалендар-DATE(YEAR(ДенКалендар),1,0)))","v":"Ден 167"}]
[]
[null,null,{"$f":"ДниИСемици+DATE(ГодинаКалендар,6,1)-WEEKDAY(DATE(ГодинаКалендар,6,1),(НачалоСедмица=\"ПОН\")+1)+22","v":"2018-06-17"},"2018-06-18","2018-06-19","2018-06-20","2018-06-21","2018-06-22","2018-06-23"]
[null,null,{"$f":"IF(WEEKDAY(ДенКалендар)=СтойностНачалоСедмица,CONCATENATE(\"Седмица \",WEEKNUM(ДенКалендар),\"/Ден \",ДенКалендар-DATE(YEAR(ДенКалендар),1,0)),CONCATENATE(\"Ден \",ДенКалендар-DATE(YEAR(ДенКалендар),1,0)))","v":"Седмица 25/Ден 168"},{"$f":"IF(WEEKDAY(ДенКалендар)=СтойностНачалоСедмица,CONCATENATE(\"Седмица \",WEEKNUM(ДенКалендар),\"/Ден \",ДенКалендар-DATE(YEAR(ДенКалендар),1,0)),CONCATENATE(\"Ден \",ДенКалендар-DATE(YEAR(ДенКалендар),1,0)))","v":"Ден 169"},{"$f":"IF(WEEKDAY(ДенКалендар)=СтойностНачалоСедмица,CONCATENATE(\"Седмица \",WEEKNUM(ДенКалендар),\"/Ден \",ДенКалендар-DATE(YEAR(ДенКалендар),1,0)),CONCATENATE(\"Ден \",ДенКалендар-DATE(YEAR(ДенКалендар),1,0)))","v":"Ден 170"},{"$f":"IF(WEEKDAY(ДенКалендар)=СтойностНачалоСедмица,CONCATENATE(\"Седмица \",WEEKNUM(ДенКалендар),\"/Ден \",ДенКалендар-DATE(YEAR(ДенКалендар),1,0)),CONCATENATE(\"Ден \",ДенКалендар-DATE(YEAR(ДенКалендар),1,0)))","v":"Ден 171"},{"$f":"IF(WEEKDAY(ДенКалендар)=СтойностНачалоСедмица,CONCATENATE(\"Седмица \",WEEKNUM(ДенКалендар),\"/Ден \",ДенКалендар-DATE(YEAR(ДенКалендар),1,0)),CONCATENATE(\"Ден \",ДенКалендар-DATE(YEAR(ДенКалендар),1,0)))","v":"Ден 172"},{"$f":"IF(WEEKDAY(ДенКалендар)=СтойностНачалоСедмица,CONCATENATE(\"Седмица \",WEEKNUM(ДенКалендар),\"/Ден \",ДенКалендар-DATE(YEAR(ДенКалендар),1,0)),CONCATENATE(\"Ден \",ДенКалендар-DATE(YEAR(ДенКалендар),1,0)))","v":"Ден 173"},{"$f":"IF(WEEKDAY(ДенКалендар)=СтойностНачалоСедмица,CONCATENATE(\"Седмица \",WEEKNUM(ДенКалендар),\"/Ден \",ДенКалендар-DATE(YEAR(ДенКалендар),1,0)),CONCATENATE(\"Ден \",ДенКалендар-DATE(YEAR(ДенКалендар),1,0)))","v":"Ден 174"}]
[]
[null,null,{"$f":"ДниИСемици+DATE(ГодинаКалендар,6,1)-WEEKDAY(DATE(ГодинаКалендар,6,1),(НачалоСедмица=\"ПОН\")+1)+29","v":"2018-06-24"},"2018-06-25","2018-06-26","2018-06-27","2018-06-28","2018-06-29","2018-06-30"]
[null,null,{"$f":"IF(WEEKDAY(ДенКалендар)=СтойностНачалоСедмица,CONCATENATE(\"Седмица \",WEEKNUM(ДенКалендар),\"/Ден \",ДенКалендар-DATE(YEAR(ДенКалендар),1,0)),CONCATENATE(\"Ден \",ДенКалендар-DATE(YEAR(ДенКалендар),1,0)))","v":"Седмица 26/Ден 175"},{"$f":"IF(WEEKDAY(ДенКалендар)=СтойностНачалоСедмица,CONCATENATE(\"Седмица \",WEEKNUM(ДенКалендар),\"/Ден \",ДенКалендар-DATE(YEAR(ДенКалендар),1,0)),CONCATENATE(\"Ден \",ДенКалендар-DATE(YEAR(ДенКалендар),1,0)))","v":"Ден 176"},{"$f":"IF(WEEKDAY(ДенКалендар)=СтойностНачалоСедмица,CONCATENATE(\"Седмица \",WEEKNUM(ДенКалендар),\"/Ден \",ДенКалендар-DATE(YEAR(ДенКалендар),1,0)),CONCATENATE(\"Ден \",ДенКалендар-DATE(YEAR(ДенКалендар),1,0)))","v":"Ден 177"},{"$f":"IF(WEEKDAY(ДенКалендар)=СтойностНачалоСедмица,CONCATENATE(\"Седмица \",WEEKNUM(ДенКалендар),\"/Ден \",ДенКалендар-DATE(YEAR(ДенКалендар),1,0)),CONCATENATE(\"Ден \",ДенКалендар-DATE(YEAR(ДенКалендар),1,0)))","v":"Ден 178"},{"$f":"IF(WEEKDAY(ДенКалендар)=СтойностНачалоСедмица,CONCATENATE(\"Седмица \",WEEKNUM(ДенКалендар),\"/Ден \",ДенКалендар-DATE(YEAR(ДенКалендар),1,0)),CONCATENATE(\"Ден \",ДенКалендар-DATE(YEAR(ДенКалендар),1,0)))","v":"Ден 179"},{"$f":"IF(WEEKDAY(ДенКалендар)=СтойностНачалоСедмица,CONCATENATE(\"Седмица \",WEEKNUM(ДенКалендар),\"/Ден \",ДенКалендар-DATE(YEAR(ДенКалендар),1,0)),CONCATENATE(\"Ден \",ДенКалендар-DATE(YEAR(ДенКалендар),1,0)))","v":"Ден 180"},{"$f":"IF(WEEKDAY(ДенКалендар)=СтойностНачалоСедмица,CONCATENATE(\"Седмица \",WEEKNUM(ДенКалендар),\"/Ден \",ДенКалендар-DATE(YEAR(ДенКалендар),1,0)),CONCATENATE(\"Ден \",ДенКалендар-DATE(YEAR(ДенКалендар),1,0)))","v":"Ден 181"}]
[{"$nulls":4},"БЕЛЕЖКИ"]
[]
[null,null,{"$f":"ДниИСемици+DATE(ГодинаКалендар,6,1)-WEEKDAY(DATE(ГодинаКалендар,6,1),(НачалоСедмица=\"ПОН\")+1)+36","v":"2018-07-01"},"2018-07-02"]
[null,null,{"$f":"IF(WEEKDAY(ДенКалендар)=СтойностНачалоСедмица,CONCATENATE(\"Седмица \",WEEKNUM(ДенКалендар),\"/Ден \",ДенКалендар-DATE(YEAR(ДенКалендар),1,0)),CONCATENATE(\"Ден \",ДенКалендар-DATE(YEAR(ДенКалендар),1,0)))","v":"Седмица 27/Ден 182"},{"$f":"IF(WEEKDAY(ДенКалендар)=СтойностНачалоСедмица,CONCATENATE(\"Седмица \",WEEKNUM(ДенКалендар),\"/Ден \",ДенКалендар-DATE(YEAR(ДенКалендар),1,0)),CONCATENATE(\"Ден \",ДенКалендар-DATE(YEAR(ДенКалендар),1,0)))","v":"Ден 183"}]

{"sheet":"ЮЛИ","index":6,"n_rows":20,"n_cols":9,"rows_kept":20,"merged":[[16,2,17,2],[17,4,19,8]]}
[null,"ЮЛИ",{"$f":"UPPER(TEXT(НачалоСедмица,\"ddd\"))","v":"НЕД"},{"$f":"UPPER(TEXT(D3,\"aaa\"))","v":"MON"},"TUE","WED","THU","FRI","SAT"]
[null,{"$f":"ГодинаКалендар","v":2018}]
[null,null,{"$f":"ДниИСемици+DATE(ГодинаКалендар,7,1)-WEEKDAY(DATE(ГодинаКалендар,7,1),(НачалоСедмица=\"ПОН\")+1)+1","v":"2018-07-01"},"2018-07-02","2018-07-03","2018-07-04","2018-07-05","2018-07-06","2018-07-07"]
[null,null,{"$f":"IF(DAY(ДенКалендар)=1,CONCATENATE(\"Седмица \",WEEKNUM(ДенКалендар),\"/Ден \",ДенКалендар-DATE(YEAR(ДенКалендар),1,0)),CONCATENATE(\"Ден \",ДенКалендар-DATE(YEAR(ДенКалендар),1,0)))","v":"Седмица 27/Ден 182"},{"$f":"IF(DAY(ДенКалендар)=1,CONCATENATE(\"Седмица \",WEEKNUM(ДенКалендар),\"/Ден \",ДенКалендар-DATE(YEAR(ДенКалендар),1,0)),CONCATENATE(\"Ден \",ДенКалендар-DATE(YEAR(ДенКалендар),1,0)))","v":"Ден 183"},{"$f":"IF(DAY(ДенКалендар)=1,CONCATENATE(\"Седмица \",WEEKNUM(ДенКалендар),\"/Ден \",ДенКалендар-DATE(YEAR(ДенКалендар),1,0)),CONCATENATE(\"Ден \",ДенКалендар-DATE(YEAR(ДенКалендар),1,0)))","v":"Ден 184"},{"$f":"IF(DAY(ДенКалендар)=1,CONCATENATE(\"Седмица \",WEEKNUM(ДенКалендар),\"/Ден \",ДенКалендар-DATE(YEAR(ДенКалендар),1,0)),CONCATENATE(\"Ден \",ДенКалендар-DATE(YEAR(ДенКалендар),1,0)))","v":"Ден 185"},{"$f":"IF(DAY(ДенКалендар)=1,CONCATENATE(\"Седмица \",WEEKNUM(ДенКалендар),\"/Ден \",ДенКалендар-DATE(YEAR(ДенКалендар),1,0)),CONCATENATE(\"Ден \",ДенКалендар-DATE(YEAR(ДенКалендар),1,0)))","v":"Ден 186"},{"$f":"IF(DAY(ДенКалендар)=1,CONCATENATE(\"Седмица \",WEEKNUM(ДенКалендар),\"/Ден \",ДенКалендар-DATE(YEAR(ДенКалендар),1,0)),CONCATENATE(\"Ден \",ДенКалендар-DATE(YEAR(ДенКалендар),1,0)))","v":"Ден 187"},{"$f":"IF(DAY(ДенКалендар)=1,CONCATENATE(\"Седмица \",WEEKNUM(ДенКалендар),\"/Ден \",ДенКалендар-DATE(YEAR(ДенКалендар),1,0)),CONCATENATE(\"Ден \",ДенКалендар-DATE(YEAR(ДенКалендар),1,0)))","v":"Ден 188"}]
[]
[null,null,{"$f":"ДниИСемици+DATE(ГодинаКалендар,7,1)-WEEKDAY(DATE(ГодинаКалендар,7,1),(НачалоСедмица=\"ПОН\")+1)+8","v":"2018-07-08"},"2018-07-09","2018-07-10","2018-07-11","2018-07-12","2018-07-13","2018-07-14"]
[null,null,{"$f":"IF(WEEKDAY(ДенКалендар)=СтойностНачалоСедмица,CONCATENATE(\"Седмица \",WEEKNUM(ДенКалендар),\"/Ден \",ДенКалендар-DATE(YEAR(ДенКалендар),1,0)),CONCATENATE(\"Ден \",ДенКалендар-DATE(YEAR(ДенКалендар),1,0)))","v":"Седмица 28/Ден 189"},{"$f":"IF(WEEKDAY(ДенКалендар)=СтойностНачалоСедмица,CONCATENATE(\"Седмица \",WEEKNUM(ДенКалендар),\"/Ден \",ДенКалендар-DATE(YEAR(ДенКалендар),1,0)),CONCATENATE(\"Ден \",ДенКалендар-DATE(YEAR(ДенКалендар),1,0)))","v":"Ден 190"},{"$f":"IF(WEEKDAY(ДенКалендар)=СтойностНачалоСедмица,CONCATENATE(\"Седмица \",WEEKNUM(ДенКалендар),\"/Ден \",ДенКалендар-DATE(YEAR(ДенКалендар),1,0)),CONCATENATE(\"Ден \",ДенКалендар-DATE(YEAR(ДенКалендар),1,0)))","v":"Ден 191"},{"$f":"IF(WEEKDAY(ДенКалендар)=СтойностНачалоСедмица,CONCATENATE(\"Седмица \",WEEKNUM(ДенКалендар),\"/Ден \",ДенКалендар-DATE(YEAR(ДенКалендар),1,0)),CONCATENATE(\"Ден \",ДенКалендар-DATE(YEAR(ДенКалендар),1,0)))","v":"Ден 192"},{"$f":"IF(WEEKDAY(ДенКалендар)=СтойностНачалоСедмица,CONCATENATE(\"Седмица \",WEEKNUM(ДенКалендар),\"/Ден \",ДенКалендар-DATE(YEAR(ДенКалендар),1,0)),CONCATENATE(\"Ден \",ДенКалендар-DATE(YEAR(ДенКалендар),1,0)))","v":"Ден 193"},{"$f":"IF(WEEKDAY(ДенКалендар)=СтойностНачалоСедмица,CONCATENATE(\"Седмица \",WEEKNUM(ДенКалендар),\"/Ден \",ДенКалендар-DATE(YEAR(ДенКалендар),1,0)),CONCATENATE(\"Ден \",ДенКалендар-DATE(YEAR(ДенКалендар),1,0)))","v":"Ден 194"},{"$f":"IF(WEEKDAY(ДенКалендар)=СтойностНачалоСедмица,CONCATENATE(\"Седмица \",WEEKNUM(ДенКалендар),\"/Ден \",ДенКалендар-DATE(YEAR(ДенКалендар),1,0)),CONCATENATE(\"Ден \",ДенКалендар-DATE(YEAR(ДенКалендар),1,0)))","v":"Ден 195"}]
[]
[null,null,{"$f":"ДниИСемици+DATE(ГодинаКалендар,7,1)-WEEKDAY(DATE(ГодинаКалендар,7,1),(НачалоСедмица=\"ПОН\")+1)+15","v":"2018-07-15"},"2018-07-16","2018-07-17","2018-07-18","2018-07-19","2018-07-20","2018-07-21"]
[null,null,{"$f":"IF(WEEKDAY(ДенКалендар)=СтойностНачалоСедмица,CONCATENATE(\"Седмица \",WEEKNUM(ДенКалендар),\"/Ден \",ДенКалендар-DATE(YEAR(ДенКалендар),1,0)),CONCATENATE(\"Ден \",ДенКалендар-DATE(YEAR(ДенКалендар),1,0)))","v":"Седмица 29/Ден 196"},{"$f":"IF(WEEKDAY(ДенКалендар)=СтойностНачалоСедмица,CONCATENATE(\"Седмица \",WEEKNUM(ДенКалендар),\"/Ден \",ДенКалендар-DATE(YEAR(ДенКалендар),1,0)),CONCATENATE(\"Ден \",ДенКалендар-DATE(YEAR(ДенКалендар),1,0)))","v":"Ден 197"},{"$f":"IF(WEEKDAY(ДенКалендар)=СтойностНачалоСедмица,CONCATENATE(\"Седмица \",WEEKNUM(ДенКалендар),\"/Ден \",ДенКалендар-DATE(YEAR(ДенКалендар),1,0)),CONCATENATE(\"Ден \",ДенКалендар-DATE(YEAR(ДенКалендар),1,0)))","v":"Ден 198"},{"$f":"IF(WEEKDAY(ДенКалендар)=СтойностНачалоСедмица,CONCATENATE(\"Седмица \",WEEKNUM(ДенКалендар),\"/Ден \",ДенКалендар-DATE(YEAR(ДенКалендар),1,0)),CONCATENATE(\"Ден \",ДенКалендар-DATE(YEAR(ДенКалендар),1,0)))","v":"Ден 199"},{"$f":"IF(WEEKDAY(ДенКалендар)=СтойностНачалоСедмица,CONCATENATE(\"Седмица \",WEEKNUM(ДенКалендар),\"/Ден \",ДенКалендар-DATE(YEAR(ДенКалендар),1,0)),CONCATENATE(\"Ден \",ДенКалендар-DATE(YEAR(ДенКалендар),1,0)))","v":"Ден 200"},{"$f":"IF(WEEKDAY(ДенКалендар)=СтойностНачалоСедмица,CONCATENATE(\"Седмица \",WEEKNUM(ДенКалендар),\"/Ден \",ДенКалендар-DATE(YEAR(ДенКалендар),1,0)),CONCATENATE(\"Ден \",ДенКалендар-DATE(YEAR(ДенКалендар),1,0)))","v":"Ден 201"},{"$f":"IF(WEEKDAY(ДенКалендар)=СтойностНачалоСедмица,CONCATENATE(\"Седмица \",WEEKNUM(ДенКалендар),\"/Ден \",ДенКалендар-DATE(YEAR(ДенКалендар),1,0)),CONCATENATE(\"Ден \",ДенКалендар-DATE(YEAR(ДенКалендар),1,0)))","v":"Ден 202"}]
[]
[null,null,{"$f":"ДниИСемици+DATE(ГодинаКалендар,7,1)-WEEKDAY(DATE(ГодинаКалендар,7,1),(НачалоСедмица=\"ПОН\")+1)+22","v":"2018-07-22"},"2018-07-23","2018-07-24","2018-07-25","2018-07-26","2018-07-27","2018-07-28"]
[null,null,{"$f":"IF(WEEKDAY(ДенКалендар)=СтойностНачалоСедмица,CONCATENATE(\"Седмица \",WEEKNUM(ДенКалендар),\"/Ден \",ДенКалендар-DATE(YEAR(ДенКалендар),1,0)),CONCATENATE(\"Ден \",ДенКалендар-DATE(YEAR(ДенКалендар),1,0)))","v":"Седмица 30/Ден 203"},{"$f":"IF(WEEKDAY(ДенКалендар)=СтойностНачалоСедмица,CONCATENATE(\"Седмица \",WEEKNUM(ДенКалендар),\"/Ден \",ДенКалендар-DATE(YEAR(ДенКалендар),1,0)),CONCATENATE(\"Ден \",ДенКалендар-DATE(YEAR(ДенКалендар),1,0)))","v":"Ден 204"},{"$f":"IF(WEEKDAY(ДенКалендар)=СтойностНачалоСедмица,CONCATENATE(\"Седмица \",WEEKNUM(ДенКалендар),\"/Ден \",ДенКалендар-DATE(YEAR(ДенКалендар),1,0)),CONCATENATE(\"Ден \",ДенКалендар-DATE(YEAR(ДенКалендар),1,0)))","v":"Ден 205"},{"$f":"IF(WEEKDAY(ДенКалендар)=СтойностНачалоСедмица,CONCATENATE(\"Седмица \",WEEKNUM(ДенКалендар),\"/Ден \",ДенКалендар-DATE(YEAR(ДенКалендар),1,0)),CONCATENATE(\"Ден \",ДенКалендар-DATE(YEAR(ДенКалендар),1,0)))","v":"Ден 206"},{"$f":"IF(WEEKDAY(ДенКалендар)=СтойностНачалоСедмица,CONCATENATE(\"Седмица \",WEEKNUM(ДенКалендар),\"/Ден \",ДенКалендар-DATE(YEAR(ДенКалендар),1,0)),CONCATENATE(\"Ден \",ДенКалендар-DATE(YEAR(ДенКалендар),1,0)))","v":"Ден 207"},{"$f":"IF(WEEKDAY(ДенКалендар)=СтойностНачалоСедмица,CONCATENATE(\"Седмица \",WEEKNUM(ДенКалендар),\"/Ден \",ДенКалендар-DATE(YEAR(ДенКалендар),1,0)),CONCATENATE(\"Ден \",ДенКалендар-DATE(YEAR(ДенКалендар),1,0)))","v":"Ден 208"},{"$f":"IF(WEEKDAY(ДенКалендар)=СтойностНачалоСедмица,CONCATENATE(\"Седмица \",WEEKNUM(ДенКалендар),\"/Ден \",ДенКалендар-DATE(YEAR(ДенКалендар),1,0)),CONCATENATE(\"Ден \",ДенКалендар-DATE(YEAR(ДенКалендар),1,0)))","v":"Ден 209"}]
[]
[null,null,{"$f":"ДниИСемици+DATE(ГодинаКалендар,7,1)-WEEKDAY(DATE(ГодинаКалендар,7,1),(НачалоСедмица=\"ПОН\")+1)+29","v":"2018-07-29"},"2018-07-30","2018-07-31","2018-08-01","2018-08-02","2018-08-03","2018-08-04"]
[null,null,{"$f":"IF(WEEKDAY(ДенКалендар)=СтойностНачалоСедмица,CONCATENATE(\"Седмица \",WEEKNUM(ДенКалендар),\"/Ден \",ДенКалендар-DATE(YEAR(ДенКалендар),1,0)),CONCATENATE(\"Ден \",ДенКалендар-DATE(YEAR(ДенКалендар),1,0)))","v":"Седмица 31/Ден 210"},{"$f":"IF(WEEKDAY(ДенКалендар)=СтойностНачалоСедмица,CONCATENATE(\"Седмица \",WEEKNUM(ДенКалендар),\"/Ден \",ДенКалендар-DATE(YEAR(ДенКалендар),1,0)),CONCATENATE(\"Ден \",ДенКалендар-DATE(YEAR(ДенКалендар),1,0)))","v":"Ден 211"},{"$f":"IF(WEEKDAY(ДенКалендар)=СтойностНачалоСедмица,CONCATENATE(\"Седмица \",WEEKNUM(ДенКалендар),\"/Ден \",ДенКалендар-DATE(YEAR(ДенКалендар),1,0)),CONCATENATE(\"Ден \",ДенКалендар-DATE(YEAR(ДенКалендар),1,0)))","v":"Ден 212"},{"$f":"IF(WEEKDAY(ДенКалендар)=СтойностНачалоСедмица,CONCATENATE(\"Седмица \",WEEKNUM(ДенКалендар),\"/Ден \",ДенКалендар-DATE(YEAR(ДенКалендар),1,0)),CONCATENATE(\"Ден \",ДенКалендар-DATE(YEAR(ДенКалендар),1,0)))","v":"Ден 213"},{"$f":"IF(WEEKDAY(ДенКалендар)=СтойностНачалоСедмица,CONCATENATE(\"Седмица \",WEEKNUM(ДенКалендар),\"/Ден \",ДенКалендар-DATE(YEAR(ДенКалендар),1,0)),CONCATENATE(\"Ден \",ДенКалендар-DATE(YEAR(ДенКалендар),1,0)))","v":"Ден 214"},{"$f":"IF(WEEKDAY(ДенКалендар)=СтойностНачалоСедмица,CONCATENATE(\"Седмица \",WEEKNUM(ДенКалендар),\"/Ден \",ДенКалендар-DATE(YEAR(ДенКалендар),1,0)),CONCATENATE(\"Ден \",ДенКалендар-DATE(YEAR(ДенКалендар),1,0)))","v":"Ден 215"},{"$f":"IF(WEEKDAY(ДенКалендар)=СтойностНачалоСедмица,CONCATENATE(\"Седмица \",WEEKNUM(ДенКалендар),\"/Ден \",ДенКалендар-DATE(YEAR(ДенКалендар),1,0)),CONCATENATE(\"Ден \",ДенКалендар-DATE(YEAR(ДенКалендар),1,0)))","v":"Ден 216"}]
[{"$nulls":4},"БЕЛЕЖКИ"]
[]
[null,null,{"$f":"ДниИСемици+DATE(ГодинаКалендар,7,1)-WEEKDAY(DATE(ГодинаКалендар,7,1),(НачалоСедмица=\"ПОН\")+1)+36","v":"2018-08-05"},"2018-08-06"]
[null,null,{"$f":"IF(WEEKDAY(ДенКалендар)=СтойностНачалоСедмица,CONCATENATE(\"Седмица \",WEEKNUM(ДенКалендар),\"/Ден \",ДенКалендар-DATE(YEAR(ДенКалендар),1,0)),CONCATENATE(\"Ден \",ДенКалендар-DATE(YEAR(ДенКалендар),1,0)))","v":"Седмица 32/Ден 217"},{"$f":"IF(WEEKDAY(ДенКалендар)=СтойностНачалоСедмица,CONCATENATE(\"Седмица \",WEEKNUM(ДенКалендар),\"/Ден \",ДенКалендар-DATE(YEAR(ДенКалендар),1,0)),CONCATENATE(\"Ден \",ДенКалендар-DATE(YEAR(ДенКалендар),1,0)))","v":"Ден 218"}]

{"sheet":"АВГ","index":7,"n_rows":20,"n_cols":9,"rows_kept":20,"merged":[[16,2,17,2],[17,4,19,8]]}
[null,"АВГ",{"$f":"UPPER(TEXT(НачалоСедмица,\"ddd\"))","v":"НЕД"},{"$f":"UPPER(TEXT(D3,\"aaa\"))","v":"MON"},"TUE","WED","THU","FRI","SAT"]
[null,{"$f":"ГодинаКалендар","v":2018}]
[null,null,{"$f":"ДниИСемици+DATE(ГодинаКалендар,8,1)-WEEKDAY(DATE(ГодинаКалендар,8,1),(НачалоСедмица=\"ПОН\")+1)+1","v":"2018-07-29"},"2018-07-30","2018-07-31","2018-08-01","2018-08-02","2018-08-03","2018-08-04"]
[null,null,{"$f":"IF(DAY(ДенКалендар)=1,CONCATENATE(\"Седмица \",WEEKNUM(ДенКалендар),\"/Ден \",ДенКалендар-DATE(YEAR(ДенКалендар),1,0)),CONCATENATE(\"Ден \",ДенКалендар-DATE(YEAR(ДенКалендар),1,0)))","v":"Ден 210"},{"$f":"IF(DAY(ДенКалендар)=1,CONCATENATE(\"Седмица \",WEEKNUM(ДенКалендар),\"/Ден \",ДенКалендар-DATE(YEAR(ДенКалендар),1,0)),CONCATENATE(\"Ден \",ДенКалендар-DATE(YEAR(ДенКалендар),1,0)))","v":"Ден 211"},{"$f":"IF(DAY(ДенКалендар)=1,CONCATENATE(\"Седмица \",WEEKNUM(ДенКалендар),\"/Ден \",ДенКалендар-DATE(YEAR(ДенКалендар),1,0)),CONCATENATE(\"Ден \",ДенКалендар-DATE(YEAR(ДенКалендар),1,0)))","v":"Ден 212"},{"$f":"IF(DAY(ДенКалендар)=1,CONCATENATE(\"Седмица \",WEEKNUM(ДенКалендар),\"/Ден \",ДенКалендар-DATE(YEAR(ДенКалендар),1,0)),CONCATENATE(\"Ден \",ДенКалендар-DATE(YEAR(ДенКалендар),1,0)))","v":"Седмица 31/Ден 213"},{"$f":"IF(DAY(ДенКалендар)=1,CONCATENATE(\"Седмица \",WEEKNUM(ДенКалендар),\"/Ден \",ДенКалендар-DATE(YEAR(ДенКалендар),1,0)),CONCATENATE(\"Ден \",ДенКалендар-DATE(YEAR(ДенКалендар),1,0)))","v":"Ден 214"},{"$f":"IF(DAY(ДенКалендар)=1,CONCATENATE(\"Седмица \",WEEKNUM(ДенКалендар),\"/Ден \",ДенКалендар-DATE(YEAR(ДенКалендар),1,0)),CONCATENATE(\"Ден \",ДенКалендар-DATE(YEAR(ДенКалендар),1,0)))","v":"Ден 215"},{"$f":"IF(DAY(ДенКалендар)=1,CONCATENATE(\"Седмица \",WEEKNUM(ДенКалендар),\"/Ден \",ДенКалендар-DATE(YEAR(ДенКалендар),1,0)),CONCATENATE(\"Ден \",ДенКалендар-DATE(YEAR(ДенКалендар),1,0)))","v":"Ден 216"}]
[]
[null,null,{"$f":"ДниИСемици+DATE(ГодинаКалендар,8,1)-WEEKDAY(DATE(ГодинаКалендар,8,1),(НачалоСедмица=\"ПОН\")+1)+8","v":"2018-08-05"},"2018-08-06","2018-08-07","2018-08-08","2018-08-09","2018-08-10","2018-08-11"]
[null,null,{"$f":"IF(WEEKDAY(ДенКалендар)=СтойностНачалоСедмица,CONCATENATE(\"Седмица \",WEEKNUM(ДенКалендар),\"/Ден \",ДенКалендар-DATE(YEAR(ДенКалендар),1,0)),CONCATENATE(\"Ден \",ДенКалендар-DATE(YEAR(ДенКалендар),1,0)))","v":"Седмица 32/Ден 217"},{"$f":"IF(WEEKDAY(ДенКалендар)=СтойностНачалоСедмица,CONCATENATE(\"Седмица \",WEEKNUM(ДенКалендар),\"/Ден \",ДенКалендар-DATE(YEAR(ДенКалендар),1,0)),CONCATENATE(\"Ден \",ДенКалендар-DATE(YEAR(ДенКалендар),1,0)))","v":"Ден 218"},{"$f":"IF(WEEKDAY(ДенКалендар)=СтойностНачалоСедмица,CONCATENATE(\"Седмица \",WEEKNUM(ДенКалендар),\"/Ден \",ДенКалендар-DATE(YEAR(ДенКалендар),1,0)),CONCATENATE(\"Ден \",ДенКалендар-DATE(YEAR(ДенКалендар),1,0)))","v":"Ден 219"},{"$f":"IF(WEEKDAY(ДенКалендар)=СтойностНачалоСедмица,CONCATENATE(\"Седмица \",WEEKNUM(ДенКалендар),\"/Ден \",ДенКалендар-DATE(YEAR(ДенКалендар),1,0)),CONCATENATE(\"Ден \",ДенКалендар-DATE(YEAR(ДенКалендар),1,0)))","v":"Ден 220"},{"$f":"IF(WEEKDAY(ДенКалендар)=СтойностНачалоСедмица,CONCATENATE(\"Седмица \",WEEKNUM(ДенКалендар),\"/Ден \",ДенКалендар-DATE(YEAR(ДенКалендар),1,0)),CONCATENATE(\"Ден \",ДенКалендар-DATE(YEAR(ДенКалендар),1,0)))","v":"Ден 221"},{"$f":"IF(WEEKDAY(ДенКалендар)=СтойностНачалоСедмица,CONCATENATE(\"Седмица \",WEEKNUM(ДенКалендар),\"/Ден \",ДенКалендар-DATE(YEAR(ДенКалендар),1,0)),CONCATENATE(\"Ден \",ДенКалендар-DATE(YEAR(ДенКалендар),1,0)))","v":"Ден 222"},{"$f":"IF(WEEKDAY(ДенКалендар)=СтойностНачалоСедмица,CONCATENATE(\"Седмица \",WEEKNUM(ДенКалендар),\"/Ден \",ДенКалендар-DATE(YEAR(ДенКалендар),1,0)),CONCATENATE(\"Ден \",ДенКалендар-DATE(YEAR(ДенКалендар),1,0)))","v":"Ден 223"}]
[]
[null,null,{"$f":"ДниИСемици+DATE(ГодинаКалендар,8,1)-WEEKDAY(DATE(ГодинаКалендар,8,1),(НачалоСедмица=\"ПОН\")+1)+15","v":"2018-08-12"},"2018-08-13","2018-08-14","2018-08-15","2018-08-16","2018-08-17","2018-08-18"]
[null,null,{"$f":"IF(WEEKDAY(ДенКалендар)=СтойностНачалоСедмица,CONCATENATE(\"Седмица \",WEEKNUM(ДенКалендар),\"/Ден \",ДенКалендар-DATE(YEAR(ДенКалендар),1,0)),CONCATENATE(\"Ден \",ДенКалендар-DATE(YEAR(ДенКалендар),1,0)))","v":"Седмица 33/Ден 224"},{"$f":"IF(WEEKDAY(ДенКалендар)=СтойностНачалоСедмица,CONCATENATE(\"Седмица \",WEEKNUM(ДенКалендар),\"/Ден \",ДенКалендар-DATE(YEAR(ДенКалендар),1,0)),CONCATENATE(\"Ден \",ДенКалендар-DATE(YEAR(ДенКалендар),1,0)))","v":"Ден 225"},{"$f":"IF(WEEKDAY(ДенКалендар)=СтойностНачалоСедмица,CONCATENATE(\"Седмица \",WEEKNUM(ДенКалендар),\"/Ден \",ДенКалендар-DATE(YEAR(ДенКалендар),1,0)),CONCATENATE(\"Ден \",ДенКалендар-DATE(YEAR(ДенКалендар),1,0)))","v":"Ден 226"},{"$f":"IF(WEEKDAY(ДенКалендар)=СтойностНачалоСедмица,CONCATENATE(\"Седмица \",WEEKNUM(ДенКалендар),\"/Ден \",ДенКалендар-DATE(YEAR(ДенКалендар),1,0)),CONCATENATE(\"Ден \",ДенКалендар-DATE(YEAR(ДенКалендар),1,0)))","v":"Ден 227"},{"$f":"IF(WEEKDAY(ДенКалендар)=СтойностНачалоСедмица,CONCATENATE(\"Седмица \",WEEKNUM(ДенКалендар),\"/Ден \",ДенКалендар-DATE(YEAR(ДенКалендар),1,0)),CONCATENATE(\"Ден \",ДенКалендар-DATE(YEAR(ДенКалендар),1,0)))","v":"Ден 228"},{"$f":"IF(WEEKDAY(ДенКалендар)=СтойностНачалоСедмица,CONCATENATE(\"Седмица \",WEEKNUM(ДенКалендар),\"/Ден \",ДенКалендар-DATE(YEAR(ДенКалендар),1,0)),CONCATENATE(\"Ден \",ДенКалендар-DATE(YEAR(ДенКалендар),1,0)))","v":"Ден 229"},{"$f":"IF(WEEKDAY(ДенКалендар)=СтойностНачалоСедмица,CONCATENATE(\"Седмица \",WEEKNUM(ДенКалендар),\"/Ден \",ДенКалендар-DATE(YEAR(ДенКалендар),1,0)),CONCATENATE(\"Ден \",ДенКалендар-DATE(YEAR(ДенКалендар),1,0)))","v":"Ден 230"}]
[]
[null,null,{"$f":"ДниИСемици+DATE(ГодинаКалендар,8,1)-WEEKDAY(DATE(ГодинаКалендар,8,1),(НачалоСедмица=\"ПОН\")+1)+22","v":"2018-08-19"},"2018-08-20","2018-08-21","2018-08-22","2018-08-23","2018-08-24","2018-08-25"]
[null,null,{"$f":"IF(WEEKDAY(ДенКалендар)=СтойностНачалоСедмица,CONCATENATE(\"Седмица \",WEEKNUM(ДенКалендар),\"/Ден \",ДенКалендар-DATE(YEAR(ДенКалендар),1,0)),CONCATENATE(\"Ден \",ДенКалендар-DATE(YEAR(ДенКалендар),1,0)))","v":"Седмица 34/Ден 231"},{"$f":"IF(WEEKDAY(ДенКалендар)=СтойностНачалоСедмица,CONCATENATE(\"Седмица \",WEEKNUM(ДенКалендар),\"/Ден \",ДенКалендар-DATE(YEAR(ДенКалендар),1,0)),CONCATENATE(\"Ден \",ДенКалендар-DATE(YEAR(ДенКалендар),1,0)))","v":"Ден 232"},{"$f":"IF(WEEKDAY(ДенКалендар)=СтойностНачалоСедмица,CONCATENATE(\"Седмица \",WEEKNUM(ДенКалендар),\"/Ден \",ДенКалендар-DATE(YEAR(ДенКалендар),1,0)),CONCATENATE(\"Ден \",ДенКалендар-DATE(YEAR(ДенКалендар),1,0)))","v":"Ден 233"},{"$f":"IF(WEEKDAY(ДенКалендар)=СтойностНачалоСедмица,CONCATENATE(\"Седмица \",WEEKNUM(ДенКалендар),\"/Ден \",ДенКалендар-DATE(YEAR(ДенКалендар),1,0)),CONCATENATE(\"Ден \",ДенКалендар-DATE(YEAR(ДенКалендар),1,0)))","v":"Ден 234"},{"$f":"IF(WEEKDAY(ДенКалендар)=СтойностНачалоСедмица,CONCATENATE(\"Седмица \",WEEKNUM(ДенКалендар),\"/Ден \",ДенКалендар-DATE(YEAR(ДенКалендар),1,0)),CONCATENATE(\"Ден \",ДенКалендар-DATE(YEAR(ДенКалендар),1,0)))","v":"Ден 235"},{"$f":"IF(WEEKDAY(ДенКалендар)=СтойностНачалоСедмица,CONCATENATE(\"Седмица \",WEEKNUM(ДенКалендар),\"/Ден \",ДенКалендар-DATE(YEAR(ДенКалендар),1,0)),CONCATENATE(\"Ден \",ДенКалендар-DATE(YEAR(ДенКалендар),1,0)))","v":"Ден 236"},{"$f":"IF(WEEKDAY(ДенКалендар)=СтойностНачалоСедмица,CONCATENATE(\"Седмица \",WEEKNUM(ДенКалендар),\"/Ден \",ДенКалендар-DATE(YEAR(ДенКалендар),1,0)),CONCATENATE(\"Ден \",ДенКалендар-DATE(YEAR(ДенКалендар),1,0)))","v":"Ден 237"}]
[]
[null,null,{"$f":"ДниИСемици+DATE(ГодинаКалендар,8,1)-WEEKDAY(DATE(ГодинаКалендар,8,1),(НачалоСедмица=\"ПОН\")+1)+29","v":"2018-08-26"},"2018-08-27","2018-08-28","2018-08-29","2018-08-30","2018-08-31","2018-09-01"]
[null,null,{"$f":"IF(WEEKDAY(ДенКалендар)=СтойностНачалоСедмица,CONCATENATE(\"Седмица \",WEEKNUM(ДенКалендар),\"/Ден \",ДенКалендар-DATE(YEAR(ДенКалендар),1,0)),CONCATENATE(\"Ден \",ДенКалендар-DATE(YEAR(ДенКалендар),1,0)))","v":"Седмица 35/Ден 238"},{"$f":"IF(WEEKDAY(ДенКалендар)=СтойностНачалоСедмица,CONCATENATE(\"Седмица \",WEEKNUM(ДенКалендар),\"/Ден \",ДенКалендар-DATE(YEAR(ДенКалендар),1,0)),CONCATENATE(\"Ден \",ДенКалендар-DATE(YEAR(ДенКалендар),1,0)))","v":"Ден 239"},{"$f":"IF(WEEKDAY(ДенКалендар)=СтойностНачалоСедмица,CONCATENATE(\"Седмица \",WEEKNUM(ДенКалендар),\"/Ден \",ДенКалендар-DATE(YEAR(ДенКалендар),1,0)),CONCATENATE(\"Ден \",ДенКалендар-DATE(YEAR(ДенКалендар),1,0)))","v":"Ден 240"},{"$f":"IF(WEEKDAY(ДенКалендар)=СтойностНачалоСедмица,CONCATENATE(\"Седмица \",WEEKNUM(ДенКалендар),\"/Ден \",ДенКалендар-DATE(YEAR(ДенКалендар),1,0)),CONCATENATE(\"Ден \",ДенКалендар-DATE(YEAR(ДенКалендар),1,0)))","v":"Ден 241"},{"$f":"IF(WEEKDAY(ДенКалендар)=СтойностНачалоСедмица,CONCATENATE(\"Седмица \",WEEKNUM(ДенКалендар),\"/Ден \",ДенКалендар-DATE(YEAR(ДенКалендар),1,0)),CONCATENATE(\"Ден \",ДенКалендар-DATE(YEAR(ДенКалендар),1,0)))","v":"Ден 242"},{"$f":"IF(WEEKDAY(ДенКалендар)=СтойностНачалоСедмица,CONCATENATE(\"Седмица \",WEEKNUM(ДенКалендар),\"/Ден \",ДенКалендар-DATE(YEAR(ДенКалендар),1,0)),CONCATENATE(\"Ден \",ДенКалендар-DATE(YEAR(ДенКалендар),1,0)))","v":"Ден 243"},{"$f":"IF(WEEKDAY(ДенКалендар)=СтойностНачалоСедмица,CONCATENATE(\"Седмица \",WEEKNUM(ДенКалендар),\"/Ден \",ДенКалендар-DATE(YEAR(ДенКалендар),1,0)),CONCATENATE(\"Ден \",ДенКалендар-DATE(YEAR(ДенКалендар),1,0)))","v":"Ден 244"}]
[{"$nulls":4},"БЕЛЕЖКИ"]
[]
[null,null,{"$f":"ДниИСемици+DATE(ГодинаКалендар,8,1)-WEEKDAY(DATE(ГодинаКалендар,8,1),(НачалоСедмица=\"ПОН\")+1)+36","v":"2018-09-02"},"2018-09-03"]
[null,null,{"$f":"IF(WEEKDAY(ДенКалендар)=СтойностНачалоСедмица,CONCATENATE(\"Седмица \",WEEKNUM(ДенКалендар),\"/Ден \",ДенКалендар-DATE(YEAR(ДенКалендар),1,0)),CONCATENATE(\"Ден \",ДенКалендар-DATE(YEAR(ДенКалендар),1,0)))","v":"Седмица 36/Ден 245"},{"$f":"IF(WEEKDAY(ДенКалендар)=СтойностНачалоСедмица,CONCATENATE(\"Седмица \",WEEKNUM(ДенКалендар),\"/Ден \",ДенКалендар-DATE(YEAR(ДенКалендар),1,0)),CONCATENATE(\"Ден \",ДенКалендар-DATE(YEAR(ДенКалендар),1,0)))","v":"Ден 246"}]

{"sheet":"СЕП","index":8,"n_rows":20,"n_cols":9,"rows_kept":20,"merged":[[16,2,17,2],[17,4,19,8]]}
[null,"СЕП",{"$f":"UPPER(TEXT(НачалоСедмица,\"ddd\"))","v":"НЕД"},{"$f":"UPPER(TEXT(D3,\"aaa\"))","v":"MON"},"TUE","WED","THU","FRI","SAT"]
[null,{"$f":"ГодинаКалендар","v":2018}]
[null,null,{"$f":"ДниИСемици+DATE(ГодинаКалендар,9,1)-WEEKDAY(DATE(ГодинаКалендар,9,1),(НачалоСедмица=\"ПОН\")+1)+1","v":"2018-08-26"},"2018-08-27","2018-08-28","2018-08-29","2018-08-30","2018-08-31","2018-09-01"]
[null,null,{"$f":"IF(DAY(ДенКалендар)=1,CONCATENATE(\"Седмица \",WEEKNUM(ДенКалендар),\"/Ден \",ДенКалендар-DATE(YEAR(ДенКалендар),1,0)),CONCATENATE(\"Ден \",ДенКалендар-DATE(YEAR(ДенКалендар),1,0)))","v":"Ден 238"},{"$f":"IF(DAY(ДенКалендар)=1,CONCATENATE(\"Седмица \",WEEKNUM(ДенКалендар),\"/Ден \",ДенКалендар-DATE(YEAR(ДенКалендар),1,0)),CONCATENATE(\"Ден \",ДенКалендар-DATE(YEAR(ДенКалендар),1,0)))","v":"Ден 239"},{"$f":"IF(DAY(ДенКалендар)=1,CONCATENATE(\"Седмица \",WEEKNUM(ДенКалендар),\"/Ден \",ДенКалендар-DATE(YEAR(ДенКалендар),1,0)),CONCATENATE(\"Ден \",ДенКалендар-DATE(YEAR(ДенКалендар),1,0)))","v":"Ден 240"},{"$f":"IF(DAY(ДенКалендар)=1,CONCATENATE(\"Седмица \",WEEKNUM(ДенКалендар),\"/Ден \",ДенКалендар-DATE(YEAR(ДенКалендар),1,0)),CONCATENATE(\"Ден \",ДенКалендар-DATE(YEAR(ДенКалендар),1,0)))","v":"Ден 241"},{"$f":"IF(DAY(ДенКалендар)=1,CONCATENATE(\"Седмица \",WEEKNUM(ДенКалендар),\"/Ден \",ДенКалендар-DATE(YEAR(ДенКалендар),1,0)),CONCATENATE(\"Ден \",ДенКалендар-DATE(YEAR(ДенКалендар),1,0)))","v":"Ден 242"},{"$f":"IF(DAY(ДенКалендар)=1,CONCATENATE(\"Седмица \",WEEKNUM(ДенКалендар),\"/Ден \",ДенКалендар-DATE(YEAR(ДенКалендар),1,0)),CONCATENATE(\"Ден \",ДенКалендар-DATE(YEAR(ДенКалендар),1,0)))","v":"Ден 243"},{"$f":"IF(DAY(ДенКалендар)=1,CONCATENATE(\"Седмица \",WEEKNUM(ДенКалендар),\"/Ден \",ДенКалендар-DATE(YEAR(ДенКалендар),1,0)),CONCATENATE(\"Ден \",ДенКалендар-DATE(YEAR(ДенКалендар),1,0)))","v":"Седмица 35/Ден 244"}]
[]
[null,null,{"$f":"ДниИСемици+DATE(ГодинаКалендар,9,1)-WEEKDAY(DATE(ГодинаКалендар,9,1),(НачалоСедмица=\"ПОН\")+1)+8","v":"2018-09-02"},"2018-09-03","2018-09-04","2018-09-05","2018-09-06","2018-09-07","2018-09-08"]
[null,null,{"$f":"IF(WEEKDAY(ДенКалендар)=СтойностНачалоСедмица,CONCATENATE(\"Седмица \",WEEKNUM(ДенКалендар),\"/Ден \",ДенКалендар-DATE(YEAR(ДенКалендар),1,0)),CONCATENATE(\"Ден \",ДенКалендар-DATE(YEAR(ДенКалендар),1,0)))","v":"Седмица 36/Ден 245"},{"$f":"IF(WEEKDAY(ДенКалендар)=СтойностНачалоСедмица,CONCATENATE(\"Седмица \",WEEKNUM(ДенКалендар),\"/Ден \",ДенКалендар-DATE(YEAR(ДенКалендар),1,0)),CONCATENATE(\"Ден \",ДенКалендар-DATE(YEAR(ДенКалендар),1,0)))","v":"Ден 246"},{"$f":"IF(WEEKDAY(ДенКалендар)=СтойностНачалоСедмица,CONCATENATE(\"Седмица \",WEEKNUM(ДенКалендар),\"/Ден \",ДенКалендар-DATE(YEAR(ДенКалендар),1,0)),CONCATENATE(\"Ден \",ДенКалендар-DATE(YEAR(ДенКалендар),1,0)))","v":"Ден 247"},{"$f":"IF(WEEKDAY(ДенКалендар)=СтойностНачалоСедмица,CONCATENATE(\"Седмица \",WEEKNUM(ДенКалендар),\"/Ден \",ДенКалендар-DATE(YEAR(ДенКалендар),1,0)),CONCATENATE(\"Ден \",ДенКалендар-DATE(YEAR(ДенКалендар),1,0)))","v":"Ден 248"},{"$f":"IF(WEEKDAY(ДенКалендар)=СтойностНачалоСедмица,CONCATENATE(\"Седмица \",WEEKNUM(ДенКалендар),\"/Ден \",ДенКалендар-DATE(YEAR(ДенКалендар),1,0)),CONCATENATE(\"Ден \",ДенКалендар-DATE(YEAR(ДенКалендар),1,0)))","v":"Ден 249"},{"$f":"IF(WEEKDAY(ДенКалендар)=СтойностНачалоСедмица,CONCATENATE(\"Седмица \",WEEKNUM(ДенКалендар),\"/Ден \",ДенКалендар-DATE(YEAR(ДенКалендар),1,0)),CONCATENATE(\"Ден \",ДенКалендар-DATE(YEAR(ДенКалендар),1,0)))","v":"Ден 250"},{"$f":"IF(WEEKDAY(ДенКалендар)=СтойностНачалоСедмица,CONCATENATE(\"Седмица \",WEEKNUM(ДенКалендар),\"/Ден \",ДенКалендар-DATE(YEAR(ДенКалендар),1,0)),CONCATENATE(\"Ден \",ДенКалендар-DATE(YEAR(ДенКалендар),1,0)))","v":"Ден 251"}]
[]
[null,null,{"$f":"ДниИСемици+DATE(ГодинаКалендар,9,1)-WEEKDAY(DATE(ГодинаКалендар,9,1),(НачалоСедмица=\"ПОН\")+1)+15","v":"2018-09-09"},"2018-09-10","2018-09-11","2018-09-12","2018-09-13","2018-09-14","2018-09-15"]
[null,null,{"$f":"IF(WEEKDAY(ДенКалендар)=СтойностНачалоСедмица,CONCATENATE(\"Седмица \",WEEKNUM(ДенКалендар),\"/Ден \",ДенКалендар-DATE(YEAR(ДенКалендар),1,0)),CONCATENATE(\"Ден \",ДенКалендар-DATE(YEAR(ДенКалендар),1,0)))","v":"Седмица 37/Ден 252"},{"$f":"IF(WEEKDAY(ДенКалендар)=СтойностНачалоСедмица,CONCATENATE(\"Седмица \",WEEKNUM(ДенКалендар),\"/Ден \",ДенКалендар-DATE(YEAR(ДенКалендар),1,0)),CONCATENATE(\"Ден \",ДенКалендар-DATE(YEAR(ДенКалендар),1,0)))","v":"Ден 253"},{"$f":"IF(WEEKDAY(ДенКалендар)=СтойностНачалоСедмица,CONCATENATE(\"Седмица \",WEEKNUM(ДенКалендар),\"/Ден \",ДенКалендар-DATE(YEAR(ДенКалендар),1,0)),CONCATENATE(\"Ден \",ДенКалендар-DATE(YEAR(ДенКалендар),1,0)))","v":"Ден 254"},{"$f":"IF(WEEKDAY(ДенКалендар)=СтойностНачалоСедмица,CONCATENATE(\"Седмица \",WEEKNUM(ДенКалендар),\"/Ден \",ДенКалендар-DATE(YEAR(ДенКалендар),1,0)),CONCATENATE(\"Ден \",ДенКалендар-DATE(YEAR(ДенКалендар),1,0)))","v":"Ден 255"},{"$f":"IF(WEEKDAY(ДенКалендар)=СтойностНачалоСедмица,CONCATENATE(\"Седмица \",WEEKNUM(ДенКалендар),\"/Ден \",ДенКалендар-DATE(YEAR(ДенКалендар),1,0)),CONCATENATE(\"Ден \",ДенКалендар-DATE(YEAR(ДенКалендар),1,0)))","v":"Ден 256"},{"$f":"IF(WEEKDAY(ДенКалендар)=СтойностНачалоСедмица,CONCATENATE(\"Седмица \",WEEKNUM(ДенКалендар),\"/Ден \",ДенКалендар-DATE(YEAR(ДенКалендар),1,0)),CONCATENATE(\"Ден \",ДенКалендар-DATE(YEAR(ДенКалендар),1,0)))","v":"Ден 257"},{"$f":"IF(WEEKDAY(ДенКалендар)=СтойностНачалоСедмица,CONCATENATE(\"Седмица \",WEEKNUM(ДенКалендар),\"/Ден \",ДенКалендар-DATE(YEAR(ДенКалендар),1,0)),CONCATENATE(\"Ден \",ДенКалендар-DATE(YEAR(ДенКалендар),1,0)))","v":"Ден 258"}]
[]
[null,null,{"$f":"ДниИСемици+DATE(ГодинаКалендар,9,1)-WEEKDAY(DATE(ГодинаКалендар,9,1),(НачалоСедмица=\"ПОН\")+1)+22","v":"2018-09-16"},"2018-09-17","2018-09-18","2018-09-19","2018-09-20","2018-09-21","2018-09-22"]
[null,null,{"$f":"IF(WEEKDAY(ДенКалендар)=СтойностНачалоСедмица,CONCATENATE(\"Седмица \",WEEKNUM(ДенКалендар),\"/Ден \",ДенКалендар-DATE(YEAR(ДенКалендар),1,0)),CONCATENATE(\"Ден \",ДенКалендар-DATE(YEAR(ДенКалендар),1,0)))","v":"Седмица 38/Ден 259"},{"$f":"IF(WEEKDAY(ДенКалендар)=СтойностНачалоСедмица,CONCATENATE(\"Седмица \",WEEKNUM(ДенКалендар),\"/Ден \",ДенКалендар-DATE(YEAR(ДенКалендар),1,0)),CONCATENATE(\"Ден \",ДенКалендар-DATE(YEAR(ДенКалендар),1,0)))","v":"Ден 260"},{"$f":"IF(WEEKDAY(ДенКалендар)=СтойностНачалоСедмица,CONCATENATE(\"Седмица \",WEEKNUM(ДенКалендар),\"/Ден \",ДенКалендар-DATE(YEAR(ДенКалендар),1,0)),CONCATENATE(\"Ден \",ДенКалендар-DATE(YEAR(ДенКалендар),1,0)))","v":"Ден 261"},{"$f":"IF(WEEKDAY(ДенКалендар)=СтойностНачалоСедмица,CONCATENATE(\"Седмица \",WEEKNUM(ДенКалендар),\"/Ден \",ДенКалендар-DATE(YEAR(ДенКалендар),1,0)),CONCATENATE(\"Ден \",ДенКалендар-DATE(YEAR(ДенКалендар),1,0)))","v":"Ден 262"},{"$f":"IF(WEEKDAY(ДенКалендар)=СтойностНачалоСедмица,CONCATENATE(\"Седмица \",WEEKNUM(ДенКалендар),\"/Ден \",ДенКалендар-DATE(YEAR(ДенКалендар),1,0)),CONCATENATE(\"Ден \",ДенКалендар-DATE(YEAR(ДенКалендар),1,0)))","v":"Ден 263"},{"$f":"IF(WEEKDAY(ДенКалендар)=СтойностНачалоСедмица,CONCATENATE(\"Седмица \",WEEKNUM(ДенКалендар),\"/Ден \",ДенКалендар-DATE(YEAR(ДенКалендар),1,0)),CONCATENATE(\"Ден \",ДенКалендар-DATE(YEAR(ДенКалендар),1,0)))","v":"Ден 264"},{"$f":"IF(WEEKDAY(ДенКалендар)=СтойностНачалоСедмица,CONCATENATE(\"Седмица \",WEEKNUM(ДенКалендар),\"/Ден \",ДенКалендар-DATE(YEAR(ДенКалендар),1,0)),CONCATENATE(\"Ден \",ДенКалендар-DATE(YEAR(ДенКалендар),1,0)))","v":"Ден 265"}]
[]
[null,null,{"$f":"ДниИСемици+DATE(ГодинаКалендар,9,1)-WEEKDAY(DATE(ГодинаКалендар,9,1),(НачалоСедмица=\"ПОН\")+1)+29","v":"2018-09-23"},"2018-09-24","2018-09-25","2018-09-26","2018-09-27","2018-09-28","2018-09-29"]
[null,null,{"$f":"IF(WEEKDAY(ДенКалендар)=СтойностНачалоСедмица,CONCATENATE(\"Седмица \",WEEKNUM(ДенКалендар),\"/Ден \",ДенКалендар-DATE(YEAR(ДенКалендар),1,0)),CONCATENATE(\"Ден \",ДенКалендар-DATE(YEAR(ДенКалендар),1,0)))","v":"Седмица 39/Ден 266"},{"$f":"IF(WEEKDAY(ДенКалендар)=СтойностНачалоСедмица,CONCATENATE(\"Седмица \",WEEKNUM(ДенКалендар),\"/Ден \",ДенКалендар-DATE(YEAR(ДенКалендар),1,0)),CONCATENATE(\"Ден \",ДенКалендар-DATE(YEAR(ДенКалендар),1,0)))","v":"Ден 267"},{"$f":"IF(WEEKDAY(ДенКалендар)=СтойностНачалоСедмица,CONCATENATE(\"Седмица \",WEEKNUM(ДенКалендар),\"/Ден \",ДенКалендар-DATE(YEAR(ДенКалендар),1,0)),CONCATENATE(\"Ден \",ДенКалендар-DATE(YEAR(ДенКалендар),1,0)))","v":"Ден 268"},{"$f":"IF(WEEKDAY(ДенКалендар)=СтойностНачалоСедмица,CONCATENATE(\"Седмица \",WEEKNUM(ДенКалендар),\"/Ден \",ДенКалендар-DATE(YEAR(ДенКалендар),1,0)),CONCATENATE(\"Ден \",ДенКалендар-DATE(YEAR(ДенКалендар),1,0)))","v":"Ден 269"},{"$f":"IF(WEEKDAY(ДенКалендар)=СтойностНачалоСедмица,CONCATENATE(\"Седмица \",WEEKNUM(ДенКалендар),\"/Ден \",ДенКалендар-DATE(YEAR(ДенКалендар),1,0)),CONCATENATE(\"Ден \",ДенКалендар-DATE(YEAR(ДенКалендар),1,0)))","v":"Ден 270"},{"$f":"IF(WEEKDAY(ДенКалендар)=СтойностНачалоСедмица,CONCATENATE(\"Седмица \",WEEKNUM(ДенКалендар),\"/Ден \",ДенКалендар-DATE(YEAR(ДенКалендар),1,0)),CONCATENATE(\"Ден \",ДенКалендар-DATE(YEAR(ДенКалендар),1,0)))","v":"Ден 271"},{"$f":"IF(WEEKDAY(ДенКалендар)=СтойностНачалоСедмица,CONCATENATE(\"Седмица \",WEEKNUM(ДенКалендар),\"/Ден \",ДенКалендар-DATE(YEAR(ДенКалендар),1,0)),CONCATENATE(\"Ден \",ДенКалендар-DATE(YEAR(ДенКалендар),1,0)))","v":"Ден 272"}]
[{"$nulls":4},"БЕЛЕЖКИ"]
[]
[null,null,{"$f":"ДниИСемици+DATE(ГодинаКалендар,9,1)-WEEKDAY(DATE(ГодинаКалендар,9,1),(НачалоСедмица=\"ПОН\")+1)+36","v":"2018-09-30"},"2018-10-01"]
[null,null,{"$f":"IF(WEEKDAY(ДенКалендар)=СтойностНачалоСедмица,CONCATENATE(\"Седмица \",WEEKNUM(ДенКалендар),\"/Ден \",ДенКалендар-DATE(YEAR(ДенКалендар),1,0)),CONCATENATE(\"Ден \",ДенКалендар-DATE(YEAR(ДенКалендар),1,0)))","v":"Седмица 40/Ден 273"},{"$f":"IF(WEEKDAY(ДенКалендар)=СтойностНачалоСедмица,CONCATENATE(\"Седмица \",WEEKNUM(ДенКалендар),\"/Ден \",ДенКалендар-DATE(YEAR(ДенКалендар),1,0)),CONCATENATE(\"Ден \",ДенКалендар-DATE(YEAR(ДенКалендар),1,0)))","v":"Ден 274"}]

{"sheet":"ОКТ","index":9,"n_rows":20,"n_cols":9,"rows_kept":20,"merged":[[16,2,17,2],[17,4,19,8]]}
[null,"ОКТ",{"$f":"UPPER(TEXT(НачалоСедмица,\"ddd\"))","v":"НЕД"},{"$f":"UPPER(TEXT(D3,\"aaa\"))","v":"MON"},"TUE","WED","THU","FRI","SAT"]
[null,{"$f":"ГодинаКалендар","v":2018}]
[null,null,{"$f":"ДниИСемици+DATE(ГодинаКалендар,10,1)-WEEKDAY(DATE(ГодинаКалендар,10,1),(НачалоСедмица=\"ПОН\")+1)+1","v":"2018-09-30"},"2018-10-01","2018-10-02","2018-10-03","2018-10-04","2018-10-05","2018-10-06"]
[null,null,{"$f":"IF(DAY(ДенКалендар)=1,CONCATENATE(\"Седмица \",WEEKNUM(ДенКалендар),\"/Ден \",ДенКалендар-DATE(YEAR(ДенКалендар),1,0)),CONCATENATE(\"Ден \",ДенКалендар-DATE(YEAR(ДенКалендар),1,0)))","v":"Ден 273"},{"$f":"IF(DAY(ДенКалендар)=1,CONCATENATE(\"Седмица \",WEEKNUM(ДенКалендар),\"/Ден \",ДенКалендар-DATE(YEAR(ДенКалендар),1,0)),CONCATENATE(\"Ден \",ДенКалендар-DATE(YEAR(ДенКалендар),1,0)))","v":"Седмица 40/Ден 274"},{"$f":"IF(DAY(ДенКалендар)=1,CONCATENATE(\"Седмица \",WEEKNUM(ДенКалендар),\"/Ден \",ДенКалендар-DATE(YEAR(ДенКалендар),1,0)),CONCATENATE(\"Ден \",ДенКалендар-DATE(YEAR(ДенКалендар),1,0)))","v":"Ден 275"},{"$f":"IF(DAY(ДенКалендар)=1,CONCATENATE(\"Седмица \",WEEKNUM(ДенКалендар),\"/Ден \",ДенКалендар-DATE(YEAR(ДенКалендар),1,0)),CONCATENATE(\"Ден \",ДенКалендар-DATE(YEAR(ДенКалендар),1,0)))","v":"Ден 276"},{"$f":"IF(DAY(ДенКалендар)=1,CONCATENATE(\"Седмица \",WEEKNUM(ДенКалендар),\"/Ден \",ДенКалендар-DATE(YEAR(ДенКалендар),1,0)),CONCATENATE(\"Ден \",ДенКалендар-DATE(YEAR(ДенКалендар),1,0)))","v":"Ден 277"},{"$f":"IF(DAY(ДенКалендар)=1,CONCATENATE(\"Седмица \",WEEKNUM(ДенКалендар),\"/Ден \",ДенКалендар-DATE(YEAR(ДенКалендар),1,0)),CONCATENATE(\"Ден \",ДенКалендар-DATE(YEAR(ДенКалендар),1,0)))","v":"Ден 278"},{"$f":"IF(DAY(ДенКалендар)=1,CONCATENATE(\"Седмица \",WEEKNUM(ДенКалендар),\"/Ден \",ДенКалендар-DATE(YEAR(ДенКалендар),1,0)),CONCATENATE(\"Ден \",ДенКалендар-DATE(YEAR(ДенКалендар),1,0)))","v":"Ден 279"}]
[]
[null,null,{"$f":"ДниИСемици+DATE(ГодинаКалендар,10,1)-WEEKDAY(DATE(ГодинаКалендар,10,1),(НачалоСедмица=\"ПОН\")+1)+8","v":"2018-10-07"},"2018-10-08","2018-10-09","2018-10-10","2018-10-11","2018-10-12","2018-10-13"]
[null,null,{"$f":"IF(WEEKDAY(ДенКалендар)=СтойностНачалоСедмица,CONCATENATE(\"Седмица \",WEEKNUM(ДенКалендар),\"/Ден \",ДенКалендар-DATE(YEAR(ДенКалендар),1,0)),CONCATENATE(\"Ден \",ДенКалендар-DATE(YEAR(ДенКалендар),1,0)))","v":"Седмица 41/Ден 280"},{"$f":"IF(WEEKDAY(ДенКалендар)=СтойностНачалоСедмица,CONCATENATE(\"Седмица \",WEEKNUM(ДенКалендар),\"/Ден \",ДенКалендар-DATE(YEAR(ДенКалендар),1,0)),CONCATENATE(\"Ден \",ДенКалендар-DATE(YEAR(ДенКалендар),1,0)))","v":"Ден 281"},{"$f":"IF(WEEKDAY(ДенКалендар)=СтойностНачалоСедмица,CONCATENATE(\"Седмица \",WEEKNUM(ДенКалендар),\"/Ден \",ДенКалендар-DATE(YEAR(ДенКалендар),1,0)),CONCATENATE(\"Ден \",ДенКалендар-DATE(YEAR(ДенКалендар),1,0)))","v":"Ден 282"},{"$f":"IF(WEEKDAY(ДенКалендар)=СтойностНачалоСедмица,CONCATENATE(\"Седмица \",WEEKNUM(ДенКалендар),\"/Ден \",ДенКалендар-DATE(YEAR(ДенКалендар),1,0)),CONCATENATE(\"Ден \",ДенКалендар-DATE(YEAR(ДенКалендар),1,0)))","v":"Ден 283"},{"$f":"IF(WEEKDAY(ДенКалендар)=СтойностНачалоСедмица,CONCATENATE(\"Седмица \",WEEKNUM(ДенКалендар),\"/Ден \",ДенКалендар-DATE(YEAR(ДенКалендар),1,0)),CONCATENATE(\"Ден \",ДенКалендар-DATE(YEAR(ДенКалендар),1,0)))","v":"Ден 284"},{"$f":"IF(WEEKDAY(ДенКалендар)=СтойностНачалоСедмица,CONCATENATE(\"Седмица \",WEEKNUM(ДенКалендар),\"/Ден \",ДенКалендар-DATE(YEAR(ДенКалендар),1,0)),CONCATENATE(\"Ден \",ДенКалендар-DATE(YEAR(ДенКалендар),1,0)))","v":"Ден 285"},{"$f":"IF(WEEKDAY(ДенКалендар)=СтойностНачалоСедмица,CONCATENATE(\"Седмица \",WEEKNUM(ДенКалендар),\"/Ден \",ДенКалендар-DATE(YEAR(ДенКалендар),1,0)),CONCATENATE(\"Ден \",ДенКалендар-DATE(YEAR(ДенКалендар),1,0)))","v":"Ден 286"}]
[]
[null,null,{"$f":"ДниИСемици+DATE(ГодинаКалендар,10,1)-WEEKDAY(DATE(ГодинаКалендар,10,1),(НачалоСедмица=\"ПОН\")+1)+15","v":"2018-10-14"},"2018-10-15","2018-10-16","2018-10-17","2018-10-18","2018-10-19","2018-10-20"]
[null,null,{"$f":"IF(WEEKDAY(ДенКалендар)=СтойностНачалоСедмица,CONCATENATE(\"Седмица \",WEEKNUM(ДенКалендар),\"/Ден \",ДенКалендар-DATE(YEAR(ДенКалендар),1,0)),CONCATENATE(\"Ден \",ДенКалендар-DATE(YEAR(ДенКалендар),1,0)))","v":"Седмица 42/Ден 287"},{"$f":"IF(WEEKDAY(ДенКалендар)=СтойностНачалоСедмица,CONCATENATE(\"Седмица \",WEEKNUM(ДенКалендар),\"/Ден \",ДенКалендар-DATE(YEAR(ДенКалендар),1,0)),CONCATENATE(\"Ден \",ДенКалендар-DATE(YEAR(ДенКалендар),1,0)))","v":"Ден 288"},{"$f":"IF(WEEKDAY(ДенКалендар)=СтойностНачалоСедмица,CONCATENATE(\"Седмица \",WEEKNUM(ДенКалендар),\"/Ден \",ДенКалендар-DATE(YEAR(ДенКалендар),1,0)),CONCATENATE(\"Ден \",ДенКалендар-DATE(YEAR(ДенКалендар),1,0)))","v":"Ден 289"},{"$f":"IF(WEEKDAY(ДенКалендар)=СтойностНачалоСедмица,CONCATENATE(\"Седмица \",WEEKNUM(ДенКалендар),\"/Ден \",ДенКалендар-DATE(YEAR(ДенКалендар),1,0)),CONCATENATE(\"Ден \",ДенКалендар-DATE(YEAR(ДенКалендар),1,0)))","v":"Ден 290"},{"$f":"IF(WEEKDAY(ДенКалендар)=СтойностНачалоСедмица,CONCATENATE(\"Седмица \",WEEKNUM(ДенКалендар),\"/Ден \",ДенКалендар-DATE(YEAR(ДенКалендар),1,0)),CONCATENATE(\"Ден \",ДенКалендар-DATE(YEAR(ДенКалендар),1,0)))","v":"Ден 291"},{"$f":"IF(WEEKDAY(ДенКалендар)=СтойностНачалоСедмица,CONCATENATE(\"Седмица \",WEEKNUM(ДенКалендар),\"/Ден \",ДенКалендар-DATE(YEAR(ДенКалендар),1,0)),CONCATENATE(\"Ден \",ДенКалендар-DATE(YEAR(ДенКалендар),1,0)))","v":"Ден 292"},{"$f":"IF(WEEKDAY(ДенКалендар)=СтойностНачалоСедмица,CONCATENATE(\"Седмица \",WEEKNUM(ДенКалендар),\"/Ден \",ДенКалендар-DATE(YEAR(ДенКалендар),1,0)),CONCATENATE(\"Ден \",ДенКалендар-DATE(YEAR(ДенКалендар),1,0)))","v":"Ден 293"}]
[]
[null,null,{"$f":"ДниИСемици+DATE(ГодинаКалендар,10,1)-WEEKDAY(DATE(ГодинаКалендар,10,1),(НачалоСедмица=\"ПОН\")+1)+22","v":"2018-10-21"},"2018-10-22","2018-10-23","2018-10-24","2018-10-25","2018-10-26","2018-10-27"]
[null,null,{"$f":"IF(WEEKDAY(ДенКалендар)=СтойностНачалоСедмица,CONCATENATE(\"Седмица \",WEEKNUM(ДенКалендар),\"/Ден \",ДенКалендар-DATE(YEAR(ДенКалендар),1,0)),CONCATENATE(\"Ден \",ДенКалендар-DATE(YEAR(ДенКалендар),1,0)))","v":"Седмица 43/Ден 294"},{"$f":"IF(WEEKDAY(ДенКалендар)=СтойностНачалоСедмица,CONCATENATE(\"Седмица \",WEEKNUM(ДенКалендар),\"/Ден \",ДенКалендар-DATE(YEAR(ДенКалендар),1,0)),CONCATENATE(\"Ден \",ДенКалендар-DATE(YEAR(ДенКалендар),1,0)))","v":"Ден 295"},{"$f":"IF(WEEKDAY(ДенКалендар)=СтойностНачалоСедмица,CONCATENATE(\"Седмица \",WEEKNUM(ДенКалендар),\"/Ден \",ДенКалендар-DATE(YEAR(ДенКалендар),1,0)),CONCATENATE(\"Ден \",ДенКалендар-DATE(YEAR(ДенКалендар),1,0)))","v":"Ден 296"},{"$f":"IF(WEEKDAY(ДенКалендар)=СтойностНачалоСедмица,CONCATENATE(\"Седмица \",WEEKNUM(ДенКалендар),\"/Ден \",ДенКалендар-DATE(YEAR(ДенКалендар),1,0)),CONCATENATE(\"Ден \",ДенКалендар-DATE(YEAR(ДенКалендар),1,0)))","v":"Ден 297"},{"$f":"IF(WEEKDAY(ДенКалендар)=СтойностНачалоСедмица,CONCATENATE(\"Седмица \",WEEKNUM(ДенКалендар),\"/Ден \",ДенКалендар-DATE(YEAR(ДенКалендар),1,0)),CONCATENATE(\"Ден \",ДенКалендар-DATE(YEAR(ДенКалендар),1,0)))","v":"Ден 298"},{"$f":"IF(WEEKDAY(ДенКалендар)=СтойностНачалоСедмица,CONCATENATE(\"Седмица \",WEEKNUM(ДенКалендар),\"/Ден \",ДенКалендар-DATE(YEAR(ДенКалендар),1,0)),CONCATENATE(\"Ден \",ДенКалендар-DATE(YEAR(ДенКалендар),1,0)))","v":"Ден 299"},{"$f":"IF(WEEKDAY(ДенКалендар)=СтойностНачалоСедмица,CONCATENATE(\"Седмица \",WEEKNUM(ДенКалендар),\"/Ден \",ДенКалендар-DATE(YEAR(ДенКалендар),1,0)),CONCATENATE(\"Ден \",ДенКалендар-DATE(YEAR(ДенКалендар),1,0)))","v":"Ден 300"}]
[]
[null,null,{"$f":"ДниИСемици+DATE(ГодинаКалендар,10,1)-WEEKDAY(DATE(ГодинаКалендар,10,1),(НачалоСедмица=\"ПОН\")+1)+29","v":"2018-10-28"},"2018-10-29","2018-10-30","2018-10-31","2018-11-01","2018-11-02","2018-11-03"]
[null,null,{"$f":"IF(WEEKDAY(ДенКалендар)=СтойностНачалоСедмица,CONCATENATE(\"Седмица \",WEEKNUM(ДенКалендар),\"/Ден \",ДенКалендар-DATE(YEAR(ДенКалендар),1,0)),CONCATENATE(\"Ден \",ДенКалендар-DATE(YEAR(ДенКалендар),1,0)))","v":"Седмица 44/Ден 301"},{"$f":"IF(WEEKDAY(ДенКалендар)=СтойностНачалоСедмица,CONCATENATE(\"Седмица \",WEEKNUM(ДенКалендар),\"/Ден \",ДенКалендар-DATE(YEAR(ДенКалендар),1,0)),CONCATENATE(\"Ден \",ДенКалендар-DATE(YEAR(ДенКалендар),1,0)))","v":"Ден 302"},{"$f":"IF(WEEKDAY(ДенКалендар)=СтойностНачалоСедмица,CONCATENATE(\"Седмица \",WEEKNUM(ДенКалендар),\"/Ден \",ДенКалендар-DATE(YEAR(ДенКалендар),1,0)),CONCATENATE(\"Ден \",ДенКалендар-DATE(YEAR(ДенКалендар),1,0)))","v":"Ден 303"},{"$f":"IF(WEEKDAY(ДенКалендар)=СтойностНачалоСедмица,CONCATENATE(\"Седмица \",WEEKNUM(ДенКалендар),\"/Ден \",ДенКалендар-DATE(YEAR(ДенКалендар),1,0)),CONCATENATE(\"Ден \",ДенКалендар-DATE(YEAR(ДенКалендар),1,0)))","v":"Ден 304"},{"$f":"IF(WEEKDAY(ДенКалендар)=СтойностНачалоСедмица,CONCATENATE(\"Седмица \",WEEKNUM(ДенКалендар),\"/Ден \",ДенКалендар-DATE(YEAR(ДенКалендар),1,0)),CONCATENATE(\"Ден \",ДенКалендар-DATE(YEAR(ДенКалендар),1,0)))","v":"Ден 305"},{"$f":"IF(WEEKDAY(ДенКалендар)=СтойностНачалоСедмица,CONCATENATE(\"Седмица \",WEEKNUM(ДенКалендар),\"/Ден \",ДенКалендар-DATE(YEAR(ДенКалендар),1,0)),CONCATENATE(\"Ден \",ДенКалендар-DATE(YEAR(ДенКалендар),1,0)))","v":"Ден 306"},{"$f":"IF(WEEKDAY(ДенКалендар)=СтойностНачалоСедмица,CONCATENATE(\"Седмица \",WEEKNUM(ДенКалендар),\"/Ден \",ДенКалендар-DATE(YEAR(ДенКалендар),1,0)),CONCATENATE(\"Ден \",ДенКалендар-DATE(YEAR(ДенКалендар),1,0)))","v":"Ден 307"}]
[{"$nulls":4},"БЕЛЕЖКИ"]
[]
[null,null,{"$f":"ДниИСемици+DATE(ГодинаКалендар,10,1)-WEEKDAY(DATE(ГодинаКалендар,10,1),(НачалоСедмица=\"ПОН\")+1)+36","v":"2018-11-04"},"2018-11-05"]
[null,null,{"$f":"IF(WEEKDAY(ДенКалендар)=СтойностНачалоСедмица,CONCATENATE(\"Седмица \",WEEKNUM(ДенКалендар),\"/Ден \",ДенКалендар-DATE(YEAR(ДенКалендар),1,0)),CONCATENATE(\"Ден \",ДенКалендар-DATE(YEAR(ДенКалендар),1,0)))","v":"Седмица 45/Ден 308"},{"$f":"IF(WEEKDAY(ДенКалендар)=СтойностНачалоСедмица,CONCATENATE(\"Седмица \",WEEKNUM(ДенКалендар),\"/Ден \",ДенКалендар-DATE(YEAR(ДенКалендар),1,0)),CONCATENATE(\"Ден \",ДенКалендар-DATE(YEAR(ДенКалендар),1,0)))","v":"Ден 309"}]

{"sheet":"НОЕ","index":10,"n_rows":20,"n_cols":9,"rows_kept":20,"merged":[[16,2,17,2],[17,4,19,8]]}
[null,"НОЕ",{"$f":"UPPER(TEXT(НачалоСедмица,\"ddd\"))","v":"НЕД"},{"$f":"UPPER(TEXT(D3,\"aaa\"))","v":"MON"},"TUE","WED","THU","FRI","SAT"]
[null,{"$f":"ГодинаКалендар","v":2018}]
[null,null,{"$f":"ДниИСемици+DATE(ГодинаКалендар,11,1)-WEEKDAY(DATE(ГодинаКалендар,11,1),(НачалоСедмица=\"ПОН\")+1)+1","v":"2018-10-28"},"2018-10-29","2018-10-30","2018-10-31","2018-11-01","2018-11-02","2018-11-03"]
[null,null,{"$f":"IF(DAY(ДенКалендар)=1,CONCATENATE(\"Седмица \",WEEKNUM(ДенКалендар),\"/Ден \",ДенКалендар-DATE(YEAR(ДенКалендар),1,0)),CONCATENATE(\"Ден \",ДенКалендар-DATE(YEAR(ДенКалендар),1,0)))","v":"Ден 301"},{"$f":"IF(DAY(ДенКалендар)=1,CONCATENATE(\"Седмица \",WEEKNUM(ДенКалендар),\"/Ден \",ДенКалендар-DATE(YEAR(ДенКалендар),1,0)),CONCATENATE(\"Ден \",ДенКалендар-DATE(YEAR(ДенКалендар),1,0)))","v":"Ден 302"},{"$f":"IF(DAY(ДенКалендар)=1,CONCATENATE(\"Седмица \",WEEKNUM(ДенКалендар),\"/Ден \",ДенКалендар-DATE(YEAR(ДенКалендар),1,0)),CONCATENATE(\"Ден \",ДенКалендар-DATE(YEAR(ДенКалендар),1,0)))","v":"Ден 303"},{"$f":"IF(DAY(ДенКалендар)=1,CONCATENATE(\"Седмица \",WEEKNUM(ДенКалендар),\"/Ден \",ДенКалендар-DATE(YEAR(ДенКалендар),1,0)),CONCATENATE(\"Ден \",ДенКалендар-DATE(YEAR(ДенКалендар),1,0)))","v":"Ден 304"},{"$f":"IF(DAY(ДенКалендар)=1,CONCATENATE(\"Седмица \",WEEKNUM(ДенКалендар),\"/Ден \",ДенКалендар-DATE(YEAR(ДенКалендар),1,0)),CONCATENATE(\"Ден \",ДенКалендар-DATE(YEAR(ДенКалендар),1,0)))","v":"Седмица 44/Ден 305"},{"$f":"IF(DAY(ДенКалендар)=1,CONCATENATE(\"Седмица \",WEEKNUM(ДенКалендар),\"/Ден \",ДенКалендар-DATE(YEAR(ДенКалендар),1,0)),CONCATENATE(\"Ден \",ДенКалендар-DATE(YEAR(ДенКалендар),1,0)))","v":"Ден 306"},{"$f":"IF(DAY(ДенКалендар)=1,CONCATENATE(\"Седмица \",WEEKNUM(ДенКалендар),\"/Ден \",ДенКалендар-DATE(YEAR(ДенКалендар),1,0)),CONCATENATE(\"Ден \",ДенКалендар-DATE(YEAR(ДенКалендар),1,0)))","v":"Ден 307"}]
[]
[null,null,{"$f":"ДниИСемици+DATE(ГодинаКалендар,11,1)-WEEKDAY(DATE(ГодинаКалендар,11,1),(НачалоСедмица=\"ПОН\")+1)+8","v":"2018-11-04"},"2018-11-05","2018-11-06","2018-11-07","2018-11-08","2018-11-09","2018-11-10"]
[null,null,{"$f":"IF(WEEKDAY(ДенКалендар)=СтойностНачалоСедмица,CONCATENATE(\"Седмица \",WEEKNUM(ДенКалендар),\"/Ден \",ДенКалендар-DATE(YEAR(ДенКалендар),1,0)),CONCATENATE(\"Ден \",ДенКалендар-DATE(YEAR(ДенКалендар),1,0)))","v":"Седмица 45/Ден 308"},{"$f":"IF(WEEKDAY(ДенКалендар)=СтойностНачалоСедмица,CONCATENATE(\"Седмица \",WEEKNUM(ДенКалендар),\"/Ден \",ДенКалендар-DATE(YEAR(ДенКалендар),1,0)),CONCATENATE(\"Ден \",ДенКалендар-DATE(YEAR(ДенКалендар),1,0)))","v":"Ден 309"},{"$f":"IF(WEEKDAY(ДенКалендар)=СтойностНачалоСедмица,CONCATENATE(\"Седмица \",WEEKNUM(ДенКалендар),\"/Ден \",ДенКалендар-DATE(YEAR(ДенКалендар),1,0)),CONCATENATE(\"Ден \",ДенКалендар-DATE(YEAR(ДенКалендар),1,0)))","v":"Ден 310"},{"$f":"IF(WEEKDAY(ДенКалендар)=СтойностНачалоСедмица,CONCATENATE(\"Седмица \",WEEKNUM(ДенКалендар),\"/Ден \",ДенКалендар-DATE(YEAR(ДенКалендар),1,0)),CONCATENATE(\"Ден \",ДенКалендар-DATE(YEAR(ДенКалендар),1,0)))","v":"Ден 311"},{"$f":"IF(WEEKDAY(ДенКалендар)=СтойностНачалоСедмица,CONCATENATE(\"Седмица \",WEEKNUM(ДенКалендар),\"/Ден \",ДенКалендар-DATE(YEAR(ДенКалендар),1,0)),CONCATENATE(\"Ден \",ДенКалендар-DATE(YEAR(ДенКалендар),1,0)))","v":"Ден 312"},{"$f":"IF(WEEKDAY(ДенКалендар)=СтойностНачалоСедмица,CONCATENATE(\"Седмица \",WEEKNUM(ДенКалендар),\"/Ден \",ДенКалендар-DATE(YEAR(ДенКалендар),1,0)),CONCATENATE(\"Ден \",ДенКалендар-DATE(YEAR(ДенКалендар),1,0)))","v":"Ден 313"},{"$f":"IF(WEEKDAY(ДенКалендар)=СтойностНачалоСедмица,CONCATENATE(\"Седмица \",WEEKNUM(ДенКалендар),\"/Ден \",ДенКалендар-DATE(YEAR(ДенКалендар),1,0)),CONCATENATE(\"Ден \",ДенКалендар-DATE(YEAR(ДенКалендар),1,0)))","v":"Ден 314"}]
[]
[null,null,{"$f":"ДниИСемици+DATE(ГодинаКалендар,11,1)-WEEKDAY(DATE(ГодинаКалендар,11,1),(НачалоСедмица=\"ПОН\")+1)+15","v":"2018-11-11"},"2018-11-12","2018-11-13","2018-11-14","2018-11-15","2018-11-16","2018-11-17"]
[null,null,{"$f":"IF(WEEKDAY(ДенКалендар)=СтойностНачалоСедмица,CONCATENATE(\"Седмица \",WEEKNUM(ДенКалендар),\"/Ден \",ДенКалендар-DATE(YEAR(ДенКалендар),1,0)),CONCATENATE(\"Ден \",ДенКалендар-DATE(YEAR(ДенКалендар),1,0)))","v":"Седмица 46/Ден 315"},{"$f":"IF(WEEKDAY(ДенКалендар)=СтойностНачалоСедмица,CONCATENATE(\"Седмица \",WEEKNUM(ДенКалендар),\"/Ден \",ДенКалендар-DATE(YEAR(ДенКалендар),1,0)),CONCATENATE(\"Ден \",ДенКалендар-DATE(YEAR(ДенКалендар),1,0)))","v":"Ден 316"},{"$f":"IF(WEEKDAY(ДенКалендар)=СтойностНачалоСедмица,CONCATENATE(\"Седмица \",WEEKNUM(ДенКалендар),\"/Ден \",ДенКалендар-DATE(YEAR(ДенКалендар),1,0)),CONCATENATE(\"Ден \",ДенКалендар-DATE(YEAR(ДенКалендар),1,0)))","v":"Ден 317"},{"$f":"IF(WEEKDAY(ДенКалендар)=СтойностНачалоСедмица,CONCATENATE(\"Седмица \",WEEKNUM(ДенКалендар),\"/Ден \",ДенКалендар-DATE(YEAR(ДенКалендар),1,0)),CONCATENATE(\"Ден \",ДенКалендар-DATE(YEAR(ДенКалендар),1,0)))","v":"Ден 318"},{"$f":"IF(WEEKDAY(ДенКалендар)=СтойностНачалоСедмица,CONCATENATE(\"Седмица \",WEEKNUM(ДенКалендар),\"/Ден \",ДенКалендар-DATE(YEAR(ДенКалендар),1,0)),CONCATENATE(\"Ден \",ДенКалендар-DATE(YEAR(ДенКалендар),1,0)))","v":"Ден 319"},{"$f":"IF(WEEKDAY(ДенКалендар)=СтойностНачалоСедмица,CONCATENATE(\"Седмица \",WEEKNUM(ДенКалендар),\"/Ден \",ДенКалендар-DATE(YEAR(ДенКалендар),1,0)),CONCATENATE(\"Ден \",ДенКалендар-DATE(YEAR(ДенКалендар),1,0)))","v":"Ден 320"},{"$f":"IF(WEEKDAY(ДенКалендар)=СтойностНачалоСедмица,CONCATENATE(\"Седмица \",WEEKNUM(ДенКалендар),\"/Ден \",ДенКалендар-DATE(YEAR(ДенКалендар),1,0)),CONCATENATE(\"Ден \",ДенКалендар-DATE(YEAR(ДенКалендар),1,0)))","v":"Ден 321"}]
[]
[null,null,{"$f":"ДниИСемици+DATE(ГодинаКалендар,11,1)-WEEKDAY(DATE(ГодинаКалендар,11,1),(НачалоСедмица=\"ПОН\")+1)+22","v":"2018-11-18"},"2018-11-19","2018-11-20","2018-11-21","2018-11-22","2018-11-23","2018-11-24"]
[null,null,{"$f":"IF(WEEKDAY(ДенКалендар)=СтойностНачалоСедмица,CONCATENATE(\"Седмица \",WEEKNUM(ДенКалендар),\"/Ден \",ДенКалендар-DATE(YEAR(ДенКалендар),1,0)),CONCATENATE(\"Ден \",ДенКалендар-DATE(YEAR(ДенКалендар),1,0)))","v":"Седмица 47/Ден 322"},{"$f":"IF(WEEKDAY(ДенКалендар)=СтойностНачалоСедмица,CONCATENATE(\"Седмица \",WEEKNUM(ДенКалендар),\"/Ден \",ДенКалендар-DATE(YEAR(ДенКалендар),1,0)),CONCATENATE(\"Ден \",ДенКалендар-DATE(YEAR(ДенКалендар),1,0)))","v":"Ден 323"},{"$f":"IF(WEEKDAY(ДенКалендар)=СтойностНачалоСедмица,CONCATENATE(\"Седмица \",WEEKNUM(ДенКалендар),\"/Ден \",ДенКалендар-DATE(YEAR(ДенКалендар),1,0)),CONCATENATE(\"Ден \",ДенКалендар-DATE(YEAR(ДенКалендар),1,0)))","v":"Ден 324"},{"$f":"IF(WEEKDAY(ДенКалендар)=СтойностНачалоСедмица,CONCATENATE(\"Седмица \",WEEKNUM(ДенКалендар),\"/Ден \",ДенКалендар-DATE(YEAR(ДенКалендар),1,0)),CONCATENATE(\"Ден \",ДенКалендар-DATE(YEAR(ДенКалендар),1,0)))","v":"Ден 325"},{"$f":"IF(WEEKDAY(ДенКалендар)=СтойностНачалоСедмица,CONCATENATE(\"Седмица \",WEEKNUM(ДенКалендар),\"/Ден \",ДенКалендар-DATE(YEAR(ДенКалендар),1,0)),CONCATENATE(\"Ден \",ДенКалендар-DATE(YEAR(ДенКалендар),1,0)))","v":"Ден 326"},{"$f":"IF(WEEKDAY(ДенКалендар)=СтойностНачалоСедмица,CONCATENATE(\"Седмица \",WEEKNUM(ДенКалендар),\"/Ден \",ДенКалендар-DATE(YEAR(ДенКалендар),1,0)),CONCATENATE(\"Ден \",ДенКалендар-DATE(YEAR(ДенКалендар),1,0)))","v":"Ден 327"},{"$f":"IF(WEEKDAY(ДенКалендар)=СтойностНачалоСедмица,CONCATENATE(\"Седмица \",WEEKNUM(ДенКалендар),\"/Ден \",ДенКалендар-DATE(YEAR(ДенКалендар),1,0)),CONCATENATE(\"Ден \",ДенКалендар-DATE(YEAR(ДенКалендар),1,0)))","v":"Ден 328"}]
[]
[null,null,{"$f":"ДниИСемици+DATE(ГодинаКалендар,11,1)-WEEKDAY(DATE(ГодинаКалендар,11,1),(НачалоСедмица=\"ПОН\")+1)+29","v":"2018-11-25"},"2018-11-26","2018-11-27","2018-11-28","2018-11-29","2018-11-30","2018-12-01"]
[null,null,{"$f":"IF(WEEKDAY(ДенКалендар)=СтойностНачалоСедмица,CONCATENATE(\"Седмица \",WEEKNUM(ДенКалендар),\"/Ден \",ДенКалендар-DATE(YEAR(ДенКалендар),1,0)),CONCATENATE(\"Ден \",ДенКалендар-DATE(YEAR(ДенКалендар),1,0)))","v":"Седмица 48/Ден 329"},{"$f":"IF(WEEKDAY(ДенКалендар)=СтойностНачалоСедмица,CONCATENATE(\"Седмица \",WEEKNUM(ДенКалендар),\"/Ден \",ДенКалендар-DATE(YEAR(ДенКалендар),1,0)),CONCATENATE(\"Ден \",ДенКалендар-DATE(YEAR(ДенКалендар),1,0)))","v":"Ден 330"},{"$f":"IF(WEEKDAY(ДенКалендар)=СтойностНачалоСедмица,CONCATENATE(\"Седмица \",WEEKNUM(ДенКалендар),\"/Ден \",ДенКалендар-DATE(YEAR(ДенКалендар),1,0)),CONCATENATE(\"Ден \",ДенКалендар-DATE(YEAR(ДенКалендар),1,0)))","v":"Ден 331"},{"$f":"IF(WEEKDAY(ДенКалендар)=СтойностНачалоСедмица,CONCATENATE(\"Седмица \",WEEKNUM(ДенКалендар),\"/Ден \",ДенКалендар-DATE(YEAR(ДенКалендар),1,0)),CONCATENATE(\"Ден \",ДенКалендар-DATE(YEAR(ДенКалендар),1,0)))","v":"Ден 332"},{"$f":"IF(WEEKDAY(ДенКалендар)=СтойностНачалоСедмица,CONCATENATE(\"Седмица \",WEEKNUM(ДенКалендар),\"/Ден \",ДенКалендар-DATE(YEAR(ДенКалендар),1,0)),CONCATENATE(\"Ден \",ДенКалендар-DATE(YEAR(ДенКалендар),1,0)))","v":"Ден 333"},{"$f":"IF(WEEKDAY(ДенКалендар)=СтойностНачалоСедмица,CONCATENATE(\"Седмица \",WEEKNUM(ДенКалендар),\"/Ден \",ДенКалендар-DATE(YEAR(ДенКалендар),1,0)),CONCATENATE(\"Ден \",ДенКалендар-DATE(YEAR(ДенКалендар),1,0)))","v":"Ден 334"},{"$f":"IF(WEEKDAY(ДенКалендар)=СтойностНачалоСедмица,CONCATENATE(\"Седмица \",WEEKNUM(ДенКалендар),\"/Ден \",ДенКалендар-DATE(YEAR(ДенКалендар),1,0)),CONCATENATE(\"Ден \",ДенКалендар-DATE(YEAR(ДенКалендар),1,0)))","v":"Ден 335"}]
[{"$nulls":4},"БЕЛЕЖКИ"]
[]
[null,null,{"$f":"ДниИСемици+DATE(ГодинаКалендар,11,1)-WEEKDAY(DATE(ГодинаКалендар,11,1),(НачалоСедмица=\"ПОН\")+1)+36","v":"2018-12-02"},"2018-12-03"]
[null,null,{"$f":"IF(WEEKDAY(ДенКалендар)=СтойностНачалоСедмица,CONCATENATE(\"Седмица \",WEEKNUM(ДенКалендар),\"/Ден \",ДенКалендар-DATE(YEAR(ДенКалендар),1,0)),CONCATENATE(\"Ден \",ДенКалендар-DATE(YEAR(ДенКалендар),1,0)))","v":"Седмица 49/Ден 336"},{"$f":"IF(WEEKDAY(ДенКалендар)=СтойностНачалоСедмица,CONCATENATE(\"Седмица \",WEEKNUM(ДенКалендар),\"/Ден \",ДенКалендар-DATE(YEAR(ДенКалендар),1,0)),CONCATENATE(\"Ден \",ДенКалендар-DATE(YEAR(ДенКалендар),1,0)))","v":"Ден 337"}]

{"sheet":"ДЕК","index":11,"n_rows":20,"n_cols":9,"rows_kept":20,"merged":[[16,2,17,2],[17,4,19,8]]}
[null,"ДЕК",{"$f":"UPPER(TEXT(НачалоСедмица,\"ddd\"))","v":"НЕД"},{"$f":"UPPER(TEXT(D3,\"aaa\"))","v":"MON"},"TUE","WED","THU","FRI","SAT"]
[null,{"$f":"ГодинаКалендар","v":2018}]
[null,null,{"$f":"ДниИСемици+DATE(ГодинаКалендар,12,1)-WEEKDAY(DATE(ГодинаКалендар,12,1),(НачалоСедмица=\"ПОН\")+1)+1","v":"2018-11-25"},"2018-11-26","2018-11-27","2018-11-28","2018-11-29","2018-11-30","2018-12-01"]
[null,null,{"$f":"IF(DAY(ДенКалендар)=1,CONCATENATE(\"Седмица \",WEEKNUM(ДенКалендар),\"/Ден \",ДенКалендар-DATE(YEAR(ДенКалендар),1,0)),CONCATENATE(\"Ден \",ДенКалендар-DATE(YEAR(ДенКалендар),1,0)))","v":"Ден 329"},{"$f":"IF(DAY(ДенКалендар)=1,CONCATENATE(\"Седмица \",WEEKNUM(ДенКалендар),\"/Ден \",ДенКалендар-DATE(YEAR(ДенКалендар),1,0)),CONCATENATE(\"Ден \",ДенКалендар-DATE(YEAR(ДенКалендар),1,0)))","v":"Ден 330"},{"$f":"IF(DAY(ДенКалендар)=1,CONCATENATE(\"Седмица \",WEEKNUM(ДенКалендар),\"/Ден \",ДенКалендар-DATE(YEAR(ДенКалендар),1,0)),CONCATENATE(\"Ден \",ДенКалендар-DATE(YEAR(ДенКалендар),1,0)))","v":"Ден 331"},{"$f":"IF(DAY(ДенКалендар)=1,CONCATENATE(\"Седмица \",WEEKNUM(ДенКалендар),\"/Ден \",ДенКалендар-DATE(YEAR(ДенКалендар),1,0)),CONCATENATE(\"Ден \",ДенКалендар-DATE(YEAR(ДенКалендар),1,0)))","v":"Ден 332"},{"$f":"IF(DAY(ДенКалендар)=1,CONCATENATE(\"Седмица \",WEEKNUM(ДенКалендар),\"/Ден \",ДенКалендар-DATE(YEAR(ДенКалендар),1,0)),CONCATENATE(\"Ден \",ДенКалендар-DATE(YEAR(ДенКалендар),1,0)))","v":"Ден 333"},{"$f":"IF(DAY(ДенКалендар)=1,CONCATENATE(\"Седмица \",WEEKNUM(ДенКалендар),\"/Ден \",ДенКалендар-DATE(YEAR(ДенКалендар),1,0)),CONCATENATE(\"Ден \",ДенКалендар-DATE(YEAR(ДенКалендар),1,0)))","v":"Ден 334"},{"$f":"IF(DAY(ДенКалендар)=1,CONCATENATE(\"Седмица \",WEEKNUM(ДенКалендар),\"/Ден \",ДенКалендар-DATE(YEAR(ДенКалендар),1,0)),CONCATENATE(\"Ден \",ДенКалендар-DATE(YEAR(ДенКалендар),1,0)))","v":"Седмица 48/Ден 335"}]
[]
[null,null,{"$f":"ДниИСемици+DATE(ГодинаКалендар,12,1)-WEEKDAY(DATE(ГодинаКалендар,12,1),(НачалоСедмица=\"ПОН\")+1)+8","v":"2018-12-02"},"2018-12-03","2018-12-04","2018-12-05","2018-12-06","2018-12-07","2018-12-08"]
[null,null,{"$f":"IF(WEEKDAY(ДенКалендар)=СтойностНачалоСедмица,CONCATENATE(\"Седмица \",WEEKNUM(ДенКалендар),\"/Ден \",ДенКалендар-DATE(YEAR(ДенКалендар),1,0)),CONCATENATE(\"Ден \",ДенКалендар-DATE(YEAR(ДенКалендар),1,0)))","v":"Седмица 49/Ден 336"},{"$f":"IF(WEEKDAY(ДенКалендар)=СтойностНачалоСедмица,CONCATENATE(\"Седмица \",WEEKNUM(ДенКалендар),\"/Ден \",ДенКалендар-DATE(YEAR(ДенКалендар),1,0)),CONCATENATE(\"Ден \",ДенКалендар-DATE(YEAR(ДенКалендар),1,0)))","v":"Ден 337"},{"$f":"IF(WEEKDAY(ДенКалендар)=СтойностНачалоСедмица,CONCATENATE(\"Седмица \",WEEKNUM(ДенКалендар),\"/Ден \",ДенКалендар-DATE(YEAR(ДенКалендар),1,0)),CONCATENATE(\"Ден \",ДенКалендар-DATE(YEAR(ДенКалендар),1,0)))","v":"Ден 338"},{"$f":"IF(WEEKDAY(ДенКалендар)=СтойностНачалоСедмица,CONCATENATE(\"Седмица \",WEEKNUM(ДенКалендар),\"/Ден \",ДенКалендар-DATE(YEAR(ДенКалендар),1,0)),CONCATENATE(\"Ден \",ДенКалендар-DATE(YEAR(ДенКалендар),1,0)))","v":"Ден 339"},{"$f":"IF(WEEKDAY(ДенКалендар)=СтойностНачалоСедмица,CONCATENATE(\"Седмица \",WEEKNUM(ДенКалендар),\"/Ден \",ДенКалендар-DATE(YEAR(ДенКалендар),1,0)),CONCATENATE(\"Ден \",ДенКалендар-DATE(YEAR(ДенКалендар),1,0)))","v":"Ден 340"},{"$f":"IF(WEEKDAY(ДенКалендар)=СтойностНачалоСедмица,CONCATENATE(\"Седмица \",WEEKNUM(ДенКалендар),\"/Ден \",ДенКалендар-DATE(YEAR(ДенКалендар),1,0)),CONCATENATE(\"Ден \",ДенКалендар-DATE(YEAR(ДенКалендар),1,0)))","v":"Ден 341"},{"$f":"IF(WEEKDAY(ДенКалендар)=СтойностНачалоСедмица,CONCATENATE(\"Седмица \",WEEKNUM(ДенКалендар),\"/Ден \",ДенКалендар-DATE(YEAR(ДенКалендар),1,0)),CONCATENATE(\"Ден \",ДенКалендар-DATE(YEAR(ДенКалендар),1,0)))","v":"Ден 342"}]
[]
[null,null,{"$f":"ДниИСемици+DATE(ГодинаКалендар,12,1)-WEEKDAY(DATE(ГодинаКалендар,12,1),(НачалоСедмица=\"ПОН\")+1)+15","v":"2018-12-09"},"2018-12-10","2018-12-11","2018-12-12","2018-12-13","2018-12-14","2018-12-15"]
[null,null,{"$f":"IF(WEEKDAY(ДенКалендар)=СтойностНачалоСедмица,CONCATENATE(\"Седмица \",WEEKNUM(ДенКалендар),\"/Ден \",ДенКалендар-DATE(YEAR(ДенКалендар),1,0)),CONCATENATE(\"Ден \",ДенКалендар-DATE(YEAR(ДенКалендар),1,0)))","v":"Седмица 50/Ден 343"},{"$f":"IF(WEEKDAY(ДенКалендар)=СтойностНачалоСедмица,CONCATENATE(\"Седмица \",WEEKNUM(ДенКалендар),\"/Ден \",ДенКалендар-DATE(YEAR(ДенКалендар),1,0)),CONCATENATE(\"Ден \",ДенКалендар-DATE(YEAR(ДенКалендар),1,0)))","v":"Ден 344"},{"$f":"IF(WEEKDAY(ДенКалендар)=СтойностНачалоСедмица,CONCATENATE(\"Седмица \",WEEKNUM(ДенКалендар),\"/Ден \",ДенКалендар-DATE(YEAR(ДенКалендар),1,0)),CONCATENATE(\"Ден \",ДенКалендар-DATE(YEAR(ДенКалендар),1,0)))","v":"Ден 345"},{"$f":"IF(WEEKDAY(ДенКалендар)=СтойностНачалоСедмица,CONCATENATE(\"Седмица \",WEEKNUM(ДенКалендар),\"/Ден \",ДенКалендар-DATE(YEAR(ДенКалендар),1,0)),CONCATENATE(\"Ден \",ДенКалендар-DATE(YEAR(ДенКалендар),1,0)))","v":"Ден 346"},{"$f":"IF(WEEKDAY(ДенКалендар)=СтойностНачалоСедмица,CONCATENATE(\"Седмица \",WEEKNUM(ДенКалендар),\"/Ден \",ДенКалендар-DATE(YEAR(ДенКалендар),1,0)),CONCATENATE(\"Ден \",ДенКалендар-DATE(YEAR(ДенКалендар),1,0)))","v":"Ден 347"},{"$f":"IF(WEEKDAY(ДенКалендар)=СтойностНачалоСедмица,CONCATENATE(\"Седмица \",WEEKNUM(ДенКалендар),\"/Ден \",ДенКалендар-DATE(YEAR(ДенКалендар),1,0)),CONCATENATE(\"Ден \",ДенКалендар-DATE(YEAR(ДенКалендар),1,0)))","v":"Ден 348"},{"$f":"IF(WEEKDAY(ДенКалендар)=СтойностНачалоСедмица,CONCATENATE(\"Седмица \",WEEKNUM(ДенКалендар),\"/Ден \",ДенКалендар-DATE(YEAR(ДенКалендар),1,0)),CONCATENATE(\"Ден \",ДенКалендар-DATE(YEAR(ДенКалендар),1,0)))","v":"Ден 349"}]
[]
[null,null,{"$f":"ДниИСемици+DATE(ГодинаКалендар,12,1)-WEEKDAY(DATE(ГодинаКалендар,12,1),(НачалоСедмица=\"ПОН\")+1)+22","v":"2018-12-16"},"2018-12-17","2018-12-18","2018-12-19","2018-12-20","2018-12-21","2018-12-22"]
[null,null,{"$f":"IF(WEEKDAY(ДенКалендар)=СтойностНачалоСедмица,CONCATENATE(\"Седмица \",WEEKNUM(ДенКалендар),\"/Ден \",ДенКалендар-DATE(YEAR(ДенКалендар),1,0)),CONCATENATE(\"Ден \",ДенКалендар-DATE(YEAR(ДенКалендар),1,0)))","v":"Седмица 51/Ден 350"},{"$f":"IF(WEEKDAY(ДенКалендар)=СтойностНачалоСедмица,CONCATENATE(\"Седмица \",WEEKNUM(ДенКалендар),\"/Ден \",ДенКалендар-DATE(YEAR(ДенКалендар),1,0)),CONCATENATE(\"Ден \",ДенКалендар-DATE(YEAR(ДенКалендар),1,0)))","v":"Ден 351"},{"$f":"IF(WEEKDAY(ДенКалендар)=СтойностНачалоСедмица,CONCATENATE(\"Седмица \",WEEKNUM(ДенКалендар),\"/Ден \",ДенКалендар-DATE(YEAR(ДенКалендар),1,0)),CONCATENATE(\"Ден \",ДенКалендар-DATE(YEAR(ДенКалендар),1,0)))","v":"Ден 352"},{"$f":"IF(WEEKDAY(ДенКалендар)=СтойностНачалоСедмица,CONCATENATE(\"Седмица \",WEEKNUM(ДенКалендар),\"/Ден \",ДенКалендар-DATE(YEAR(ДенКалендар),1,0)),CONCATENATE(\"Ден \",ДенКалендар-DATE(YEAR(ДенКалендар),1,0)))","v":"Ден 353"},{"$f":"IF(WEEKDAY(ДенКалендар)=СтойностНачалоСедмица,CONCATENATE(\"Седмица \",WEEKNUM(ДенКалендар),\"/Ден \",ДенКалендар-DATE(YEAR(ДенКалендар),1,0)),CONCATENATE(\"Ден \",ДенКалендар-DATE(YEAR(ДенКалендар),1,0)))","v":"Ден 354"},{"$f":"IF(WEEKDAY(ДенКалендар)=СтойностНачалоСедмица,CONCATENATE(\"Седмица \",WEEKNUM(ДенКалендар),\"/Ден \",ДенКалендар-DATE(YEAR(ДенКалендар),1,0)),CONCATENATE(\"Ден \",ДенКалендар-DATE(YEAR(ДенКалендар),1,0)))","v":"Ден 355"},{"$f":"IF(WEEKDAY(ДенКалендар)=СтойностНачалоСедмица,CONCATENATE(\"Седмица \",WEEKNUM(ДенКалендар),\"/Ден \",ДенКалендар-DATE(YEAR(ДенКалендар),1,0)),CONCATENATE(\"Ден \",ДенКалендар-DATE(YEAR(ДенКалендар),1,0)))","v":"Ден 356"}]
[]
[null,null,{"$f":"ДниИСемици+DATE(ГодинаКалендар,12,1)-WEEKDAY(DATE(ГодинаКалендар,12,1),(НачалоСедмица=\"ПОН\")+1)+29","v":"2018-12-23"},"2018-12-24","2018-12-25","2018-12-26","2018-12-27","2018-12-28","2018-12-29"]
[null,null,{"$f":"IF(WEEKDAY(ДенКалендар)=СтойностНачалоСедмица,CONCATENATE(\"Седмица \",WEEKNUM(ДенКалендар),\"/Ден \",ДенКалендар-DATE(YEAR(ДенКалендар),1,0)),CONCATENATE(\"Ден \",ДенКалендар-DATE(YEAR(ДенКалендар),1,0)))","v":"Седмица 52/Ден 357"},{"$f":"IF(WEEKDAY(ДенКалендар)=СтойностНачалоСедмица,CONCATENATE(\"Седмица \",WEEKNUM(ДенКалендар),\"/Ден \",ДенКалендар-DATE(YEAR(ДенКалендар),1,0)),CONCATENATE(\"Ден \",ДенКалендар-DATE(YEAR(ДенКалендар),1,0)))","v":"Ден 358"},{"$f":"IF(WEEKDAY(ДенКалендар)=СтойностНачалоСедмица,CONCATENATE(\"Седмица \",WEEKNUM(ДенКалендар),\"/Ден \",ДенКалендар-DATE(YEAR(ДенКалендар),1,0)),CONCATENATE(\"Ден \",ДенКалендар-DATE(YEAR(ДенКалендар),1,0)))","v":"Ден 359"},{"$f":"IF(WEEKDAY(ДенКалендар)=СтойностНачалоСедмица,CONCATENATE(\"Седмица \",WEEKNUM(ДенКалендар),\"/Ден \",ДенКалендар-DATE(YEAR(ДенКалендар),1,0)),CONCATENATE(\"Ден \",ДенКалендар-DATE(YEAR(ДенКалендар),1,0)))","v":"Ден 360"},{"$f":"IF(WEEKDAY(ДенКалендар)=СтойностНачалоСедмица,CONCATENATE(\"Седмица \",WEEKNUM(ДенКалендар),\"/Ден \",ДенКалендар-DATE(YEAR(ДенКалендар),1,0)),CONCATENATE(\"Ден \",ДенКалендар-DATE(YEAR(ДенКалендар),1,0)))","v":"Ден 361"},{"$f":"IF(WEEKDAY(ДенКалендар)=СтойностНачалоСедмица,CONCATENATE(\"Седмица \",WEEKNUM(ДенКалендар),\"/Ден \",ДенКалендар-DATE(YEAR(ДенКалендар),1,0)),CONCATENATE(\"Ден \",ДенКалендар-DATE(YEAR(ДенКалендар),1,0)))","v":"Ден 362"},{"$f":"IF(WEEKDAY(ДенКалендар)=СтойностНачалоСедмица,CONCATENATE(\"Седмица \",WEEKNUM(ДенКалендар),\"/Ден \",ДенКалендар-DATE(YEAR(ДенКалендар),1,0)),CONCATENATE(\"Ден \",ДенКалендар-DATE(YEAR(ДенКалендар),1,0)))","v":"Ден 363"}]
[{"$nulls":4},"БЕЛЕЖКИ"]
[]
[null,null,{"$f":"ДниИСемици+DATE(ГодинаКалендар,12,1)-WEEKDAY(DATE(ГодинаКалендар,12,1),(НачалоСедмица=\"ПОН\")+1)+36","v":"2018-12-30"},"2018-12-31"]
[null,null,{"$f":"IF(WEEKDAY(ДенКалендар)=СтойностНачалоСедмица,CONCATENATE(\"Седмица \",WEEKNUM(ДенКалендар),\"/Ден \",ДенКалендар-DATE(YEAR(ДенКалендар),1,0)),CONCATENATE(\"Ден \",ДенКалендар-DATE(YEAR(ДенКалендар),1,0)))","v":"Седмица 53/Ден 364"},{"$f":"IF(WEEKDAY(ДенКалендар)=СтойностНачалоСедмица,CONCATENATE(\"Седмица \",WEEKNUM(ДенКалендар),\"/Ден \",ДенКалендар-DATE(YEAR(ДенКалендар),1,0)),CONCATENATE(\"Ден \",ДенКалендар-DATE(YEAR(ДенКалендар),1,0)))","v":"Ден 365"}]